Workbook

Sheet Indicateurs
A1: Indicateurs | B1: Onglet | C1: Source
A2: Volumétries générales | B2: Gén | C2: Entrées dépôt légal
A3: Nombre de nouveaux titres et titres vivants par thématique | B3: Gén | C3: Entrées dépôt légal et Bibliographie Publications en série
A4: Nombre de titres vivants par date de parution | B4: V_dat | C4: Entrées dépôt légal
A5: Nombre de titres vivants par pays | B5: V_géog | C5: Entrées dépôt légal
A6: Nombre de titres vivants par pays - zoom France | B6: V_géog | C6: Entrées dépôt légal
A7: Nombre de titres vivants par pays et thématique | B7: V_géog | C7: Entrées dépôt légal
A8: Nombre de titres vivants par région France et thématique | B8: V_géog | C8: Entrées dépôt légal
A9: Nombre de titres vivants par langue | B9: V_lang | C9: Entrées dépôt légal
A10: Nombre de titres vivants par langue et thématique | B10: V_lang | C10: Entrées dépôt légal
A11: Nombre de titres vivants par périodicité | B11: V_pér | C11: Entrées dépôt légal
A12: Nombre de titres vivants par périodicité et thématique | B12: V_pér | C12: Entrées dépôt légal
A13: Nombre de titres vivants édition publique | B13: V_éd pub | C13: Entrées dépôt légal
A14: Nombre de titres vivants édition publique par périodicité | B14: V_éd pub | C14: Entrées dépôt légal
A15: Nombre de titres vivants édition publique par thématique | B15: V_éd pub | C15: Entrées dépôt légal
A16: Nombre de titres vivants outre-mer et thématique | B16: V_om | C16: Entrées dépôt légal
A17: Nombre de titres vivants outre-mer par langue | B17: V_om | C17: Entrées dépôt légal
A18: Nombre de titres vivants outre-mer et édition publique | B18: V_om | C18: Entrées dépôt légal
A19: Nombre de titres vivants outre-mer et périodicité | B19: V_om | C19: Entrées dépôt légal
A20: Nombre de cessations de parution | B20: Cess | C20: Entrées dépôt légal
A21: Nombre de cessations de parution par âge de la publication | B21: Cess | C21: Entrées dépôt légal
A22: Nombre de cessations de parution par pays | B22: Cess | C22: Entrées dépôt légal
A23: Nombre de cessations de parution par langue | B23: Cess | C23: Entrées dépôt légal
A24: Nombre de cessations de parution par périodicité | B24: Cess | C24: Entrées dépôt légal
A25: Nombre de cessations de parution par édition publique | B25: Cess | C25: Entrées dépôt légal
A26: Nombre de cessations de parution par thématique | B26: Cess | C26: Entrées dépôt légal
A27: Nombre de cessations de parution par âge des publications et thématique | B27: Cess | C27: Entrées dépôt légal
A28: Nombre de périodiques 2005-2015 par âge et statuts | B28: Cess | C28: Entrées dépôt légal
A29: Périodiques 2005-2015 par âge et statuts | B29: Cess | C29: Entrées dépôt légal
A30: Nombre de migrations de support par type de migration | B30: Migr | C30: Entrées dépôt légal
A31: Nombre de migrations par pays et région | B31: Migr | C31: Entrées dépôt légal
A32: Nombre de migrations par langue | B32: Migr | C32: Entrées dépôt légal
A33: Nombre de migrations par édition publique | B33: Migr | C33: Entrées dépôt légal
A34: Nombre de migrations par périodicité | B34: Migr | C34: Entrées dépôt légal
A35: Nombre de migrations par thématique | B35: Migr | C35: Entrées dépôt légal
A36: Nombre de nouveaux titres par pays | B36: N_gén | C36: Bibliographie Publications en série
A37: Nombre de nouveaux titres par département | B37: N_gén | C37: Bibliographie Publications en série
A38: Nombre de nouveaux titres par langue | B38: N_gén | C38: Bibliographie Publications en série
A39: Nombre de nouveaux titres par périodicité | B39: N_gén | C39: Bibliographie Publications en série
A40: Nombre de nouveaux titres par public | B40: N_gén | C40: Bibliographie Publications en série
A41: Nombre de nouveaux titres par édition publique | B41: N_typo | C41: Bibliographie Publications en série
A42: Nombre de nouveaux titres par forme d'édition | B42: N_typo | C42: Bibliographie Publications en série
A43: Nombre de nouveaux titres par type de périodique | B43: N_typo | C43: Bibliographie Publications en série
A44: Nombre de nouveaux titres de magazines par thématique | B44: N_typo | C44: Bibliographie Publications en série
A45: Nombre de nouveaux titres de presse professionnelle par thématique | B45: N_typo | C45: Bibliographie Publications en série
A46: Nombre de nouveaux titres de presse académique par thématique | B46: N_typo | C46: Bibliographie Publications en série
A47: Nombre de nouveaux titres de presse d'expression politique par thématique | B47: N_typo | C47: Bibliographie Publications en série
A48: Nombre de nouveaux titres de presse syndicale par thématique | B48: N_typo | C48: Bibliographie Publications en série
A49: Nombre de nouveaux titres de presse confessionnelle par thématique | B49: N_typo | C49: Bibliographie Publications en série
A50: Nombre de nouveaux titres de presse associative par thématique | B50: N_typo | C50: Bibliographie Publications en série

Sheet Gén
A1: Volumétries générales | F1: Nombre de nouveaux titres par thématique | K1: Nombre de titres vivants par thématique
A2: Volumétrie | B2: 2016 | C2: 2017 | D2: 2018 | F2: Indices | G2: Intitulés | H2: 2016 | I2: 2017 | J2: 2018 | K2: 2016 | L2: 2017 | M2: 2018
A3: Titre vivants | B3: 36687 | C3: 35772 | D3: 34240 | F3: 000 | G3: Généralités, collections encyclopédiques | H3: 0 | I3: 0 | J3: 0 | K3: 97 | L3: 92 | M3: 88
A4: Dépôts (dépôt légal éditeur et importateur) | B4: 250232 | C4: 237180 | D4: 219766 | F4: 001 | G4: Culture générale | H4: 9 | I4: 19 | J4: 13 | K4: 73 | L4: 81 | M4: 90
A5: Nouveaux titres | B5: 1984 | C5: 1952 | D5: 2073 | F5: 004 | G5: Informatique | H5: 8 | I5: 10 | J5: 9 | K5: 134 | L5: 119 | M5: 110
A6: Changements de titres, fusions, scissions, absorptions | B6: 1014 | C6: 773 | D6: 679 | F6: 010 | G6: Bibliographie, catalogues | H6: 1 | I6: 0 | J6: 3 | K6: 18 | L6: 17 | M6: 18
A7: Cessations, migrations | B7: 3148 | C7: 3231 | D7: 3713 | F7: 020 | G7: Sciences de l'information, lecture | H7: 7 | I7: 2 | J7: 1 | K7: 85 | L7: 76 | M7: 68
A8: dont migrations de support | B8: 305 | C8: 327 | D8: 282 | F8: 060 | G8: Instituts de recherche, archives, musées | H8: 2 | I8: 9 | J8: 21 | K8: 131 | L8: 131 | M8: 139
A9: Source : Entrées dépôt légal - logiciel de bulletinage | F9: 070 | G9: Édition, médias, librairie | H9: 4 | I9: 9 | J9: 8 | K9: 325 | L9: 311 | M9: 308
F10: 071 | G10: Magazines généraux | H10: 75 | I10: 88 | J10: 65 | K10: 470 | L10: 502 | M10: 489
F11: 072 | G11: Publications féminines, publications masculines | H11: 27 | I11: 23 | J11: 28 | K11: 205 | L11: 202 | M11: 206
F12: 073 | G12: Presse et collections documentaires pour enfants et adolescents | H12: 52 | I12: 57 | J12: 49 | K12: 322 | L12: 331 | M12: 327
F13: 074 | G13: Presse nationale et locale d’information | H13: 76 | I13: 42 | J13: 28 | K13: 415 | L13: 400 | M13: 388
F14: 075 | G14: Presse parallèle, fanzines | H14: 16 | I14: 13 | J14: 24 | K14: 79 | L14: 81 | M14: 98
F15: 076 | G15: Journaux internes d’entreprise | H15: 62 | I15: 91 | J15: 60 | K15: 663 | L15: 605 | M15: 540
F16: 077 | G16: Journaux d’annonces | H16: 5 | I16: 11 | J16: 5 | K16: 106 | L16: 101 | M16: 94
F17: 090 | G17: Bibliophilie | H17: 0 | I17: 0 | J17: 0 | K17: 7 | L17: 6 | M17: 6
F18: 100 | G18: Philosophie | H18: 6 | I18: 4 | J18: 11 | K18: 99 | L18: 97 | M18: 101
F19: 130 | G19: Ésotérisme et sciences occultes | H19: 3 | I19: 8 | J19: 8 | K19: 42 | L19: 46 | M19: 48
F20: 150 | G20: Psychologie et psychanalyse | H20: 8 | I20: 13 | J20: 13 | K20: 130 | L20: 129 | M20: 132
F21: 200 | G21: Religion | H21: 2 | I21: 4 | J21: 3 | K21: 103 | L21: 98 | M21: 94
F22: 280 | G22: Églises chrétiennes | H22: 105 | I22: 86 | J22: 80 | K22: 1653 | L22: 1677 | M22: 1660
F23: 294 | G23: Hindouisme, bouddhisme | H23: 0 | I23: 1 | J23: 0 | K23: 11 | L23: 11 | M23: 11
F24: 296 | G24: Judaïsme | H24: 0 | I24: 0 | J24: 2 | K24: 24 | L24: 19 | M24: 19
F25: 297 | G25: Islam | H25: 1 | I25: 2 | J25: 1 | K25: 11 | L25: 11 | M25: 11
F26: 299 | G26: Autres religions | H26: 0 | I26: 2 | J26: 1 | K26: 22 | L26: 23 | M26: 23
F27: 300 | G27: Sciences sociales, sociologie | H27: 28 | I27: 16 | J27: 20 | K27: 300 | L27: 290 | M27: 285
F28: 320 | G28: Sciences politiques et gouvernement | H28: 16 | I28: 14 | J28: 48 | K28: 280 | L28: 254 | M28: 261
F29: 323 | G29: Droits civils et politiques, citoyenneté, minorités | H29: 13 | I29: 9 | J29: 28 | K29: 132 | L29: 122 | M29: 138
F30: 324 | G30: Partis et mouvements politiques | H30: 14 | I30: 11 | J30: 10 | K30: 212 | L30: 186 | M30: 157
F31: 327 | G31: Politique internationale | H31: 2 | I31: 15 | J31: 4 | K31: 73 | L31: 81 | M31: 73
F32: 330 | G32: Économie (généralités) | H32: 50 | I32: 59 | J32: 17 | K32: 356 | L32: 382 | M32: 324
F33: 331 | G33: Économie du travail, syndicats | H33: 64 | I33: 60 | J33: 86 | K33: 1289 | L33: 1237 | M33: 1191
F34: 332 | G34: Économie financière | H34: 39 | I34: 34 | J34: 19 | K34: 311 | L34: 304 | M34: 279
F35: 333 | G35: Économie du foncier et de l'énergie | H35: 45 | I35: 66 | J35: 33 | K35: 473 | L35: 485 | M35: 450
F36: 338 | G36: Économie de la production et de la consommation | H36: 80 | I36: 90 | J36: 99 | K36: 604 | L36: 582 | M36: 589
F37: 340 | G37: Droit | H37: 36 | I37: 44 | J37: 34 | K37: 665 | L37: 658 | M37: 632
F38: 350 | G38: Administration publique | H38: 13 | I38: 10 | J38: 13 | K38: 202 | L38: 187 | M38: 171
F39: 352 | G39: Administration territoriale | H39: 321 | I39: 351 | J39: 276 | K39: 2319 | L39: 2220 | M39: 1688
F40: 355 | G40: Armée, défense | H40: 14 | I40: 32 | J40: 11 | K40: 242 | L40: 259 | M40: 245
F41: 362 | G41: Problèmes et services sociaux | H41: 150 | I41: 238 | J41: 253 | K41: 1449 | L41: 1516 | M41: 1583
F42: 363 | G42: Protection de l’environnement | H42: 50 | I42: 58 | J42: 79 | K42: 877 | L42: 822 | M42: 805
F43: 366 | G43: Associations, cercles et clubs divers | H43: 29 | I43: 54 | J43: 33 | K43: 563 | L43: 567 | M43: 546
F44: 368 | G44: Assurances, sécurité sociale, retraites | H44: 48 | I44: 42 | J44: 41 | K44: 464 | L44: 437 | M44: 430
F45: 370 | G45: Éducation, enseignement | H45: 8 | I45: 15 | J45: 19 | K45: 239 | L45: 214 | M45: 191
F46: 371 | G46: Organisation scolaire, pédagogie, parents d’élèves | H46: 15 | I46: 28 | J46: 8 | K46: 194 | L46: 196 | M46: 178
F47: 373 | G47: Enseignement primaire, enseignement secondaire général et technique, journaux scolaires | H47: 28 | I47: 18 | J47: 48 | K47: 244 | L47: 243 | M47: 236
F48: 374 | G48: Formation professionnelle et continue | H48: 8 | I48: 6 | J48: 7 | K48: 61 | L48: 50 | M48: 49
F49: 378 | G49: Enseignement supérieur | H49: 15 | I49: 25 | J49: 28 | K49: 275 | L49: 256 | M49: 256
F50: 380 | G50: Commerce | H50: 24 | I50: 21 | J50: 31 | K50: 261 | L50: 250 | M50: 255
F51: 383 | G51: Moyens de communication | H51: 5 | I51: 11 | J51: 5 | K51: 64 | L51: 61 | M51: 53
F52: 385 | G52: Transports | H52: 47 | I52: 48 | J52: 53 | K52: 437 | L52: 425 | M52: 399
F53: 390 | G53: Ethnologie, anthropologie, folklore | H53: 2 | I53: 2 | J53: 6 | K53: 40 | L53: 38 | M53: 36
F54: 400 | G54: Linguistique | H54: 7 | I54: 4 | J54: 6 | K54: 79 | L54: 72 | M54: 77
F55: 500 | G55: Sciences (généralités) | H55: 15 | I55: 11 | J55: 12 | K55: 110 | L55: 110 | M55: 111
F56: 510 | G56: Mathématiques | H56: 2 | I56: 0 | J56: 2 | K56: 27 | L56: 26 | M56: 28
F57: 520 | G57: Astronomie | H57: 2 | I57: 1 | J57: 3 | K57: 32 | L57: 28 | M57: 30
F58: 530 | G58: Physique | H58: 0 | I58: 0 | J58: 2 | K58: 25 | L58: 22 | M58: 20
F59: 540 | G59: Chimie, minéralogie | H59: 1 | I59: 0 | J59: 0 | K59: 25 | L59: 24 | M59: 24
F60: 550 | G60: Sciences de la terre | H60: 4 | I60: 2 | J60: 4 | K60: 70 | L60: 69 | M60: 65
F61: 560 | G61: Paléontologie | H61: 0 | I61: 1 | J61: 0 | K61: 7 | L61: 8 | M61: 7
F62: 570 | G62: Sciences de la vie | H62: 0 | I62: 2 | J62: 8 | K62: 49 | L62: 48 | M62: 51
F63: 580 | G63: Botanique | H63: 5 | I63: 8 | J63: 0 | K63: 72 | L63: 78 | M63: 77
F64: 590 | G64: Zoologie | H64: 4 | I64: 4 | J64: 3 | K64: 144 | L64: 140 | M64: 134
F65: 600 | G65: Sciences appliquées, technologie | H65: 5 | I65: 3 | J65: 5 | K65: 50 | L65: 49 | M65: 47
F66: 610 | G66: Médecine, santé | H66: 132 | I66: 114 | J66: 107 | K66: 1380 | L66: 1323 | M66: 1269
F67: 620 | G67: Sciences de l'ingénieur | H67: 39 | I67: 33 | J67: 43 | K67: 353 | L67: 332 | M67: 337
F68: 630 | G68: Agriculture, élevage | H68: 113 | I68: 101 | J68: 101 | K68: 1196 | L68: 1169 | M68: 1132
F69: 640 | G69: Économie domestique/vie pratique, hôtellerie | H69: 76 | I69: 90 | J69: 54 | K69: 531 | L69: 536 | M69: 530
F70: 650 | G70: Gestion et organisation des entreprises, publicité | H70: 50 | I70: 35 | J70: 49 | K70: 411 | L70: 382 | M70: 365
F71: 660 | G71: Génie chimique et technologies connexes | H71: 8 | I71: 1 | J71: 5 | K71: 51 | L71: 45 | M71: 45
F72: 670 | G72: Industries et métiers divers | H72: 13 | I72: 8 | J72: 13 | K72: 280 | L72: 250 | M72: 231
F73: 690 | G73: Bâtiment | H73: 9 | I73: 19 | J73: 8 | K73: 239 | L73: 227 | M73: 198
F74: 700 | G74: Arts (généralités) | H74: 59 | I74: 52 | J74: 56 | K74: 515 | L74: 511 | M74: 497
F75: 710 | G75: Urbanisme, aménagement du territoire | H75: 16 | I75: 24 | J75: 23 | K75: 198 | L75: 188 | M75: 180
F76: 720 | G76: Architecture | H76: 13 | I76: 11 | J76: 16 | K76: 150 | L76: 145 | M76: 144
F77: 730 | G77: Arts plastiques, sculpture | H77: 3 | I77: 5 | J77: 4 | K77: 39 | L77: 40 | M77: 38
F78: 740 | G78: Dessin, arts décoratifs, artisanat d’art, bandes dessinées (histoire et critique) | H78: 33 | I78: 41 | J78: 56 | K78: 298 | L78: 281 | M78: 296
F79: 750 | G79: Peinture, arts graphiques | H79: 4 | I79: 5 | J79: 12 | K79: 78 | L79: 76 | M79: 83
F80: 770 | G80: Photographie | H80: 8 | I80: 18 | J80: 12 | K80: 113 | L80: 114 | M80: 113
F81: 778 | G81: Érotisme, pornographie | H81: 4 | I81: 8 | J81: 2 | K81: 22 | L81: 17 | M81: 18
F82: 780 | G82: Musique | H82: 15 | I82: 15 | J82: 10 | K82: 212 | L82: 202 | M82: 188
F83: 790 | G83: Spectacles (généralités), loisirs | H83: 18 | I83: 25 | J83: 30 | K83: 184 | L83: 186 | M83: 191
F84: 791 | G84: Audiovisuel | H84: 18 | I84: 28 | J84: 23 | K84: 204 | L84: 208 | M84: 208
F85: 792 | G85: Représentations scéniques | H85: 7 | I85: 3 | J85: 4 | K85: 77 | L85: 69 | M85: 65
F86: 793 | G86: Jeux et divertissements d'intérieur | H86: 83 | I86: 109 | J86: 104 | K86: 558 | L86: 599 | M86: 634
F87: 796 | G87: Sports, activités de plein air | H87: 106 | I87: 105 | J87: 80 | K87: 1049 | L87: 1032 | M87: 970
F88: 800 | G88: Littérature générale, histoire et critique littéraires, revues littéraires | H88: 52 | I88: 48 | J88: 40 | K88: 686 | L88: 674 | M88: 673
F89: 801 | G89: Poésie | H89: 10 | I89: 9 | J89: 11 | K89: 107 | L89: 107 | M89: 110
F90: 802 | G90: Théâtre | H90: 0 | I90: 0 | J90: 0 | K90: 5 | L90: 5 | M90: 5
F91: 803 | G91: Roman et fiction romanesque | H91: 0 | I91: 3 | J91: 0 | K91: 2 | L91: 5 | M91: 5
F92: 804 | G92: Essais littéraires et écrits divers | H92: 2 | I92: 0 | J92: 4 | K92: 12 | L92: 12 | M92: 16
F93: 805 | G93: Bandes dessinées | H93: 43 | I93: 33 | J93: 14 | K93: 170 | L93: 154 | M93: 122
F94: 809 | G94: Littérature pour la jeunesse | H94: 1 | I94: 6 | J94: 2 | K94: 24 | L94: 26 | M94: 23
F95: 900 | G95: Histoire et géographie (généralités) | H95: 12 | I95: 19 | J95: 11 | K95: 211 | L95: 214 | M95: 211
F96: 910 | G96: Géographie, voyages, tourisme | H96: 38 | I96: 37 | J96: 44 | K96: 335 | L96: 321 | M96: 324
F97: 920 | G97: Biographies | H97: 0 | I97: 0 | J97: 0 | K97: 9 | L97: 9 | M97: 6
F98: 929 | G98: Généalogie, Histoire ancienne, archéologie | H98: 2 | I98: 7 | J98: 5 | K98: 149 | L98: 149 | M98: 149
F99: 930 | G99: Histoire ancienne, archéologie, préhistoire | H99: 9 | I99: 4 | J99: 8 | K99: 175 | L99: 170 | M99: 165
F100: 940 | G100: Histoire médiévale, moderne et contemporaine | H100: 7 | I100: 14 | J100: 10 | K100: 166 | L100: 170 | M100: 170
F101: 944 | G101: Histoire de France, histoire locale | H101: 71 | I101: 69 | J101: 55 | K101: 1127 | L101: 1137 | M101: 1147
F102: Indéterminé | K102: 6830 | L102: 6525 | M102: 6143
F103: Total | H103: =SUM(H3:H102) -> 2752 | I103: =SUM(I3:I102) -> 3006 | J103: =SUM(J3:J102) -> 2803 | K103: 36687 | L103: 35772 | M103: 34240
F104: Source : Bibliographie nationale - Publications en série
F105: Inclut les changements de titre

Sheet V_dat
A1: Nombre de titres vivants par date de début de parution*
B2: Année de réception
A3: Date de parution | B3: 2011 | C3: 2012 | D3: 2013 | E3: 2014 | F3: 2015 | G3: 2016 | H3: 2017 | I3: 2018
A4: 1665 | B4: 1 | C4: 1 | D4: 1 | E4: 1 | F4: 1 | G4: 1 | H4: 1 | I4: 1
A5: 1744 | B5: 1
A6: 1780 | D6: 1 | E6: 1 | F6: 1 | G6: 1 | H6: 1 | I6: 1
A7: 1788 | B7: 1 | C7: 1 | D7: 1 | E7: 1 | F7: 1 | G7: 1 | H7: 1 | I7: 1
A8: 1790 | B8: 1 | C8: 2 | D8: 2 | E8: 2 | F8: 2 | G8: 1
A9: 1791 | B9: 1 | C9: 1 | D9: 1 | E9: 1 | F9: 1 | G9: 1 | H9: 1 | I9: 1
A10: 1793 | B10: 1 | C10: 1 | D10: 1 | E10: 1 | F10: 1 | G10: 1 | H10: 1
A11: 1800 | B11: 40 | C11: 38 | D11: 37 | E11: 36 | F11: 32 | G11: 12 | H11: 12 | I11: 3
A12: 1805 | B12: 2 | C12: 2 | D12: 1 | E12: 1 | F12: 1 | G12: 1 | H12: 1
A13: 1806 | B13: 1
A14: 1807 | C14: 2 | D14: 2 | E14: 2 | F14: 2 | G14: 2 | H14: 2 | I14: 2
A15: 1811 | B15: 1 | C15: 1 | D15: 1 | E15: 1 | F15: 1 | G15: 1 | H15: 1 | I15: 1
A16: 1816 | B16: 1 | C16: 1 | D16: 1 | E16: 1 | F16: 1 | G16: 1 | H16: 1 | I16: 1
A17: 1817 | B17: 1 | C17: 2 | D17: 2 | E17: 2 | F17: 2 | G17: 2 | H17: 2 | I17: 1
A18: 1818 | C18: 1 | D18: 1 | E18: 1 | F18: 1 | G18: 1 | H18: 1 | I18: 1
A19: 1820 | B19: 1 | C19: 1 | D19: 1 | E19: 1 | F19: 1 | G19: 1 | H19: 1 | I19: 1
A20: 1822 | B20: 2 | C20: 2 | D20: 2 | E20: 2 | F20: 2 | G20: 2 | H20: 2 | I20: 2
A21: 1824 | B21: 1 | C21: 1 | D21: 1 | E21: 1 | F21: 1 | G21: 1 | H21: 1
A22: 1827 | B22: 1
A23: 1828 | B23: 2 | C23: 3 | D23: 2 | E23: 2 | F23: 2 | G23: 2 | H23: 2 | I23: 1
A24: 1830 | B24: 58 | C24: 58 | D24: 57 | E24: 57 | F24: 45 | G24: 16 | H24: 2 | I24: 2
A25: 1831 | B25: 3 | C25: 3 | D25: 2 | E25: 2 | F25: 2 | G25: 1 | H25: 1 | I25: 1
A26: 1832 | B26: 1 | C26: 1 | D26: 1 | E26: 1 | F26: 1 | G26: 1 | H26: 1 | I26: 1
A27: 1833 | B27: 1 | C27: 2 | D27: 2 | E27: 2 | F27: 1 | G27: 1 | H27: 1 | I27: 1
A28: 1834 | B28: 5 | C28: 5 | D28: 5 | E28: 5 | F28: 5 | G28: 5 | H28: 5 | I28: 5
A29: 1836 | B29: 3 | C29: 3 | D29: 2 | E29: 3 | F29: 3 | G29: 2 | H29: 2 | I29: 2
A30: 1837 | B30: 1 | C30: 1 | D30: 1 | E30: 1 | F30: 1 | G30: 1 | H30: 1 | I30: 1
A31: 1838 | B31: 6 | C31: 8 | D31: 8 | E31: 8 | F31: 8 | G31: 4 | H31: 4 | I31: 4
A32: 1839 | B32: 3 | C32: 4 | D32: 4 | E32: 4 | F32: 4 | G32: 1 | H32: 1 | I32: 1
A33: 1840 | B33: 29 | C33: 27 | D33: 27 | E33: 27 | F33: 19 | G33: 5 | H33: 1 | I33: 1
A34: 1841 | B34: 3 | C34: 4 | D34: 4 | E34: 4 | F34: 4 | G34: 4 | H34: 4 | I34: 4
A35: 1842 | B35: 2 | C35: 2 | D35: 1 | E35: 1 | F35: 1
A36: 1843 | B36: 5 | C36: 6 | D36: 6 | E36: 6 | F36: 6 | G36: 6 | H36: 6 | I36: 6
A37: 1844 | B37: 3 | C37: 3 | D37: 3 | E37: 3 | F37: 2 | G37: 2 | H37: 2 | I37: 2
A38: 1845 | B38: 3 | C38: 2 | D38: 2 | E38: 2 | F38: 2 | G38: 2 | H38: 2 | I38: 2
A39: 1846 | B39: 2 | C39: 1 | D39: 2 | E39: 2 | F39: 2 | G39: 2 | H39: 2 | I39: 2
A40: 1847 | B40: 2 | C40: 2 | D40: 2 | E40: 2 | F40: 2 | G40: 2 | H40: 2 | I40: 2
A41: 1848 | B41: 1 | C41: 1 | D41: 1 | E41: 1 | F41: 1 | G41: 1 | H41: 1 | I41: 1
A42: 1849 | B42: 1 | C42: 2 | D42: 2 | E42: 2 | F42: 2 | G42: 2 | H42: 2 | I42: 2
A43: 1850 | B43: 86 | C43: 87 | D43: 88 | E43: 84 | F43: 72 | G43: 11 | H43: 9 | I43: 1
A44: 1851 | B44: 3 | C44: 3 | D44: 3 | E44: 3 | F44: 3 | G44: 1 | H44: 1 | I44: 1
A45: 1852 | B45: 1 | C45: 1 | D45: 1 | E45: 1 | F45: 1
A46: 1853 | B46: 10 | C46: 10 | D46: 9 | E46: 9 | F46: 8 | G46: 6 | H46: 2 | I46: 2
A47: 1854 | B47: 6 | C47: 6 | D47: 6 | E47: 6 | F47: 6 | G47: 2 | H47: 2 | I47: 2
A48: 1855 | B48: 4 | C48: 4 | D48: 4 | E48: 4 | F48: 4 | G48: 2 | H48: 1 | I48: 1
A49: 1856 | B49: 10 | C49: 9 | D49: 9 | E49: 9 | F49: 8 | G49: 6 | H49: 1 | I49: 1
A50: 1857 | B50: 4 | C50: 4 | D50: 4 | E50: 4 | F50: 4 | G50: 2 | H50: 1 | I50: 1
A51: 1858 | B51: 3 | C51: 3 | D51: 3 | E51: 3 | F51: 3 | G51: 4 | H51: 4 | I51: 1
A52: 1859 | B52: 5 | C52: 5 | D52: 5 | E52: 5 | F52: 5 | G52: 5 | H52: 5 | I52: 5
A53: 1860 | B53: 43 | C53: 44 | D53: 44 | E53: 45 | F53: 39 | G53: 19 | H53: 17 | I53: 3
A54: 1861 | B54: 7 | C54: 7 | D54: 7 | E54: 7 | F54: 7 | G54: 3 | H54: 3 | I54: 3
A55: 1862 | B55: 5 | C55: 6 | D55: 6 | E55: 6 | F55: 5 | G55: 1 | H55: 1
A56: 1863 | B56: 5 | C56: 5 | D56: 5 | E56: 5 | F56: 5 | G56: 2 | H56: 2 | I56: 3
A57: 1864 | B57: 6 | C57: 5 | D57: 5 | E57: 5 | F57: 5 | G57: 2 | H57: 2 | I57: 2
A58: 1865 | B58: 2 | C58: 1 | D58: 1 | E58: 1 | F58: 1 | G58: 1
A59: 1866 | B59: 3 | C59: 3 | D59: 3 | E59: 3 | F59: 3 | G59: 3 | H59: 3 | I59: 3
A60: 1867 | B60: 4 | C60: 4 | D60: 3 | E60: 3 | F60: 3 | G60: 3 | H60: 3 | I60: 3
A61: 1868 | B61: 2 | C61: 2 | D61: 2 | E61: 2 | F61: 2 | G61: 2 | H61: 2 | I61: 2
A62: 1869 | B62: 4 | C62: 5 | D62: 5 | E62: 5 | F62: 5 | G62: 4 | H62: 4 | I62: 4
A63: 1870 | B63: 7 | C63: 7 | D63: 6 | E63: 6 | F63: 6 | G63: 3 | H63: 3 | I63: 3
A64: 1871 | B64: 4 | C64: 4 | D64: 5 | E64: 5 | F64: 5 | G64: 4 | H64: 4 | I64: 3
A65: 1872 | B65: 10 | C65: 9 | D65: 8 | E65: 8 | F65: 8 | G65: 8 | H65: 8 | I65: 8
A66: 1873 | B66: 3 | C66: 4 | D66: 4 | E66: 4 | F66: 3 | G66: 3 | H66: 3 | I66: 3
A67: 1874 | B67: 6 | C67: 6 | D67: 6 | E67: 6 | F67: 6 | G67: 6 | H67: 6 | I67: 6
A68: 1875 | B68: 5 | C68: 7 | D68: 6 | E68: 6 | F68: 6 | G68: 6 | H68: 6 | I68: 4
A69: 1876 | B69: 10 | C69: 10 | D69: 10 | E69: 10 | F69: 10 | G69: 10 | H69: 9 | I69: 9
A70: 1877 | B70: 6 | C70: 6 | D70: 6 | E70: 6 | F70: 6 | G70: 6 | H70: 6 | I70: 6
A71: 1878 | B71: 6 | C71: 6 | D71: 6 | E71: 6 | F71: 6 | G71: 6 | H71: 5 | I71: 5
A72: 1879 | B72: 7 | C72: 7 | D72: 7 | E72: 7 | F72: 7 | G72: 6 | H72: 6 | I72: 6
A73: 1880 | B73: 5 | C73: 5 | D73: 5 | E73: 5 | F73: 5 | G73: 3 | H73: 3 | I73: 3
A74: 1881 | B74: 2 | C74: 6 | D74: 5 | E74: 5 | F74: 5 | G74: 4 | H74: 4 | I74: 4
A75: 1882 | B75: 5 | C75: 5 | D75: 4 | E75: 3 | F75: 3 | G75: 3 | H75: 4 | I75: 3
A76: 1883 | B76: 2 | C76: 3 | D76: 3 | E76: 3 | F76: 3 | G76: 3 | H76: 3 | I76: 3
A77: 1884 | B77: 3 | C77: 3 | D77: 3 | E77: 3 | F77: 3 | G77: 4 | H77: 4 | I77: 4
A78: 1885 | B78: 8 | C78: 8 | D78: 7 | E78: 8 | F78: 8 | G78: 8 | H78: 8 | I78: 8
A79: 1886 | B79: 5 | C79: 2 | D79: 2 | E79: 2 | F79: 2 | G79: 2 | H79: 2 | I79: 2
A80: 1887 | B80: 6 | C80: 7 | D80: 7 | E80: 7 | F80: 7 | G80: 7 | H80: 7 | I80: 7
A81: 1888 | B81: 7 | C81: 7 | D81: 8 | E81: 8 | F81: 8 | G81: 8 | H81: 8 | I81: 8
A82: 1889 | B82: 5 | C82: 4 | D82: 4 | E82: 5 | F82: 5 | G82: 5 | H82: 5 | I82: 5
A83: 1890 | B83: 8 | C83: 9 | D83: 9 | E83: 8 | F83: 8 | G83: 8 | H83: 7 | I83: 7
A84: 1891 | B84: 8 | C84: 8 | D84: 8 | E84: 8 | F84: 8 | G84: 8 | H84: 8 | I84: 8
A85: 1892 | B85: 15 | C85: 15 | D85: 15 | E85: 15 | F85: 15 | G85: 15 | H85: 15 | I85: 15
A86: 1893 | B86: 40 | C86: 40 | D86: 40 | E86: 40 | F86: 40 | G86: 40 | H86: 38 | I86: 38
A87: 1894 | B87: 41 | C87: 41 | D87: 41 | E87: 40 | F87: 40 | G87: 37 | H87: 34 | I87: 34
A88: 1895 | B88: 8 | C88: 7 | D88: 7 | E88: 7 | F88: 7 | G88: 7 | H88: 7 | I88: 7
A89: 1896 | B89: 15 | C89: 18 | D89: 18 | E89: 17 | F89: 17 | G89: 17 | H89: 17 | I89: 16
A90: 1897 | B90: 8 | C90: 7 | D90: 7 | E90: 7 | F90: 5 | G90: 5 | H90: 6 | I90: 6
A91: 1898 | B91: 10 | C91: 10 | D91: 9 | E91: 9 | F91: 8 | G91: 9 | H91: 9 | I91: 9
A92: 1899 | B92: 14 | C92: 12 | D92: 12 | E92: 12 | F92: 12 | G92: 12 | H92: 12 | I92: 12
A93: 1900 | B93: 2535 | C93: 2459 | D93: 2385 | E93: 2334 | F93: 2197 | G93: 2070 | H93: 1988 | I93: 1871
A94: 1901 | B94: 16 | C94: 18 | D94: 18 | E94: 18 | F94: 17 | G94: 17 | H94: 16 | I94: 16
A95: 1902 | B95: 7 | C95: 7 | D95: 6 | E95: 5 | F95: 6 | G95: 6 | H95: 6 | I95: 6
A96: 1903 | B96: 17 | C96: 19 | D96: 19 | E96: 19 | F96: 19 | G96: 18 | H96: 18 | I96: 17
A97: 1904 | B97: 11 | C97: 11 | D97: 11 | E97: 10 | F97: 10 | G97: 10 | H97: 11 | I97: 11
A98: 1905 | B98: 9 | C98: 9 | D98: 9 | E98: 9 | F98: 9 | G98: 9 | H98: 9 | I98: 9
A99: 1906 | B99: 4 | C99: 3 | D99: 3 | E99: 3 | F99: 3 | G99: 3 | H99: 3 | I99: 3
A100: 1907 | B100: 5 | C100: 6 | D100: 6 | E100: 6 | F100: 6 | G100: 4 | H100: 4 | I100: 4
A101: 1908 | B101: 11 | C101: 11 | D101: 11 | E101: 13 | F101: 13 | G101: 12 | H101: 11 | I101: 12
A102: 1909 | B102: 9 | C102: 9 | D102: 9 | E102: 9 | F102: 6 | G102: 6 | H102: 6 | I102: 5
A103: 1910 | B103: 11 | C103: 13 | D103: 13 | E103: 13 | F103: 14 | G103: 13 | H103: 13 | I103: 13
A104: 1911 | B104: 10 | C104: 10 | D104: 10 | E104: 10 | F104: 11 | G104: 11 | H104: 11 | I104: 11
A105: 1912 | B105: 9 | C105: 8 | D105: 8 | E105: 8 | F105: 8 | G105: 8 | H105: 9 | I105: 9
A106: 1913 | B106: 9 | C106: 9 | D106: 9 | E106: 9 | F106: 9 | G106: 9 | H106: 9 | I106: 8
A107: 1914 | B107: 6 | C107: 6 | D107: 6 | E107: 7 | F107: 7 | G107: 7 | H107: 7 | I107: 7
A108: 1915 | B108: 3 | C108: 3 | D108: 3 | E108: 3 | F108: 3 | G108: 4 | H108: 3 | I108: 3
A109: 1916 | B109: 3 | C109: 3 | D109: 2 | E109: 2 | F109: 2 | G109: 2 | H109: 2 | I109: 1
A110: 1917 | B110: 2 | C110: 2 | D110: 2 | E110: 2 | F110: 2 | G110: 2 | H110: 2 | I110: 2
A111: 1918 | B111: 3 | C111: 3 | D111: 4 | E111: 4 | F111: 4 | G111: 4 | H111: 4 | I111: 4
A112: 1919 | B112: 15 | C112: 21 | D112: 22 | E112: 22 | F112: 21 | G112: 18 | H112: 17 | I112: 17
A113: 1920 | B113: 23 | C113: 24 | D113: 22 | E113: 22 | F113: 20 | G113: 17 | H113: 17 | I113: 15
A114: 1921 | B114: 20 | C114: 19 | D114: 21 | E114: 20 | F114: 19 | G114: 19 | H114: 19 | I114: 18
A115: 1922 | B115: 13 | C115: 13 | D115: 14 | E115: 13 | F115: 13 | G115: 13 | H115: 12 | I115: 12
A116: 1923 | B116: 15 | C116: 15 | D116: 16 | E116: 16 | F116: 18 | G116: 18 | H116: 18 | I116: 18
A117: 1924 | B117: 9 | C117: 10 | D117: 11 | E117: 11 | F117: 11 | G117: 10 | H117: 10 | I117: 9
A118: 1925 | B118: 21 | C118: 19 | D118: 18 | E118: 18 | F118: 18 | G118: 18 | H118: 18 | I118: 18
A119: 1926 | B119: 22 | C119: 22 | D119: 22 | E119: 23 | F119: 23 | G119: 23 | H119: 23 | I119: 23
A120: 1927 | B120: 17 | C120: 18 | D120: 16 | E120: 15 | F120: 15 | G120: 15 | H120: 16 | I120: 15
A121: 1928 | B121: 18 | C121: 18 | D121: 18 | E121: 17 | F121: 15 | G121: 15 | H121: 15 | I121: 14
A122: 1929 | B122: 14 | C122: 14 | D122: 14 | E122: 13 | F122: 12 | G122: 12 | H122: 12 | I122: 12
A123: 1930 | B123: 25 | C123: 23 | D123: 22 | E123: 22 | F123: 26 | G123: 24 | H123: 20 | I123: 23
A124: 1931 | B124: 13 | C124: 14 | D124: 14 | E124: 14 | F124: 12 | G124: 12 | H124: 12 | I124: 11
A125: 1932 | B125: 11 | C125: 10 | D125: 10 | E125: 10 | F125: 10 | G125: 10 | H125: 10 | I125: 10
A126: 1933 | B126: 18 | C126: 19 | D126: 18 | E126: 18 | F126: 19 | G126: 17 | H126: 18 | I126: 19
A127: 1934 | B127: 13 | C127: 15 | D127: 14 | E127: 13 | F127: 14 | G127: 14 | H127: 15 | I127: 15
A128: 1935 | B128: 13 | C128: 15 | D128: 15 | E128: 15 | F128: 14 | G128: 13 | H128: 11 | I128: 11
A129: 1936 | B129: 32 | C129: 29 | D129: 28 | E129: 26 | F129: 26 | G129: 26 | H129: 24 | I129: 23
A130: 1937 | B130: 16 | C130: 15 | D130: 14 | E130: 14 | F130: 13 | G130: 12 | H130: 11 | I130: 11
A131: 1938 | B131: 15 | C131: 14 | D131: 14 | E131: 15 | F131: 15 | G131: 15 | H131: 14 | I131: 14
A132: 1939 | B132: 11 | C132: 11 | D132: 11 | E132: 10 | F132: 10 | G132: 10 | H132: 11 | I132: 10
A133: 1940 | B133: 15 | C133: 16 | D133: 16 | E133: 17 | F133: 15 | G133: 15 | H133: 13 | I133: 11
A134: 1941 | B134: 5 | C134: 4 | D134: 4 | E134: 4 | F134: 4 | G134: 3 | H134: 3 | I134: 3
A135: 1942 | B135: 12 | C135: 11 | D135: 9 | E135: 8 | F135: 7 | G135: 6 | H135: 6 | I135: 6
A136: 1943 | B136: 6 | C136: 6 | D136: 6 | E136: 6 | F136: 6 | G136: 6 | H136: 5 | I136: 5
A137: 1944 | B137: 81 | C137: 82 | D137: 82 | E137: 82 | F137: 79 | G137: 74 | H137: 73 | I137: 72
A138: 1945 | B138: 73 | C138: 73 | D138: 68 | E138: 66 | F138: 67 | G138: 65 | H138: 64 | I138: 61
A139: 1946 | B139: 63 | C139: 64 | D139: 63 | E139: 64 | F139: 62 | G139: 60 | H139: 56 | I139: 54
A140: 1947 | B140: 61 | C140: 57 | D140: 57 | E140: 57 | F140: 54 | G140: 54 | H140: 54 | I140: 54
A141: 1948 | B141: 49 | C141: 53 | D141: 52 | E141: 51 | F141: 50 | G141: 46 | H141: 44 | I141: 41
A142: 1949 | B142: 44 | C142: 44 | D142: 43 | E142: 42 | F142: 44 | G142: 39 | H142: 37 | I142: 35
A143: 1950 | B143: 78 | C143: 82 | D143: 77 | E143: 75 | F143: 75 | G143: 68 | H143: 63 | I143: 59
A144: 1951 | B144: 49 | C144: 47 | D144: 45 | E144: 43 | F144: 43 | G144: 40 | H144: 38 | I144: 36
A145: 1952 | B145: 46 | C145: 44 | D145: 43 | E145: 42 | F145: 39 | G145: 38 | H145: 38 | I145: 37
A146: 1953 | B146: 51 | C146: 54 | D146: 54 | E146: 53 | F146: 52 | G146: 47 | H146: 46 | I146: 45
A147: 1954 | B147: 41 | C147: 41 | D147: 42 | E147: 42 | F147: 43 | G147: 40 | H147: 39 | I147: 39
A148: 1955 | B148: 47 | C148: 50 | D148: 48 | E148: 47 | F148: 44 | G148: 41 | H148: 40 | I148: 39
A149: 1956 | B149: 49 | C149: 47 | D149: 46 | E149: 44 | F149: 42 | G149: 41 | H149: 39 | I149: 38
A150: 1957 | B150: 47 | C150: 46 | D150: 44 | E150: 43 | F150: 42 | G150: 41 | H150: 39 | I150: 38
A151: 1958 | B151: 50 | C151: 48 | D151: 49 | E151: 50 | F151: 49 | G151: 48 | H151: 47 | I151: 46
A152: 1959 | B152: 66 | C152: 69 | D152: 67 | E152: 67 | F152: 66 | G152: 63 | H152: 60 | I152: 59
A153: 1960 | B153: 139 | C153: 128 | D153: 125 | E153: 124 | F153: 119 | G153: 117 | H153: 114 | I153: 107
A154: 1961 | B154: 64 | C154: 63 | D154: 60 | E154: 59 | F154: 56 | G154: 54 | H154: 53 | I154: 53
A155: 1962 | B155: 59 | C155: 60 | D155: 59 | E155: 58 | F155: 53 | G155: 53 | H155: 52 | I155: 52
A156: 1963 | B156: 61 | C156: 59 | D156: 57 | E156: 56 | F156: 54 | G156: 49 | H156: 49 | I156: 48
A157: 1964 | B157: 115 | C157: 112 | D157: 107 | E157: 102 | F157: 95 | G157: 94 | H157: 89 | I157: 85
A158: 1965 | B158: 139 | C158: 140 | D158: 135 | E158: 132 | F158: 124 | G158: 120 | H158: 116 | I158: 110
A159: 1966 | B159: 131 | C159: 134 | D159: 130 | E159: 123 | F159: 121 | G159: 116 | H159: 114 | I159: 113
A160: 1967 | B160: 135 | C160: 131 | D160: 117 | E160: 109 | F160: 102 | G160: 99 | H160: 99 | I160: 97
A161: 1968 | B161: 151 | C161: 150 | D161: 149 | E161: 144 | F161: 141 | G161: 130 | H161: 130 | I161: 121
A162: 1969 | B162: 143 | C162: 136 | D162: 132 | E162: 126 | F162: 113 | G162: 106 | H162: 103 | I162: 102
A163: 1970 | B163: 268 | C163: 261 | D163: 256 | E163: 249 | F163: 239 | G163: 217 | H163: 206 | I163: 186
A164: 1971 | B164: 195 | C164: 185 | D164: 176 | E164: 161 | F164: 157 | G164: 146 | H164: 141 | I164: 136
A165: 1972 | B165: 154 | C165: 152 | D165: 155 | E165: 152 | F165: 144 | G165: 139 | H165: 137 | I165: 133
A166: 1973 | B166: 134 | C166: 134 | D166: 124 | E166: 122 | F166: 110 | G166: 104 | H166: 99 | I166: 95
A167: 1974 | B167: 171 | C167: 164 | D167: 163 | E167: 148 | F167: 137 | G167: 123 | H167: 118 | I167: 113
A168: 1975 | B168: 204 | C168: 198 | D168: 186 | E168: 180 | F168: 168 | G168: 157 | H168: 142 | I168: 141
A169: 1976 | B169: 214 | C169: 202 | D169: 201 | E169: 192 | F169: 181 | G169: 169 | H169: 163 | I169: 153
A170: 1977 | B170: 196 | C170: 192 | D170: 186 | E170: 180 | F170: 173 | G170: 160 | H170: 157 | I170: 148
A171: 1978 | B171: 231 | C171: 225 | D171: 211 | E171: 198 | F171: 190 | G171: 185 | H171: 171 | I171: 164
A172: 1979 | B172: 224 | C172: 219 | D172: 212 | E172: 205 | F172: 193 | G172: 182 | H172: 174 | I172: 169
A173: 1980 | B173: 720 | C173: 672 | D173: 648 | E173: 608 | F173: 566 | G173: 507 | H173: 459 | I173: 423
A174: 1981 | B174: 217 | C174: 212 | D174: 201 | E174: 192 | F174: 181 | G174: 171 | H174: 165 | I174: 158
A175: 1982 | B175: 294 | C175: 286 | D175: 279 | E175: 269 | F175: 235 | G175: 212 | H175: 201 | I175: 188
A176: 1983 | B176: 262 | C176: 258 | D176: 244 | E176: 237 | F176: 221 | G176: 208 | H176: 197 | I176: 184
A177: 1984 | B177: 259 | C177: 253 | D177: 246 | E177: 238 | F177: 230 | G177: 221 | H177: 209 | I177: 196
A178: 1985 | B178: 289 | C178: 275 | D178: 262 | E178: 249 | F178: 230 | G178: 219 | H178: 215 | I178: 198
A179: 1986 | B179: 342 | C179: 326 | D179: 312 | E179: 296 | F179: 264 | G179: 235 | H179: 225 | I179: 211
A180: 1987 | B180: 319 | C180: 313 | D180: 302 | E180: 296 | F180: 286 | G180: 274 | H180: 251 | I180: 238
A181: 1988 | B181: 332 | C181: 320 | D181: 308 | E181: 293 | F181: 275 | G181: 269 | H181: 246 | I181: 226
A182: 1989 | B182: 382 | C182: 380 | D182: 364 | E182: 347 | F182: 331 | G182: 316 | H182: 302 | I182: 289
A183: 1990 | B183: 1944 | C183: 1839 | D183: 1731 | E183: 1620 | F183: 1492 | G183: 1380 | H183: 1281 | I183: 1152
A184: 1991 | B184: 442 | C184: 432 | D184: 402 | E184: 382 | F184: 350 | G184: 332 | H184: 311 | I184: 288
A185: 1992 | B185: 622 | C185: 619 | D185: 595 | E185: 573 | F185: 538 | G185: 509 | H185: 472 | I185: 443
A186: 1993 | B186: 594 | C186: 592 | D186: 559 | E186: 536 | F186: 488 | G186: 462 | H186: 441 | I186: 403
A187: 1994 | B187: 698 | C187: 688 | D187: 571 | E187: 540 | F187: 508 | G187: 468 | H187: 443 | I187: 392
A188: 1995 | B188: 613 | C188: 611 | D188: 583 | E188: 561 | F188: 523 | G188: 480 | H188: 447 | I188: 409
A189: 1996 | B189: 670 | C189: 674 | D189: 637 | E189: 605 | F189: 570 | G189: 518 | H189: 483 | I189: 444
A190: 1997 | B190: 769 | C190: 775 | D190: 725 | E190: 684 | F190: 623 | G190: 584 | H190: 543 | I190: 507
A191: 1998 | B191: 768 | C191: 741 | D191: 695 | E191: 658 | F191: 612 | G191: 572 | H191: 528 | I191: 488
A192: 1999 | B192: 923 | C192: 902 | D192: 834 | E192: 789 | F192: 709 | G192: 660 | H192: 600 | I192: 536
A193: 2000 | B193: 3310 | C193: 3172 | D193: 3038 | E193: 2903 | F193: 2666 | G193: 2524 | H193: 2356 | I193: 2300
A194: 2001 | B194: 1019 | C194: 943 | D194: 871 | E194: 816 | F194: 771 | G194: 699 | H194: 646 | I194: 578
A195: 2002 | B195: 1220 | C195: 1157 | D195: 1065 | E195: 993 | F195: 868 | G195: 795 | H195: 723 | I195: 632
A196: 2003 | B196: 1327 | C196: 1289 | D196: 1180 | E196: 1086 | F196: 981 | G196: 880 | H196: 798 | I196: 676
A197: 2004 | B197: 1394 | C197: 1310 | D197: 1184 | E197: 1089 | F197: 985 | G197: 882 | H197: 763 | I197: 668
A198: 2005 | B198: 1577 | C198: 1496 | D198: 1340 | E198: 1249 | F198: 1114 | G198: 984 | H198: 860 | I198: 751
A199: 2006 | B199: 1641 | C199: 1539 | D199: 1383 | E199: 1240 | F199: 1115 | G199: 995 | H199: 885 | I199: 774
A200: 2007 | B200: 1732 | C200: 1610 | D200: 1447 | E200: 1329 | F200: 1181 | G200: 1050 | H200: 947 | I200: 829
... 15 more rows

Sheet V_géog
A1: Nombre de titres vivants par pays
A2: Pays | C2: 2016 | D2: 2017 | E2: 2018
A3: France métropolitaine | C3: 34319 | D3: 33338 | E3: 32368
A4: France d'Outre-Mer | C4: 1679 | D4: 1702 | E4: 1116
A5: Autres pays | B5: Afrique du Sud | C5: 1 | D5: 1 | E5: 1
B6: Algérie | C6: 1 | D6: 1 | E6: 1
B7: Allemagne | C7: 50 | D7: 47 | E7: 49
B8: Arabie saoudite | C8: 2 | D8: 2 | E8: 2
B9: Autriche | C9: 2 | D9: 2 | E9: 2
B10: Belgique | C10: 88 | D10: 89 | E10: 93
B11: Bénin | C11: 2 | D11: 2 | E11: 2
B12: Brésil | C12: 2 | D12: 2 | E12: 2
B13: Canada | C13: 6 | D13: 4 | E13: 4
B14: Chili | C14: 1 | D14: 1 | E14: 1
B15: Chine | C15: 1 | D15: 2 | E15: 2
B16: Comores | C16: 1 | D16: 1 | E16: 1
B17: Congo | C17: 2 | D17: 3 | E17: 3
B18: Croatie | D18: 2 | E18: 2
B19: Danemark | C19: 1 | D19: 1 | E19: 1
B20: Égypte | C20: 8 | D20: 7 | E20: 7
B21: Emirats arabes unis | C21: 1 | D21: 1 | E21: 1
B22: Espagne | C22: 41 | D22: 57 | E22: 76
B23: Etats-Unis | C23: 51 | D23: 49 | E23: 49
B24: Éthiopie | C24: 1 | D24: 1 | E24: 1
B25: Géorgie | C25: 6 | D25: 4 | E25: 4
B26: Grèce | C26: 1 | D26: 1 | E26: 1
B27: Haïti | C27: 1 | D27: 1
B28: Hong Kong | C28: 1 | D28: 1 | E28: 1
B29: Inde | C29: 2 | D29: 2 | E29: 2
B30: Indonésie | C30: 1 | D30: 1 | E30: 1
B31: Iran | C31: 2 | D31: 1 | E31: 1
B32: Irlande | C32: 1 | D32: 3 | E32: 3
B33: Israël | C33: 5 | D33: 5 | E33: 5
B34: Italie | C34: 53 | D34: 56 | E34: 59
B35: Japon | C35: 3 | D35: 4 | E35: 4
B36: Liban | C36: 5 | D36: 6 | E36: 6
B37: Luxembourg | C37: 3 | D37: 3 | E37: 3
B38: Maroc | C38: 1 | D38: 1 | E38: 1
B39: Maurice | C39: 1 | D39: 2 | E39: 2
B40: Mexique | C40: 1 | D40: 1 | E40: 1
B41: Monaco | C41: 10 | D41: 10 | E41: 10
B42: multiple | C42: 114 | D42: 107 | E42: 97
B43: non renseigné | C43: 1 | D43: 1 | E43: 1
B44: Pays-Bas | C44: 57 | D44: 57 | E44: 53
B45: Pologne | C45: 1 | D45: 2 | E45: 2
B46: Portugal | C46: 1 | D46: 1 | E46: 1
B47: République tchèque | D47: 1 | E47: 1
B48: Roumanie | C48: 2 | D48: 1 | E48: 1
B49: Royaume-Uni | C49: 82 | D49: 108 | E49: 116
B50: Russie | C50: 6 | D50: 6 | E50: 6
B51: Sénégal | C51: 1 | D51: 3 | E51: 3
B52: Singapour | C52: 1 | D52: 1 | E52: 1
B53: Suisse | C53: 52 | D53: 58 | E53: 60
B54: Syrie | C54: 1 | D54: 1 | E54: 1
B55: Thaïlande | C55: 1 | D55: 1 | E55: 1
B56: Tunisie | C56: 1 | D56: 1 | E56: 1
B57: Turquie | C57: 5 | D57: 4 | E57: 4
B58: Vatican | C58: 1 | D58: 1 | E58: 1
B59: Venezuela | C59: 1 | D59: 1 | E59: 1
B60: Viet Nam | E60: 1
B61: Yougoslavie | C61: 2
A62: Total | C62: 36687 | D62: 35772 | E62: 34240
A63: Source : Entrées dépôt légal - logiciel de bulletinage
A65: Nombre de titres vivants par pays - zoom France
A67: Région | C67: 2016 | D67: 2017 | E67: 2018
A68: Auvergne - Rhône Alpes | C68: 3353 | D68: 3237 | E68: 3102
A69: Bourgogne - Franche-Comté | C69: 1404 | D69: 1370 | E69: 1295
A70: Bretagne | C70: 1134 | D70: 1102 | E70: 1095
A71: Centre - Val-de-Loire | C71: 1026 | D71: 997 | E71: 957
A72: Corse | C72: 93 | D72: 86 | E72: 68
A73: Grand-Est | C73: 2440 | D73: 2361 | E73: 2279
A74: Hauts-de-France | C74: 1705 | D74: 1685 | E74: 1633
A75: Ile-de-France | C75: 14753 | D75: 14489 | E75: 14251
A76: Normandie | C76: 1080 | D76: 1054 | E76: 1019
A77: Nouvelle-Aquitaine | C77: 2680 | D77: 2577 | E77: 2466
A78: Occitanie | C78: 2111 | D78: 2065 | E78: 1972
A79: Pays de la Loire | C79: 1146 | D79: 1114 | E79: 1096
A80: Provence-Alpes-Côte d'Azur | C80: 1545 | D80: 1496 | E80: 1437
A81: Autre | C81: 347 | D81: 411 | E81: 429
A82: Total | C82: 34817 | D82: 34044 | E82: 33099
A83: Outre-mer
A84: Guadeloupe | C84: 382 | D84: 389 | E84: 231
A85: Guyane française | C85: 160 | D85: 162 | E85: 83
A86: Martinique | C86: 220 | D86: 225 | E86: 156
A87: Mayotte | C87: 59 | D87: 58 | E87: 43
A88: Nouvelle-Calédonie | C88: 355 | D88: 356 | E88: 282
A89: Polynésie française | C89: 24 | D89: 25 | E89: 15
A90: Réunion | C90: 444 | D90: 449 | E90: 286
A91: Saint-Barthélemy | C91: 6 | D91: 6 | E91: 3
A92: Saint-Martin (partie française) | C92: 17 | D92: 20 | E92: 15
A93: Saint-Pierre-et-Miquelon | C93: 7 | D93: 7
A94: Wallis et Futuna (îles) | C94: 5 | D94: 5 | E94: 2
A95: Total | C95: 1679 | D95: 1702 | E95: 1116
A104: Source : Entrées dépôt légal - logiciel de bulletinage
A105: *non renseigné, étranger, Outre-mer (scorie)
A107: Nombre de titres vivants par pays et thématique
A108: 2018 | B108: France métropolitaine | C108: Outre Mer | D108: Autres pays | BG108: multiple | BH108: Total général
A109: Grandes classes | B109: France métropolitaine | C109: Outre Mer | D109: Belgique | E109: Royaume-Uni | F109: Pays-Bas | G109: Italie | H109: Suisse | I109: Etats-Unis | J109: Allemagne | K109: Espagne | L109: Monaco | M109: Égypte | N109: Canada | O109: Géorgie | P109: Russie | Q109: Israël | R109: Liban | S109: Turquie | T109: Japon | U109: Luxembourg | V109: Arabie saoudite | W109: Autriche | X109: Bénin | Y109: Brésil | Z109: Congo | AA109: Inde | AB109: Iran | AC109: Roumanie | AD109: Afrique du Sud | AE109: Algérie | AF109: Chili | AG109: Chine | AH109: Comores | AI109: Danemark | AJ109: Emirats arabes unis | AK109: Ethiopie | AL109: Grèce | AM109: Haïti | AN109: Hong Kong | AO109: Indonésie | AP109: Irlande | AQ109: Maroc | AR109: Maurice | AS109: Mexique | AT109: Non renseigné | AU109: Pologne | AV109: Portugal | AW109: Sénégal | AX109: Croatie | AY109: Singapour | AZ109: Syrie | BA109: Thaïlande | BB109: Tunisie | BC109: Vatican | BD109: Venezuela | BE109: Vietnam | BF109: République tchèque
A110: 0XX | B110: 2724 | C110: 207 | D110: 2 | E110: 8 | F110: 2 | G110: 2 | H110: 4 | I110: 2 | J110: 1 | K110: 4 | L110: 5 | Q110: 1 | T110: 1 | U110: 2 | Y110: 1 | AG110: 1 | AN110: 1 | AU110: 1 | BH110: 2969
A111: 1XX | B111: 273 | C111: 2 | D111: 1 | E111: 2 | H111: 1 | K111: 1 | Q111: 1 | BH111: 281
A112: 2XX | B112: 1782 | C112: 16 | D112: 5 | G112: 1 | H112: 2 | I112: 4 | Q112: 1 | BC112: 1 | BF112: 1 | BG112: 5 | BH112: 1818
A113: 3XX | B113: 10911 | C113: 483 | D113: 25 | E113: 3 | F113: 3 | G113: 1 | H113: 10 | K113: 11 | M113: 1 | U113: 1 | W113: 1 | AD113: 1 | AH113: 1 | AJ113: 1 | AP113: 1 | AW113: 1 | BG113: 45 | BH113: 11500
A114: 4XX | B114: 65 | C114: 0 | D114: 3 | G114: 1 | H114: 1 | J114: 1 | Y114: 1 | AC114: 1 | AF114: 1 | AI114: 1 | AS114: 1 | BD114: 1 | BH114: 77
A115: 5XX | B115: 524 | C115: 10 | D115: 2 | E115: 1 | I115: 1 | K115: 1 | Q115: 1 | Z115: 1 | BG115: 6 | BH115: 547
A116: 6XX | B116: 3925 | C116: 132 | D116: 7 | E116: 5 | F116: 33 | G116: 12 | H116: 10 | J116: 7 | K116: 8 | O116: 2 | AA116: 1 | AG116: 1 | AR116: 1 | BG116: 10 | BH116: 4154
A117: 7XX | B117: 3431 | C117: 102 | D117: 12 | E117: 13 | F117: 1 | G117: 8 | H117: 15 | J117: 4 | K117: 29 | L117: 2 | O117: 2 | R117: 1 | W117: 1 | AR117: 1 | BG117: 3 | BH117: 3625
A118: 8XX | B118: 914 | C118: 19 | D118: 7 | E118: 1 | H118: 2 | I118: 3 | K118: 1 | L118: 1 | V118: 2 | Z118: 1 | AP118: 1 | BG118: 2 | BH118: 954
A119: 9XX | B119: 2107 | C119: 38 | D119: 3 | E119: 2 | G119: 3 | H119: 6 | J119: 2 | K119: 2 | M119: 2 | S119: 1 | AU119: 1 | BA119: 1 | BE119: 1 | BG119: 3 | BH119: 2172
A120: Non renseigné | B120: 5712 | C120: 107 | D120: 26 | E120: 81 | F120: 14 | G120: 31 | H120: 9 | I120: 39 | J120: 34 | K120: 19 | L120: 2 | M120: 4 | N120: 4 | P120: 6 | Q120: 1 | R120: 5 | S120: 3 | T120: 3 | X120: 2 | Z120: 1 | AA120: 1 | AB120: 1 | AE120: 1 | AK120: 1 | AL120: 1 | AO120: 1 | AP120: 1 | AQ120: 1 | AT120: 1 | AV120: 1 | AW120: 2 | AX120: 2 | AY120: 1 | AZ120: 1 | BB120: 1 | BG120: 23 | BH120: 6143
A121: Total général | B121: 32368 | C121: 1116 | D121: 93 | E121: 116 | F121: 53 | G121: 59 | H121: 60 | I121: 49 | J121: 49 | K121: 76 | L121: 10 | M121: 7 | N121: 4 | O121: 4 | P121: 6 | Q121: 5 | R121: 6 | S121: 4 | T121: 4 | U121: 3 | V121: 2 | W121: 2 | X121: 2 | Y121: 2 | Z121: 3 | AA121: 2 | AB121: 1 | AC121: 1 | AD121: 1 | AE121: 1 | AF121: 1 | AG121: 2 | AH121: 1 | AI121: 1 | AJ121: 1 | AK121: 1 | AL121: 1 | AM121: 0 | AN121: 1 | AO121: 1 | AP121: 3 | AQ121: 1 | AR121: 2 | AS121: 1 | AT121: 1 | AU121: 2 | AV121: 1 | AW121: 3 | AX121: 2 | AY121: 1 | AZ121: 1 | BA121: 1 | BB121: 1 | BC121: 1 | BD121: 1 | BE121: 1 | BF121: 1 | BG121: 97 | BH121: 34240
A125: 2017 | B125: France métropolitaine | C125: Outre Mer | D125: Autres pays | BF125: multiple | BG125: Total général
A126: Grandes classes | B126: France métropolitaine | C126: Outre Mer | D126: Belgique | E126: Royaume-Uni | F126: Pays-Bas | G126: Italie | H126: Suisse | I126: Etats-Unis | J126: Allemagne | K126: Espagne | L126: Monaco | M126: Égypte | N126: Canada | O126: Géorgie | P126: Russie | Q126: Israël | R126: Liban | S126: Turquie | T126: Japon | U126: Luxembourg | V126: Arabie saoudite | W126: Autriche | X126: Bénin | Y126: Brésil | Z126: Congo | AA126: Inde | AB126: Iran | AC126: Roumanie | AD126: Afrique du Sud | AE126: Algérie | AF126: Chili | AG126: Chine | AH126: Comores | AI126: Danemark | AJ126: Emirats arabes unis | AK126: Ethiopie | AL126: Grèce | AM126: Haïti | AN126: Hong Kong | AO126: Indonésie | AP126: Irlande | AQ126: Maroc | AR126: Maurice | AS126: Mexique | AT126: Non renseigné | AU126: Pologne | AV126: Portugal | AW126: Sénégal | AX126: Croatie | AY126: Singapour | AZ126: Syrie | BA126: Thaïlande | BB126: Tunisie | BC126: Vatican | BD126: Venezuela | BE126: République tchèque
A127: 0XX | B127: 2733 | C127: 281 | D127: 2 | E127: 8 | F127: 2 | G127: 2 | H127: 4 | I127: 2 | J127: 1 | K127: 4 | L127: 5 | Q127: 1 | T127: 1 | U127: 2 | Y127: 1 | AG127: 1 | AN127: 1 | AU127: 1 | BF127: 3 | BG127: 3055
A128: 1XX | B128: 265 | C128: 2 | D128: 1 | E128: 1 | H128: 1 | K128: 1 | Q128: 1 | BG128: 272
A129: 2XX | B129: 1796 | C129: 23 | D129: 5 | G129: 1 | H129: 2 | I129: 4 | Q129: 1 | BC129: 1 | BE129: 1 | BF129: 5 | BG129: 1839
A130: 3XX | B130: 11457 | C130: 764 | D130: 25 | E130: 2 | F130: 3 | H130: 10 | K130: 4 | M130: 1 | U130: 1 | W130: 1 | AD130: 1 | AH130: 1 | AJ130: 1 | AP130: 1 | AW130: 1 | BF130: 49 | BG130: 12322
A131: 4XX | B131: 60 | D131: 3 | G131: 1 | H131: 1 | J131: 1 | Y131: 1 | AC131: 1 | AF131: 1 | AI131: 1 | AS131: 1 | BD131: 1 | BG131: 72
A132: 5XX | B132: 521 | C132: 19 | D132: 2 | E132: 1 | I132: 1 | K132: 1 | Q132: 1 | Z132: 1 | BF132: 6 | BG132: 553
A133: 6XX | B133: 4005 | C133: 212 | D133: 8 | E133: 4 | F133: 37 | G133: 10 | H133: 8 | J133: 7 | K133: 7 | O133: 2 | AA133: 1 | AG133: 1 | AR133: 1 | BF133: 10 | BG133: 4313
A134: 7XX | B134: 3438 | C134: 152 | D134: 12 | E134: 11 | F134: 1 | G134: 7 | H134: 15 | J134: 3 | K134: 18 | L134: 2 | O134: 2 | R134: 1 | W134: 1 | BF134: 5 | BG134: 3668
A135: 8XX | B135: 935 | C135: 28 | D135: 4 | E135: 1 | G135: 1 | H135: 2 | I135: 3 | K135: 1 | L135: 1 | V135: 2 | Z135: 1 | AP135: 1 | AR135: 1 | BF135: 2 | BG135: 983
A136: 9XX | B136: 2090 | C136: 54 | D136: 3 | E136: 1 | G136: 3 | H136: 6 | J136: 2 | K136: 2 | M136: 2 | S136: 1 | AU136: 1 | BA136: 1 | BF136: 4 | BG136: 2170
A137: Non renseigné | B137: 6038 | C137: 167 | D137: 24 | E137: 79 | F137: 14 | G137: 31 | H137: 9 | I137: 39 | J137: 33 | K137: 19 | L137: 2 | M137: 4 | N137: 4 | P137: 6 | Q137: 1 | R137: 5 | S137: 3 | T137: 3 | X137: 2 | Z137: 1 | AA137: 1 | AB137: 1 | AE137: 1 | AL137: 1 | AM137: 1 | AO137: 1 | AP137: 1 | AQ137: 1 | AT137: 1 | AV137: 1 | AW137: 2 | AX137: 2 | AY137: 1 | AZ137: 1 | BB137: 1 | BF137: 23 | BG137: 6524
A138: Total général | B138: 33338 | C138: 1702 | D138: 89 | E138: 108 | F138: 57 | G138: 56 | H138: 58 | I138: 49 | J138: 47 | K138: 57 | L138: 10 | M138: 7 | N138: 4 | O138: 4 | P138: 6 | Q138: 5 | R138: 6 | S138: 4 | T138: 4 | U138: 3 | V138: 2 | W138: 2 | X138: 2 | Y138: 2 | Z138: 3 | AA138: 2 | AB138: 1 | AC138: 1 | AD138: 1 | AE138: 1 | AF138: 1 | AG138: 2 | AH138: 1 | AI138: 1 | AJ138: 1 | AL138: 1 | AM138: 1 | AN138: 1 | AO138: 1 | AP138: 3 | AQ138: 1 | AR138: 2 | AS138: 1 | AT138: 1 | AU138: 2 | AV138: 1 | AW138: 3 | AX138: 2 | AY138: 1 | AZ138: 1 | BA138: 1 | BB138: 1 | BC138: 1 | BD138: 1 | BE138: 1 | BF138: 107 | BG138: 35772
A142: 2016 | B142: France métropolitaine | C142: Outre Mer | D142: Autres pays | BF142: multiple | BG142: Total général
A143: Grandes classes | B143: France métropolitaine | C143: Outre Mer | D143: Belgique | E143: Royaume-Uni | F143: Pays-Bas | G143: Italie | H143: Suisse | I143: Etats-Unis | J143: Allemagne | K143: Espagne | L143: Monaco | M143: Égypte | N143: Canada | O143: Géorgie | P143: Russie | Q143: Israël | R143: Liban | S143: Turquie | T143: Japon | U143: Luxembourg | V143: Arabie saoudite | W143: Autriche | X143: Bénin | Y143: Brésil | Z143: Congo | AA143: Inde | AB143: Iran | AC143: Roumanie | AD143: Yougoslavie | AE143: Afrique du Sud | AF143: Algérie | AG143: Chili | AH143: Chine | AI143: Comores | AJ143: Danemark | AK143: Emirats arabes unis | AL143: Ethiopie | AM143: Grèce | AN143: Haïti | AO143: Hong Kong | AP143: Indonésie | AQ143: Irlande | AR143: Maroc | AS143: Maurice | AT143: Mexique | AU143: Non renseigné | AV143: Pologne | AW143: Portugal | AX143: Sénégal | AY143: Singapour | AZ143: Syrie | BA143: Thaïlande | BB143: Tunisie | BC143: Vatican | BD143: Venezuela
A144: 0XX | B144: 2807 | C144: 281 | D144: 2 | E144: 6 | F144: 2 | G144: 2 | H144: 4 | I144: 2 | J144: 3 | K144: 4 | L144: 5 | O144: 1 | Q144: 1 | T144: 1 | U144: 2 | Y144: 1 | AO144: 1 | AV144: 1 | BF144: 4 | BG144: 3130
A145: 1XX | B145: 266 | C145: 2 | D145: 1 | H145: 1 | Q145: 1 | BG145: 271
A146: 2XX | B146: 1783 | C146: 21 | D146: 5 | H146: 2 | I146: 4 | Q146: 1 | S146: 1 | BC146: 1 | BF146: 6 | BG146: 1824
A147: 3XX | B147: 11772 | C147: 756 | D147: 22 | E147: 1 | F147: 3 | H147: 10 | M147: 1 | N147: 1 | U147: 1 | W147: 1 | AE147: 1 | AI147: 1 | AK147: 1 | AX147: 1 | BF147: 54 | BG147: 12626
A148: 4XX | B148: 67 | C148: 0 | D148: 3 | G148: 1 | H148: 1 | J148: 1 | Y148: 1 | AC148: 1 | AG148: 1 | AJ148: 1 | AT148: 1 | BD148: 1 | BG148: 79
A149: 5XX | B149: 530 | C149: 19 | D149: 2 | E149: 2 | I149: 1 | Q149: 1 | BF149: 6 | BG149: 561
A150: 6XX | B150: 4195 | C150: 208 | D150: 7 | E150: 4 | F150: 37 | G150: 10 | H150: 2 | J150: 7 | K150: 6 | O150: 3 | AA150: 1 | AH150: 1 | BF150: 10 | BG150: 4491
A151: 7XX | B151: 3483 | C151: 144 | D151: 12 | E151: 9 | F151: 1 | G151: 7 | H151: 14 | J151: 4 | K151: 11 | L151: 2 | O151: 2 | W151: 1 | AC151: 1 | BF151: 6 | BG151: 3697
A152: 8XX | B152: 960 | C152: 28 | D152: 4 | G152: 1 | H152: 1 | I152: 3 | L152: 1 | N152: 1 | V152: 2 | Z152: 1 | AS152: 1 | BF152: 3 | BG152: 1006
A153: 9XX | B153: 2093 | C153: 53 | D153: 3 | E153: 1 | G153: 3 | H153: 6 | J153: 2 | K153: 1 | M153: 3 | S153: 1 | AB153: 1 | BA153: 1 | BF153: 4 | BG153: 2172
A154: Non renseigné | B154: 6363 | C154: 167 | D154: 27 | E154: 59 | F154: 14 | G154: 29 | H154: 11 | I154: 41 | J154: 33 | K154: 19 | L154: 2 | M154: 4 | N154: 4 | P154: 6 | Q154: 1 | R154: 5 | S154: 3 | T154: 2 | X154: 2 | Z154: 1 | AA154: 1 | AB154: 1 | AD154: 2 | AF154: 1 | AL154: 1 | AM154: 1 | AN154: 1 | AP154: 1 | AQ154: 1 | AR154: 1 | AU154: 1 | AW154: 1 | AY154: 1 | AZ154: 1 | BB154: 1 | BF154: 21 | BG154: 6830
A155: Total général | B155: 34319 | C155: 1679 | D155: 88 | E155: 82 | F155: 57 | G155: 53 | H155: 52 | I155: 51 | J155: 50 | K155: 41 | L155: 10 | M155: 8 | N155: 6 | O155: 6 | P155: 6 | Q155: 5 | R155: 5 | S155: 5 | T155: 3 | U155: 3 | V155: 2 | W155: 2 | X155: 2 | Y155: 2 | Z155: 2 | AA155: 2 | AB155: 2 | AC155: 2 | AD155: 2 | AE155: 1 | AF155: 1 | AH155: 1 | AI155: 1 | AJ155: 1 | AK155: 1 | AL155: 1 | AM155: 1 | AN155: 1 | AO155: 1 | AP155: 1 | AQ155: 1 | AR155: 1 | AS155: 1 | AT155: 1 | AU155: 1 | AV155: 1 | AW155: 1 | AX155: 1 | AY155: 1 | AZ155: 1 | BA155: 1 | BB155: 1 | BC155: 1 | BD155: 1 | BF155: 114 | BG155: 36687
A157: Nombre de titres vivants par région France et thématique
A158: 2018
A159: Grandes classes | B159: Grand Est | C159: Nouvelle Aquitaine | D159: Auvergne - Rhône Alpes | E159: Normandie | F159: Bourgogne - Franche-Comté | G159: Bretagne | H159: Centre - Val-de-Loire | I159: Corse | J159: Ile-de-France | K159: Occitanie | L159: Hauts-de-France | M159: Pays de la Loire | N159: Provence-Alpes-Côte d'Azur | O159: Outre-mer | P159: Autres | Q159: Total général
A160: 0XX | B160: 150 | C160: 203 | D160: 280 | E160: 72 | F160: 104 | G160: 100 | H160: 70 | I160: 16 | J160: 1111 | K160: 216 | L160: 171 | M160: 79 | N160: 156 | O160: 211 | P160: 5 | Q160: 2944
A161: 1XX | B161: 10 | C161: 17 | D161: 22 | E161: 5 | F161: 10 | G161: 4 | H161: 5 | J161: 158 | K161: 24 | L161: 5 | M161: 4 | N161: 14 | O161: 2 | Q161: 280
A162: 2XX | B162: 202 | C162: 134 | D162: 254 | E162: 80 | F162: 102 | G162: 96 | H162: 65 | I162: 1 | J162: 396 | K162: 131 | L162: 203 | M162: 84 | N162: 50 | O162: 15 | Q162: 1813
A163: 3XX | B163: 824 | C163: 801 | D163: 1155 | E163: 392 | F163: 486 | G163: 419 | H163: 344 | I163: 22 | J163: 4283 | K163: 674 | L163: 607 | M163: 466 | N163: 505 | O163: 494 | P163: 4 | Q163: 11476
A164: 4XX | B164: 3 | C164: 1 | D164: 6 | E164: 22 | F164: 3 | G164: 3 | J164: 27 | K164: 5 | L164: 1 | N164: 5 | Q164: 76
A165: 5XX | B165: 34 | C165: 46 | D165: 46 | E165: 15 | F165: 19 | G165: 17 | H165: 30 | I165: 2 | J165: 216 | K165: 38 | L165: 11 | M165: 21 | N165: 29 | O165: 10 | Q165: 534
A166: 6XX | B166: 273 | C166: 206 | D166: 279 | E166: 108 | F166: 109 | G166: 121 | H166: 97 | I166: 7 | J166: 2181 | K166: 220 | L166: 156 | M166: 97 | N166: 140 | O166: 135 | P166: 1 | Q166: 4130
A167: 7XX | B167: 179 | C167: 333 | D167: 328 | E167: 72 | F167: 114 | G167: 93 | H167: 69 | I167: 2 | J167: 1757 | K167: 181 | L167: 106 | M167: 74 | N167: 168 | O167: 106 | P167: 1 | Q167: 3583
A168: 8XX | B168: 46 | C168: 77 | D168: 86 | E168: 21 | F168: 37 | G168: 33 | H168: 24 | I168: 1 | J168: 385 | K168: 64 | L168: 30 | M168: 40 | N168: 82 | O168: 19 | Q168: 945
A169: 9XX | B169: 204 | C169: 218 | D169: 248 | E169: 75 | F169: 131 | G169: 82 | H169: 120 | I169: 8 | J169: 536 | K169: 156 | L169: 142 | M169: 92 | N169: 109 | O169: 40 | P169: 2 | Q169: 2163
A170: Non renseigné | B170: 354 | C170: 430 | D170: 398 | E170: 157 | F170: 180 | G170: 127 | H170: 133 | I170: 9 | J170: 3201 | K170: 263 | L170: 201 | M170: 139 | N170: 179 | O170: 109 | P170: 18 | Q170: 5898
A171: Total général | B171: 2279 | C171: 2466 | D171: 3102 | E171: 1019 | F171: 1295 | G171: 1095 | H171: 957 | I171: 68 | J171: 14251 | K171: 1972 | L171: 1633 | M171: 1096 | N171: 1437 | O171: 1141 | P171: 31 | Q171: 33842
A173: 2017
A174: Grandes classes | B174: Alsace - Champagne Ardennes - Lorraine | C174: Aquitaine - Limousin - Poitou-Charentes | D174: Auvergne - Rhône Alpes | E174: Normandie | F174: Bourgogne - Franche-Comté | G174: Bretagne | H174: Centre - Val-de-Loire | I174: Corse | J174: Ile-de-France | K174: Midi-Pyrénées - Languedoc-Roussillon | L174: Hauts-de-France | M174: Pays de la Loire | N174: Provence-Alpes-Côte d'Azur | O174: Outre-mer | P174: Autres | Q174: Total général
A175: 0XX | B175: 155 | C175: 200 | D175: 289 | E175: 79 | F175: 108 | G175: 91 | H175: 74 | I175: 19 | J175: 1117 | K175: 219 | L175: 159 | M175: 81 | N175: 153 | O175: 283 | P175: 3 | Q175: 3030
A176: 1XX | B176: 10 | C176: 14 | D176: 20 | E176: 5 | F176: 10 | G176: 4 | H176: 5 | I176: 1 | J176: 154 | K176: 22 | L176: 4 | M176: 5 | N176: 15 | O176: 2 | Q176: 271
A177: 2XX | B177: 204 | C177: 148 | D177: 251 | E177: 82 | F177: 101 | G177: 91 | H177: 61 | I177: 1 | J177: 409 | K177: 134 | L177: 203 | M177: 77 | N177: 51 | O177: 22 | Q177: 1835
A178: 3XX | B178: 857 | C178: 890 | D178: 1263 | E178: 414 | F178: 523 | G178: 424 | H178: 363 | I178: 24 | J178: 4358 | K178: 727 | L178: 665 | M178: 478 | N178: 536 | O178: 775 | P178: 1 | Q178: 12298
A179: 4XX | B179: 3 | C179: 1 | D179: 5 | E179: 21 | F179: 3 | G179: 2 | J179: 26 | K179: 5 | L179: 1 | N179: 4 | O179: 0 | Q179: 71
A180: 5XX | B180: 34 | C180: 44 | D180: 48 | E180: 14 | F180: 17 | G180: 16 | H180: 26 | I180: 3 | J180: 221 | K180: 38 | L180: 13 | M180: 20 | N180: 27 | O180: 19 | Q180: 540
A181: 6XX | B181: 284 | C181: 207 | D181: 291 | E181: 114 | F181: 118 | G181: 126 | H181: 108 | I181: 10 | J181: 2214 | K181: 227 | L181: 145 | M181: 96 | N181: 133 | O181: 216 | Q181: 4289
A182: 7XX | B182: 183 | C182: 323 | D182: 320 | E182: 62 | F182: 121 | G182: 87 | H182: 71 | I182: 6 | J182: 1758 | K182: 180 | L182: 110 | M182: 75 | N182: 177 | O182: 155 | Q182: 3628
A183: 8XX | B183: 47 | C183: 74 | D183: 86 | E183: 16 | F183: 37 | G183: 33 | H183: 28 | I183: 1 | J183: 387 | K183: 68 | L183: 31 | M183: 41 | N183: 97 | O183: 29 | Q183: 975
A184: 9XX | B184: 201 | C184: 214 | D184: 241 | E184: 78 | F184: 132 | G184: 86 | H184: 113 | I184: 8 | J184: 532 | K184: 162 | L184: 144 | M184: 94 | N184: 100 | O184: 56 | Q184: 2161
A185: Non renseigné | B185: 383 | C185: 462 | D185: 423 | E185: 169 | F185: 200 | G185: 142 | H185: 148 | I185: 13 | J185: 3313 | K185: 283 | L185: 210 | M185: 147 | N185: 203 | O185: 171 | P185: 16 | Q185: 6283
A186: Total général | B186: 2361 | C186: 2577 | D186: 3237 | E186: 1054 | F186: 1370 | G186: 1102 | H186: 997 | I186: 86 | J186: 14489 | K186: 2065 | L186: 1685 | M186: 1114 | N186: 1496 | O186: 1728 | P186: 20 | Q186: =SUM(Q175:Q185) -> 35381
A188: 2016
A189: Grandes classes | B189: Alsace - Champagne Ardennes - Lorraine | C189: Aquitaine - Limousin - Poitou-Charentes | D189: Auvergne - Rhône Alpes | E189: Normandie | F189: Bourgogne - Franche-Comté | G189: Bretagne | H189: Centre - Val-de-Loire | I189: Corse | J189: Ile-de-France | K189: Midi-Pyrénées - Languedoc-Roussillon | L189: Hauts-de-France | M189: Pays de la Loire | N189: Provence-Alpes-Côte d'Azur | O189: Outre-mer | P189: Autres | Q189: Total général
A190: 0XX | B190: 158 | C190: 210 | D190: 293 | E190: 72 | F190: 105 | G190: 97 | H190: 73 | I190: 18 | J190: 1127 | K190: 226 | L190: 173 | M190: 82 | N190: 157 | O190: =SUM(M190:N190) -> 239 | P190: 37 | Q190: 3130
A191: 1XX | B191: 8 | C191: 14 | D191: 23 | E191: 4 | F191: 13 | G191: 4 | H191: 4 | I191: 1 | J191: 147 | K191: 23 | L191: 6 | M191: 6 | N191: 16 | O191: =SUM(M191:N191) -> 22 | Q191: 271
A192: 2XX | B192: 205 | C192: 154 | D192: 248 | E192: 85 | F192: 100 | G192: 89 | H192: 67 | I192: 1 | J192: 393 | K192: 135 | L192: 186 | M192: 77 | N192: 52 | O192: 129 | P192: 7 | Q192: 1824
A193: 3XX | B193: 902 | C193: 945 | D193: 1300 | E193: 420 | F193: 535 | G193: 441 | H193: 374 | I193: 28 | J193: 4425 | K193: 730 | L193: 652 | M193: 491 | N193: 566 | O193: 1057 | P193: 35 | Q193: 12626
A194: 4XX | B194: 3 | C194: 4 | D194: 7 | E194: 22 | F194: 3 | G194: 2 | H194: 1 | J194: 25 | K194: 4 | L194: 1 | M194: 2 | N194: 4 | O194: 6 | Q194: 79
A195: 5XX | B195: 33 | C195: 41 | D195: 51 | E195: 12 | F195: 15 | G195: 17 | H195: 25 | I195: 3 | J195: 229 | K195: 41 | L195: 15 | M195: 21 | N195: 28 | O195: 49 | Q195: 561
A196: 6XX | B196: 296 | C196: 216 | D196: 308 | E196: 115 | F196: 119 | G196: 129 | H196: 110 | I196: 9 | J196: 2323 | K196: 244 | L196: 141 | M196: 103 | N196: 131 | O196: 234 | P196: 15 | Q196: 4491
A197: 7XX | B197: 182 | C197: 306 | D197: 325 | E197: 67 | F197: 125 | G197: 90 | H197: 79 | I197: 8 | J197: 1770 | K197: 179 | L197: 120 | M197: 79 | N197: 172 | O197: 251 | P197: 22 | Q197: 3697
A198: 8XX | B198: 49 | C198: 78 | D198: 90 | E198: 20 | F198: 37 | G198: 33 | H198: 29 | I198: 1 | J198: 379 | K198: 67 | L198: 32 | M198: 44 | N198: 108 | O198: 152 | P198: 3 | Q198: 1006
A199: 9XX | B199: 190 | C199: 222 | D199: 240 | E199: 79 | F199: 136 | G199: 83 | H199: 111 | I199: 9 | J199: 522 | K199: 164 | L199: 155 | M199: 91 | N199: 105 | O199: 196 | P199: 3 | Q199: 2172
A200: Non renseigné | B200: 414 | C200: 490 | D200: 468 | E200: 184 | F200: 216 | G200: 149 | H200: 153 | I200: 15 | J200: 3413 | K200: 298 | L200: 224 | M200: 150 | N200: 206 | O200: 356 | P200: 225 | Q200: 6830
A201: Total général | B201: 2440 | C201: 2680 | D201: 3353 | E201: 1080 | F201: 1404 | G201: 1134 | H201: 1026 | I201: 93 | J201: 14753 | K201: 2111 | L201: 1705 | M201: 1146 | N201: 1545 | O201: 1695 | P201: 347 | Q201: 36687

Sheet V_lang
A1: Nombre de titres vivants par langue
A2: Langue | B2: 2016 | C2: 2017 | D2: 2018
A3: allemand | B3: 70 | C3: 63 | D3: 67
A4: anglais | B4: 669 | C4: 645 | D4: 643
A5: arabe | B5: 20 | C5: 18 | D5: 18
A6: arménien | B6: 2 | C6: 3 | D6: 3
A7: basque | B7: 12 | C7: 11 | D7: 12
A8: breton | B8: 15 | C8: 17 | D8: 17
A9: catalan | B9: 6 | C9: 6 | D9: 5
A10: chinois | B10: 25 | C10: 23 | D10: 22
A11: coréen | B11: 2 | C11: 2 | D11: 2
A12: corse | B12: 3 | C12: 3 | D12: 4
A13: créole ou pidgin français | B13: 2 | C13: 2 | D13: 3
A14: danois | B14: 3 | C14: 2 | D14: 2
A15: espagnol | B15: 75 | C15: 69 | D15: 69
A16: espéranto | B16: 8 | C16: 8 | D16: 11
A17: estonien | C17: 1 | D17: 1
A18: finnois | B18: 1 | C18: 1 | D18: 1
A19: français | B19: 35392 | C19: 34524 | D19: 32993
A20: hébreu | B20: 2 | C20: 2 | D20: 2
A21: hongrois | B21: 1 | C21: 1 | D21: 1
A22: ido | B22: 1 | C22: 1 | D22: 1
A23: indéterminé | B23: 1 | C23: 1 | D23: 1
A24: italien | B24: 59 | C24: 58 | D24: 58
A25: japonais | B25: 8 | C25: 7 | D25: 8
A26: latin | B26: 3 | C26: 3 | D26: 3
A27: letton | D27: 1
A28: lituanien | D28: 1
A29: malgache | B29: 1 | C29: 1 | D29: 1
A30: multilingue | B30: 142 | C30: 139 | D30: 133
A31: néerlandais | B31: 17 | C31: 15 | D31: 17
A32: non renseigné | B32: 18 | C32: 23 | D32: 22
A33: norvégien | B33: 1 | C33: 1
A34: occitan | B34: 32 | C34: 34 | D34: 33
A35: occitan ancien | B35: 1 | C35: 1 | D35: 1
A36: persan | B36: 3 | C36: 2 | D36: 3
A37: polonais | B37: 12 | C37: 11 | D37: 10
A38: portugais | B38: 15 | C38: 12 | D38: 10
A39: roumain | B39: 4 | C39: 3 | D39: 3
A40: russe | B40: 28 | C40: 29 | D40: 29
A41: slovaque | B41: 2 | C41: 3 | D41: 3
A42: slovène | B42: 2 | C42: 2 | D42: 2
A43: suédois | B43: 2 | C43: 2 | D43: 1
A44: tchèque | B44: 3 | C44: 2 | D44: 2
A45: thaï | B45: 2 | C45: 1 | D45: 1
A46: tibétain | D46: 1
A47: turc | B47: 12 | C47: 11 | D47: 11
A48: ukrainien | B48: 1 | C48: 3 | D48: 3
A49: vietnamien | B49: 7 | C49: 6 | D49: 5
A50: yiddish | B50: 1
A51: Total | B51: 36687 | C51: 35772 | D51: 34240
A52: Source : Entrées dépôt légal - logiciel de bulletinage
A54: Nombre de titres vivants par langue et thématique
A55: 2018 | B55: Langues
A56: Grandes classes | B56: français | C56: anglais | D56: multilingue | E56: espagnol | F56: allemand | G56: italien | H56: occitan | I56: russe | J56: chinois | K56: arabe | L56: néerlandais | M56: portugais | N56: breton | O56: turc | P56: polonais | Q56: basque | R56: japonais | S56: espéranto | T56: vietnamien | U56: catalan | V56: roumain | W56: coréen | X56: corse | Y56: danois | Z56: tchèque | AA56: latin | AB56: persan | AC56: slovaque | AD56: suédois | AE56: slovène | AF56: créole ou pidgin français | AG56: arménien | AH56: thaï | AI56: occitan ancien | AJ56: ido | AK56: hébreu | AL56: hongrois | AM56: malgache | AN56: ukrainien | AO56: finnois | AP56: estonien | AQ56: letton | AR56: lituanien | AS56: tibétain | AT56: Indéterminé | AU56: Non renseigné | AV56: Total général
A57: 0XX | B57: 2845 | C57: 61 | D57: 4 | E57: 4 | F57: 1 | G57: 3 | H57: 9 | I57: 4 | J57: 9 | K57: 2 | L57: 1 | M57: 2 | N57: 3 | O57: 2 | P57: 1 | Q57: 3 | R57: 1 | T57: 1 | U57: 1 | V57: 1 | W57: 2 | X57: 3 | AC57: 1 | AM57: 1 | AS57: 1 | AU57: 3 | AV57: 2969
A58: 1XX | B58: 273 | C58: 3 | D58: 1 | F58: 1 | AA58: 2 | AU58: 1 | AV58: 281
A59: 2XX | B59: 1782 | C59: 8 | D59: 1 | E59: 5 | F59: 5 | G59: 4 | I59: 1 | J59: 2 | K59: 1 | L59: 1 | M59: 1 | N59: 1 | T59: 1 | U59: 1 | Y59: 1 | AB59: 1 | AF59: 1 | AG59: 1 | AV59: 1818
A60: 3XX | B60: 11240 | C60: 174 | D60: 5 | E60: 10 | F60: 9 | G60: 5 | H60: 5 | I60: 8 | J60: 3 | K60: 2 | L60: 5 | M60: 3 | N60: 1 | O60: 2 | P60: 3 | Q60: 1 | S60: 2 | U60: 1 | V60: 2 | Y60: 1 | Z60: 1 | AB60: 2 | AC60: 1 | AD60: 1 | AE60: 2 | AG60: 1 | AH60: 1 | AL60: 1 | AN60: 2 | AO60: 1 | AP60: 1 | AQ60: 1 | AR60: 1 | AU60: 2 | AV60: 11500
A61: 4XX | B61: 71 | C61: 1 | S61: 2 | U61: 1 | AJ61: 1 | AU61: 1 | AV61: 77
A62: 5XX | B62: 486 | C62: 52 | D62: 4 | E62: 1 | F62: 1 | I62: 1 | J62: 1 | AU62: 1 | AV62: 547
A63: 6XX | B63: 3971 | C63: 123 | D63: 2 | E63: 23 | F63: 9 | G63: 9 | I63: 1 | J63: 1 | L63: 4 | M63: 2 | O63: 1 | Q63: 3 | R63: 3 | AU63: 2 | AV63: 4154
A64: 7XX | B64: 3521 | C64: 76 | D64: 1 | E64: 4 | F64: 7 | G64: 4 | H64: 1 | J64: 3 | M64: 1 | P64: 1 | Q64: 1 | Z64: 1 | AF64: 1 | AI64: 1 | AU64: 2 | AV64: 3625
A65: 8XX | B65: 914 | C65: 10 | D65: 5 | F65: 1 | H65: 5 | I65: 2 | J65: 1 | K65: 1 | N65: 3 | P65: 1 | Q65: 1 | S65: 3 | X65: 1 | AF65: 1 | AK65: 1 | AU65: 4 | AV65: 954
A66: 9XX | B66: 2123 | C66: 21 | D66: 3 | E66: 3 | F66: 8 | G66: 1 | H66: 5 | I66: 1 | L66: 1 | N66: 2 | P66: 1 | R66: 1 | AK66: 1 | AU66: 1 | AV66: 2172
A67: Non renseigné | B67: 5767 | C67: 114 | D67: 107 | E67: 19 | F67: 25 | G67: 32 | H67: 8 | I67: 11 | J67: 2 | K67: 12 | L67: 5 | M67: 1 | N67: 7 | O67: 6 | P67: 3 | Q67: 3 | R67: 3 | S67: 4 | T67: 3 | U67: 1 | AA67: 1 | AC67: 1 | AG67: 1 | AN67: 1 | AT67: 1 | AU67: 5 | AV67: 6143
A68: Total général | B68: 32993 | C68: 643 | D68: 133 | E68: 69 | F68: 67 | G68: 58 | H68: 33 | I68: 29 | J68: 22 | K68: 18 | L68: 17 | M68: 10 | N68: 17 | O68: 11 | P68: 10 | Q68: 12 | R68: 8 | S68: 11 | T68: 5 | U68: 5 | V68: 3 | W68: 2 | X68: 4 | Y68: 2 | Z68: 2 | AA68: 3 | AB68: 3 | AC68: 3 | AD68: 1 | AE68: 2 | AF68: 3 | AG68: 3 | AH68: 1 | AI68: 1 | AJ68: 1 | AK68: 2 | AL68: 1 | AM68: 1 | AN68: 3 | AO68: 1 | AP68: 1 | AQ68: 1 | AR68: 1 | AS68: 1 | AT68: 1 | AU68: 22 | AV68: 34240
A70: 2017 | B70: Langues
A71: Grandes classes | B71: français | C71: anglais | D71: multilingue | E71: espagnol | F71: allemand | G71: italien | H71: occitan | I71: russe | J71: chinois | K71: arabe | L71: néerlandais | M71: portugais | N71: breton | O71: turc | P71: polonais | Q71: basque | R71: japonais | S71: espéranto | T71: vietnamien | U71: catalan | V71: roumain | W71: coréen | X71: corse | Y71: danois | Z71: tchèque | AA71: latin | AB71: persan | AC71: slovaque | AD71: suédois | AE71: slovène | AF71: créole ou pidgin français | AG71: arménien | AH71: thaï | AI71: occitan ancien | AJ71: ido | AK71: norvégien | AL71: finnois | AM71: hébreu | AN71: hongrois | AO71: malgache | AP71: ukrainien | AQ71: estonien | AR71: Indéterminé | AS71: Non renseigné | AT71: Total général
A72: 0XX | B72: 2917 | C72: 72 | D72: 3 | E72: 4 | F72: 1 | G72: 4 | H72: 10 | I72: 4 | J72: 10 | K72: 2 | L72: 1 | M72: 3 | N72: 3 | O72: 2 | P72: 2 | Q72: 3 | R72: 1 | T72: 1 | U72: 1 | V72: 1 | W72: 2 | X72: 2 | AC72: 1 | AD72: 1 | AK72: 1 | AO72: 1 | AS72: 2 | AT72: 3055
A73: 1XX | B73: 265 | C73: 2 | D73: 1 | F73: 1 | AA73: 2 | AS73: 1 | AT73: 272
A74: 2XX | B74: 1805 | C74: 8 | D74: 1 | E74: 4 | F74: 5 | G74: 4 | I74: 1 | J74: 2 | K74: 1 | L74: 1 | M74: 1 | N74: 1 | T74: 2 | U74: 1 | Y74: 1 | AG74: 1 | AT74: 1839
A75: 3XX | B75: 12073 | C75: 166 | D75: 5 | E75: 11 | F75: 8 | G75: 4 | H75: 5 | I75: 8 | J75: 3 | K75: 2 | L75: 5 | M75: 4 | N75: 1 | O75: 2 | P75: 3 | Q75: 1 | S75: 1 | U75: 1 | V75: 2 | Y75: 1 | Z75: 1 | AB75: 2 | AC75: 1 | AD75: 1 | AE75: 2 | AG75: 1 | AH75: 1 | AL75: 1 | AN75: 1 | AP75: 2 | AQ75: 1 | AS75: 2 | AT75: 12322
A76: 4XX | B76: 68 | C76: 1 | U76: 1 | AJ76: 1 | AS76: 1 | AT76: 72
A77: 5XX | B77: 488 | C77: 56 | D77: 5 | F77: 1 | I77: 1 | J77: 1 | AS77: 1 | AT77: 553
A78: 6XX | B78: 4134 | C78: 120 | D78: 2 | E78: 23 | F78: 9 | G78: 9 | I78: 1 | J78: 1 | L78: 3 | M78: 2 | O78: 1 | Q78: 3 | R78: 2 | AS78: 3 | AT78: 4313
A79: 7XX | B79: 3564 | C79: 79 | D79: 1 | E79: 4 | F79: 6 | G79: 4 | H79: 1 | J79: 3 | M79: 1 | P79: 1 | Z79: 1 | AS79: 3 | AT79: 3668
A80: 8XX | B80: 942 | C80: 10 | D80: 5 | E80: 1 | F80: 1 | H80: 5 | I80: 2 | J80: 1 | K80: 1 | N80: 3 | P80: 1 | Q80: 1 | S80: 3 | X80: 1 | AF80: 2 | AM80: 1 | AS80: 3 | AT80: 983
A81: 9XX | B81: 2127 | C81: 16 | D81: 4 | E81: 3 | F81: 6 | G81: 1 | H81: 5 | I81: 1 | N81: 2 | P81: 1 | R81: 1 | U81: 1 | AM81: 1 | AS81: 1 | AT81: 2170
A82: Non renseigné | B82: 6141 | C82: 115 | D82: 112 | E82: 19 | F82: 25 | G82: 32 | H82: 8 | I82: 11 | J82: 2 | K82: 12 | L82: 5 | M82: 1 | N82: 7 | O82: 6 | P82: 3 | Q82: 3 | R82: 3 | S82: 4 | T82: 3 | U82: 1 | AA82: 1 | AC82: 1 | AG82: 1 | AI82: 1 | AP82: 1 | AR82: 1 | AS82: 6 | AT82: 6525
A83: Total général | B83: 34524 | C83: 645 | D83: 139 | E83: 69 | F83: 63 | G83: 58 | H83: 34 | I83: 29 | J83: 23 | K83: 18 | L83: 15 | M83: 12 | N83: 17 | O83: 11 | P83: 11 | Q83: 11 | R83: 7 | S83: 8 | T83: 6 | U83: 6 | V83: 3 | W83: 2 | X83: 3 | Y83: 2 | Z83: 2 | AA83: 3 | AB83: 2 | AC83: 3 | AD83: 2 | AE83: 2 | AF83: 2 | AG83: 3 | AH83: 1 | AI83: 1 | AJ83: 1 | AK83: 1 | AL83: 1 | AM83: 2 | AN83: 1 | AO83: 1 | AP83: 3 | AQ83: 1 | AR83: 1 | AS83: 23 | AT83: 35772
A85: 2016 | B85: Langues
A86: Grandes classes | B86: français | C86: anglais | D86: multilingue | E86: espagnol | F86: allemand | G86: italien | H86: occitan | I86: russe | J86: chinois | K86: arabe | L86: néerlandais | M86: portugais | N86: breton | O86: turc | P86: polonais | Q86: basque | R86: japonais | S86: espéranto | T86: vietnamien | U86: catalan | V86: roumain | W86: coréen | X86: corse | Y86: danois | Z86: tchèque | AA86: latin | AB86: persan | AC86: slovaque | AD86: suédois | AE86: slovène | AF86: créole ou pidgin français | AG86: arménien | AH86: thaï | AI86: occitan ancien | AJ86: ido | AK86: égyptien | AL86: norvégien | AM86: finnois | AN86: hébreu | AO86: yiddish | AP86: hongrois | AQ86: malgache | AR86: ukrainien | AS86: Indéterminé | AT86: Non renseigné | AU86: Total général
A87: 0XX | B87: 2987 | C87: 69 | D87: 3 | E87: 2 | F87: 1 | G87: 6 | H87: 9 | I87: 4 | J87: 11 | K87: 3 | L87: 2 | M87: 5 | N87: 3 | O87: 3 | P87: 3 | Q87: 3 | R87: 2 | T87: 1 | U87: 1 | V87: 2 | W87: 2 | X87: 2 | Z87: 1 | AD87: 1 | AH87: 1 | AL87: 1 | AO87: 1 | AQ87: 1 | AU87: 3130
A88: 1XX | B88: 266 | C88: 2 | F88: 1 | AA88: 2 | AU88: 271
A89: 2XX | B89: 1791 | C89: 7 | D89: 2 | E89: 4 | F89: 5 | G89: 4 | I89: 1 | J89: 2 | K89: 1 | L89: 1 | N89: 1 | T89: 2 | U89: 1 | Y89: 1 | AT89: 1 | AU89: 1824
A90: 3XX | B90: 12360 | C90: 177 | D90: 5 | E90: 15 | F90: 10 | G90: 5 | H90: 5 | I90: 7 | J90: 3 | K90: 3 | L90: 3 | M90: 5 | N90: 1 | O90: 2 | P90: 4 | Q90: 1 | S90: 1 | T90: 1 | U90: 1 | V90: 2 | Y90: 1 | Z90: 1 | AB90: 3 | AC90: 1 | AD90: 1 | AE90: 2 | AG90: 1 | AH90: 1 | AM90: 1 | AP90: 1 | AR90: 1 | AT90: 1 | AU90: 12626
A91: 4XX | B91: 74 | C91: 1 | H91: 1 | U91: 1 | AJ91: 1 | AT91: 1 | AU91: 79
A92: 5XX | B92: 494 | C92: 56 | D92: 7 | F92: 1 | I92: 1 | J92: 1 | AT92: 1 | AU92: 561
A93: 6XX | B93: 4303 | C93: 128 | D93: 2 | E93: 24 | F93: 10 | G93: 8 | I93: 1 | J93: 2 | L93: 3 | M93: 2 | O93: 1 | Q93: 3 | R93: 2 | AT93: 2 | AU93: 4491
A94: 7XX | B94: 3580 | C94: 84 | D94: 1 | E94: 7 | F94: 10 | G94: 3 | H94: 1 | J94: 3 | L94: 2 | M94: 1 | P94: 1 | Y94: 1 | Z94: 1 | AT94: 2 | AU94: 3697
A95: 8XX | B95: 967 | C95: 10 | D95: 4 | E95: 1 | F95: 1 | H95: 4 | I95: 1 | J95: 1 | K95: 1 | N95: 2 | P95: 1 | Q95: 1 | R95: 1 | S95: 3 | X95: 1 | AF95: 2 | AK95: 1 | AN95: 1 | AT95: 3 | AU95: 1006
A96: 9XX | B96: 2128 | C96: 16 | D96: 5 | E96: 3 | F96: 6 | G96: 1 | H96: 4 | I96: 2 | L96: 1 | N96: 2 | R96: 1 | U96: 1 | AN96: 1 | AT96: 1 | AU96: 2172
A97: Non renseigné | B97: 6442 | C97: 119 | D97: 113 | E97: 19 | F97: 25 | G97: 32 | H97: 8 | I97: 11 | J97: 2 | K97: 12 | L97: 5 | M97: 2 | N97: 6 | O97: 6 | P97: 3 | Q97: 4 | R97: 2 | S97: 4 | T97: 3 | U97: 1 | AA97: 1 | AC97: 1 | AG97: 1 | AI97: 1 | AS97: 1 | AT97: 6 | AU97: 6829
A98: Total général | B98: 35392 | C98: 669 | D98: 142 | E98: 75 | F98: 70 | G98: 59 | H98: 32 | I98: 28 | J98: 25 | K98: 20 | L98: 17 | M98: 15 | N98: 15 | O98: 12 | P98: 12 | Q98: 12 | R98: 8 | S98: 8 | T98: 7 | U98: 6 | V98: 4 | W98: 2 | X98: 3 | Y98: 3 | Z98: 3 | AA98: 3 | AB98: 3 | AC98: 2 | AD98: 2 | AE98: 2 | AF98: 2 | AG98: 2 | AH98: 2 | AI98: 1 | AJ98: 1 | AK98: 1 | AL98: 1 | AM98: 1 | AN98: 2 | AO98: 1 | AP98: 1 | AQ98: 1 | AR98: 1 | AS98: 1 | AT98: 18 | AU98: 36687

Sheet V_pér
A1: Nombre de titres vivants par périodicité
A2: Périodicité | B2: 2016 | C2: 2017 | D2: 2018
A3: Quotidien | B3: 227 | C3: 219 | D3: 211
A4: 5 jours par semaine
A5: 3 fois par semaine | B5: 7 | C5: 6 | D5: 5
A6: Semi-hebdomadaire | B6: 21 | C6: 20 | D6: 16
A7: Hebdomadaire | B7: 994 | C7: 986 | D7: 940
A8: 3 fois par mois | B8: 18 | C8: 18 | D8: 5
A9: Bimensuel, ttes les 2 semaines | B9: 367 | C9: 343 | D9: 321
A10: Mensuel | B10: 3491 | C10: 3418 | D10: 3078
A11: Septembre à juin | B11: 3
A12: Bimestriel | B12: 3796 | C12: 3830 | D12: 3545
A13: Trimestriel | B13: 7424 | C13: 7108 | D13: 6856
A14: 3 fois par an | B14: 2655 | C14: 2697 | D14: 2507
A15: Semestriel | B15: 5763 | C15: 5550 | D15: 5445
A16: Annuel | B16: 10079 | C16: 9853 | D16: 9658
A17: Biennal | B17: 863 | C17: 787 | D17: 765
A18: Triennal | B18: 601 | C18: 570 | D18: 540
A19: Irrégulier, Autres périodes | B19: 378 | C19: 367 | D19: 348
A20: Total | B20: 36687 | C20: 35772 | D20: 32240
A21: Source : Entrées dépôt légal - logiciel de bulletinage
A23: Nombre de titres vivants par périodicité et thématique
A24: 2018 | F24: Total
A25: Grandes classes | B25: Indices | C25: Intitulés | D25: 01-Triennal | E25: 02-Biennal | F25: 03-Annuel | G25: 04-Semestriel | H25: 05-3 fois par an | I25: 06-Trimestriel | J25: 07-Bimestriel | K25: 08-Septembre à juin | L25: 09-Mensuel | M25: 10-Bimensuel, ttes les 2 semaines | N25: 11-septembre à juin | O25: 12-3 fois par mois | P25: 13-Hebdomadaire | Q25: 14-Semi-hebdomadaire | R25: 15-3 fois par semaine | S25: 16-5 jours par semaine | T25: 17-Quotidien | U25: 18-Irrégulier, Autres périodes | V25: Total général
A26: 0XX | B26: 000 | C26: Généralités, collections encyclopédiques | D26: 2 | F26: 18 | G26: 9 | H26: 10 | I26: 8 | J26: 18 | L26: 16 | P26: 4 | T26: 2 | U26: 1 | V26: 88
B27: 001 | C27: Culture générale | D27: 1 | E27: 3 | F27: 37 | G27: 14 | H27: 3 | I27: 18 | J27: 4 | L27: 10 | V27: 90
B28: 004 | C28: Informatique | E28: 1 | F28: 21 | G28: 15 | H28: 4 | I28: 30 | J28: 20 | L28: 12 | N28: 1 | T28: 2 | U28: 4 | V28: 110
B29: 010 | C29: Bibliographie, catalogues | D29: 1 | E29: 1 | F29: 9 | G29: 4 | H29: 1 | L29: 1 | U29: 1 | V29: 18
B30: 020 | C30: Sciences de l'information, lecture | D30: 2 | E30: 1 | F30: 25 | G30: 17 | H30: 10 | I30: 7 | J30: 5 | L30: 1 | V30: 68
B31: 060 | C31: Instituts de recherche, archives, musées | D31: 11 | E31: 8 | F31: 68 | G31: 26 | H31: 9 | I31: 10 | J31: 2 | L31: 4 | U31: 1 | V31: 139
B32: 070 | C32: Édition, médias, librairie | D32: 4 | E32: 4 | F32: 61 | G32: 36 | H32: 13 | I32: 32 | J32: 19 | L32: 35 | M32: 2 | N32: 5 | O32: 1 | P32: 75 | Q32: 1 | T32: 17 | U32: 3 | V32: 308
B33: 071 | C33: Magazines généraux | E33: 5 | F33: 67 | G33: 53 | H33: 23 | I33: 110 | J33: 104 | L33: 79 | M33: 2 | N33: 7 | P33: 30 | T33: 1 | U33: 8 | V33: 489
B34: 072 | C34: Publications féminines, publications masculines | E34: 2 | F34: 17 | G34: 28 | H34: 9 | I34: 57 | J34: 40 | L34: 42 | P34: 7 | U34: 4 | V34: 206
B35: 073 | C35: Presse et collections documentaires pour enfants et adolescents | E35: 3 | F35: 49 | G35: 45 | H35: 16 | I35: 105 | J35: 50 | L35: 40 | M35: 3 | N35: 7 | P35: 5 | U35: 4 | V35: 327
B36: 074 | C36: Presse nationale et locale d’information | D36: 1 | E36: 1 | F36: 15 | G36: 13 | H36: 3 | I36: 21 | J36: 27 | L36: 49 | M36: 6 | N36: 10 | P36: 188 | Q36: 3 | R36: 2 | T36: 44 | U36: 5 | V36: 388
B37: 075 | C37: Presse parallèle, fanzines | D37: 4 | E37: 4 | F37: 33 | G37: 20 | H37: 11 | I37: 8 | J37: 2 | L37: 12 | N37: 2 | U37: 2 | V37: 98
B38: 076 | C38: Journaux internes d’entreprise | D38: 1 | F38: 42 | G38: 130 | H38: 96 | I38: 164 | J38: 58 | L38: 44 | P38: 1 | U38: 4 | V38: 540
B39: 077 | C39: Journaux d’annonces | F39: 2 | G39: 5 | H39: 6 | I39: 7 | J39: 11 | L39: 41 | M39: 3 | N39: 10 | P39: 7 | Q39: 1 | T39: 1 | V39: 94
B40: 090 | C40: Bibliophilie | F40: 2 | G40: 1 | H40: 1 | J40: 1 | U40: 1 | V40: 6
A41: Total 0XX | D41: 27 | E41: 33 | F41: 466 | G41: 416 | H41: 215 | I41: 577 | J41: 361 | L41: 386 | M41: 16 | N41: 42 | O41: 1 | P41: 317 | Q41: 5 | R41: 2 | T41: 67 | U41: 38 | V41: 2969
A42: 1XX | B42: 100 | C42: Philosophie | D42: 3 | E42: 3 | F42: 35 | G42: 19 | H42: 5 | I42: 31 | J42: 4 | L42: 1 | V42: 101
B43: 130 | C43: Ésotérisme et sciences occultes | D43: 1 | E43: 1 | F43: 12 | G43: 6 | I43: 18 | J43: 5 | L43: 3 | P43: 1 | U43: 1 | V43: 48
B44: 150 | C44: Psychologie et psychanalyse | D44: 4 | E44: 1 | F44: 35 | G44: 35 | H44: 8 | I44: 30 | J44: 14 | L44: 5 | V44: 132
A45: Total 1XX | D45: 8 | E45: 5 | F45: 82 | G45: 60 | H45: 13 | I45: 79 | J45: 23 | L45: 9 | P45: 1 | U45: 1 | V45: 281
A46: 2XX | B46: 200 | C46: Religion | D46: 1 | E46: 2 | F46: 17 | G46: 17 | H46: 8 | I46: 30 | J46: 10 | L46: 9 | V46: 94
B47: 280 | C47: Églises chrétiennes | D47: 9 | E47: 4 | F47: 167 | G47: 128 | H47: 141 | I47: 543 | J47: 235 | L47: 377 | M47: 4 | N47: 12 | O47: 1 | P47: 31 | T47: 1 | U47: 7 | V47: 1660
B48: 294 | C48: Hindouisme, bouddhisme | D48: 1 | F48: 3 | G48: 2 | H48: 1 | I48: 1 | J48: 1 | L48: 2 | V48: 11
B49: 296 | C49: Judaïsme | E49: 1 | F49: 3 | G49: 3 | H49: 1 | I49: 7 | J49: 3 | P49: 1 | V49: 19
B50: 297 | C50: Islam | D50: 1 | F50: 5 | G50: 2 | H50: 1 | I50: 1 | U50: 1 | V50: 11
B51: 299 | C51: Autres religions | E51: 1 | F51: 5 | G51: 3 | H51: 1 | I51: 3 | J51: 3 | L51: 5 | N51: 1 | U51: 1 | V51: 23
A52: Total 2XX | D52: 12 | E52: 8 | F52: 200 | G52: 155 | H52: 153 | I52: 585 | J52: 252 | L52: 393 | M52: 4 | N52: 13 | O52: 1 | P52: 32 | T52: 1 | U52: 9 | V52: 1818
A53: 3XX | B53: 300 | C53: Sciences sociales, sociologie | D53: 5 | E53: 11 | F53: 113 | G53: 57 | H53: 24 | I53: 41 | J53: 15 | L53: 12 | N53: 2 | P53: 3 | U53: 2 | V53: 285
B54: 320 | C54: Sciences politiques et gouvernement | D54: 5 | E54: 6 | F54: 86 | G54: 52 | H54: 14 | I54: 47 | J54: 18 | L54: 17 | M54: 1 | N54: 2 | P54: 7 | T54: 1 | U54: 5 | V54: 261
B55: 323 | C55: Droits civils et politiques, citoyenneté, minorités | D55: 1 | E55: 6 | F55: 49 | G55: 21 | H55: 12 | I55: 19 | J55: 15 | L55: 7 | P55: 2 | R55: 1 | U55: 5 | V55: 138
B56: 324 | C56: Partis et mouvements politiques | D56: 1 | F56: 18 | G56: 25 | H56: 15 | I56: 34 | J56: 31 | L56: 21 | M56: 1 | N56: 2 | P56: 7 | U56: 2 | V56: 157
B57: 327 | C57: Politique internationale | E57: 1 | F57: 16 | G57: 13 | H57: 7 | I57: 16 | J57: 10 | L57: 5 | M57: 1 | N57: 2 | U57: 2 | V57: 73
B58: 330 | C58: Économie (généralités) | D58: 15 | E58: 5 | F58: 145 | G58: 42 | H58: 18 | I58: 35 | J58: 29 | L58: 20 | M58: 1 | N58: 3 | O58: 1 | P58: 2 | R58: 1 | U58: 7 | V58: 324
B59: 331 | C59: Économie du travail, syndicats | D59: 21 | E59: 7 | F59: 148 | G59: 137 | H59: 111 | I59: 427 | J59: 172 | L59: 104 | M59: 1 | N59: 7 | O59: 1 | P59: 6 | U59: 49 | V59: 1191
B60: 332 | C60: Économie financière | D60: 2 | E60: 1 | F60: 91 | G60: 43 | H60: 25 | I60: 47 | J60: 11 | L60: 36 | N60: 4 | P60: 14 | T60: 3 | U60: 2 | V60: 279
B61: 333 | C61: Économie du foncier et de l'énergie | D61: 3 | E61: 7 | F61: 161 | G61: 93 | H61: 52 | I61: 64 | J61: 37 | L61: 24 | N61: 2 | P61: 1 | T61: 1 | U61: 5 | V61: 450
B62: 338 | C62: Économie de la production et de la consommation | D62: 7 | E62: 13 | F62: 234 | G62: 60 | H62: 39 | I62: 88 | J62: 70 | L62: 44 | M62: 1 | N62: 7 | P62: 16 | R62: 1 | U62: 9 | V62: 589
B63: 340 | C63: Droit | D63: 12 | E63: 13 | F63: 171 | G63: 97 | H63: 41 | I63: 121 | J63: 41 | L63: 95 | N63: 9 | P63: 19 | Q63: 1 | T63: 3 | U63: 9 | V63: 632
B64: 350 | C64: Administration publique | D64: 2 | E64: 7 | F64: 93 | G64: 15 | H64: 9 | I64: 20 | J64: 9 | L64: 14 | P64: 1 | U64: 1 | V64: 171
B65: 352 | C65: Administration territoriale | D65: 49 | E65: 41 | F65: 494 | G65: 396 | H65: 173 | I65: 284 | J65: 135 | L65: 98 | M65: 2 | N65: 2 | P65: 2 | U65: 12 | V65: 1688
B66: 355 | C66: Armée, défense | D66: 1 | E66: 8 | F66: 74 | G66: 50 | H66: 22 | I66: 43 | J66: 21 | L66: 8 | M66: 2 | N66: 1 | P66: 5 | U66: 10 | V66: 245
B67: 362 | C67: Problèmes et services sociaux | D67: 9 | E67: 23 | F67: 520 | G67: 316 | H67: 188 | I67: 375 | J67: 86 | L67: 53 | M67: 1 | N67: 2 | P67: 2 | U67: 8 | V67: 1583
B68: 363 | C68: Protection de l’environnement | D68: 15 | E68: 29 | F68: 360 | G68: 200 | H68: 57 | I68: 94 | J68: 33 | L68: 13 | P68: 1 | U68: 3 | V68: 805
B69: 366 | C69: Associations, cercles et clubs divers | D69: 8 | E69: 11 | F69: 139 | G69: 146 | H69: 78 | I69: 111 | J69: 26 | L69: 20 | M69: 1 | N69: 1 | P69: 1 | U69: 4 | V69: 546
B70: 368 | C70: Assurances, sécurité sociale, retraites | D70: 2 | E70: 3 | F70: 123 | G70: 116 | H70: 53 | I70: 90 | J70: 23 | L70: 11 | P70: 1 | U70: 8 | V70: 430
B71: 370 | C71: Éducation, enseignement | D71: 10 | E71: 3 | F71: 88 | G71: 32 | H71: 14 | I71: 23 | J71: 7 | L71: 11 | M71: 1 | N71: 1 | P71: 1 | V71: 191
B72: 371 | C72: Organisation scolaire, pédagogie, parents d’élèves | D72: 1 | E72: 4 | F72: 104 | G72: 28 | H72: 10 | I72: 11 | J72: 11 | L72: 8 | U72: 1 | V72: 178
B73: 373 | C73: Enseignement primaire, enseignement secondaire général et technique, journaux scolaires | D73: 6 | E73: 3 | F73: 120 | G73: 41 | H73: 29 | I73: 12 | J73: 16 | L73: 7 | U73: 2 | V73: 236
B74: 374 | C74: Formation professionnelle et continue | F74: 25 | G74: 9 | H74: 3 | I74: 6 | J74: 4 | L74: 1 | N74: 1 | V74: 49
B75: 378 | C75: Enseignement supérieur | D75: 8 | E75: 20 | F75: 121 | G75: 27 | H75: 28 | I75: 18 | J75: 14 | L75: 16 | M75: 1 | P75: 1 | U75: 2 | V75: 256
B76: 380 | C76: Commerce | E76: 3 | F76: 96 | G76: 27 | H76: 14 | I76: 46 | J76: 32 | L76: 32 | M76: 1 | P76: 2 | U76: 2 | V76: 255
B77: 383 | C77: Moyens de communication | E77: 2 | F77: 18 | G77: 6 | H77: 13 | I77: 6 | J77: 6 | L77: 2 | V77: 53
B78: 385 | C78: Transports | D78: 8 | E78: 5 | F78: 125 | G78: 86 | H78: 25 | I78: 62 | J78: 38 | L78: 25 | M78: 5 | N78: 10 | P78: 8 | U78: 2 | V78: 399
B79: 390 | C79: Ethnologie, anthropologie, folklore | E79: 2 | F79: 11 | G79: 5 | H79: 4 | I79: 11 | J79: 3 | V79: 36
A80: Total 3XX | D80: 191 | E80: 234 | F80: 3743 | G80: 2140 | H80: 1078 | I80: 2151 | J80: 913 | L80: 704 | M80: 20 | N80: 58 | O80: 2 | P80: 102 | Q80: 1 | R80: 3 | T80: 8 | U80: 152 | V80: =SUM(D80:U80) -> 11500
A81: 4XX | B81: 400 | C81: Linguistique | D81: 6 | E81: 1 | F81: 41 | G81: 14 | H81: 1 | I81: 6 | J81: 4 | L81: 3 | N81: 1 | V81: 77
A82: Total 4XX | D82: 6 | E82: 1 | F82: 41 | G82: 14 | H82: 1 | I82: 6 | J82: 4 | L82: 3 | N82: 1 | V82: 77
A83: 5XX | B83: 500 | C83: Sciences (généralités) | D83: 3 | E83: 2 | F83: 32 | G83: 21 | H83: 4 | I83: 29 | J83: 13 | L83: 7 | V83: 111
B84: 510 | C84: Mathématiques | F84: 11 | G84: 3 | H84: 2 | I84: 8 | J84: 1 | L84: 3 | V84: 28
B85: 520 | C85: Astronomie | D85: 1 | F85: 9 | G85: 5 | H85: 3 | I85: 8 | J85: 2 | L85: 1 | P85: 1 | V85: 30
B86: 530 | C86: Physique | D86: 1 | E86: 1 | F86: 5 | G86: 3 | I86: 2 | J86: 2 | L86: 6 | V86: 20
B87: 540 | C87: Chimie, minéralogie | D87: 1 | E87: 1 | F87: 9 | G87: 5 | H87: 1 | I87: 2 | J87: 2 | L87: 2 | P87: 1 | V87: 24
B88: 550 | C88: Sciences de la terre | D88: 5 | E88: 2 | F88: 35 | G88: 7 | H88: 2 | I88: 8 | J88: 1 | L88: 4 | U88: 1 | V88: 65
B89: 560 | C89: Paléontologie | D89: 1 | F89: 3 | I89: 3 | V89: 7
B90: 570 | C90: Sciences de la vie | D90: 2 | E90: 2 | F90: 19 | G90: 7 | H90: 3 | I90: 9 | J90: 5 | L90: 2 | U90: 2 | V90: 51
B91: 580 | C91: Botanique | D91: 3 | E91: 6 | F91: 33 | G91: 15 | H91: 5 | I91: 10 | J91: 1 | L91: 3 | U91: 1 | V91: 77
B92: 590 | C92: Zoologie | D92: 8 | E92: 3 | F92: 48 | G92: 29 | H92: 11 | I92: 23 | J92: 9 | L92: 1 | N92: 1 | U92: 1 | V92: 134
A93: Total 5XX | D93: 25 | E93: 17 | F93: 204 | G93: 95 | H93: 31 | I93: 102 | J93: 36 | L93: 29 | N93: 1 | P93: 2 | U93: 5 | V93: 547
A94: 6XX | B94: 600 | C94: Sciences appliquées, technologie | E94: 2 | F94: 12 | G94: 6 | H94: 5 | I94: 11 | J94: 6 | L94: 5 | V94: 47
B95: 610 | C95: Médecine, santé | D95: 11 | E95: 41 | F95: 324 | G95: 207 | H95: 107 | I95: 294 | J95: 163 | L95: 96 | N95: 6 | P95: 3 | T95: 1 | U95: 16 | V95: 1269
B96: 620 | C96: Sciences de l'ingénieur | D96: 6 | E96: 12 | F96: 88 | G96: 59 | H96: 21 | I96: 52 | J96: 46 | L96: 32 | M96: 2 | N96: 1 | P96: 3 | U96: 15 | V96: 337
B97: 630 | C97: Agriculture, élevage | D97: 21 | E97: 21 | F97: 435 | G97: 165 | H97: 93 | I97: 197 | J97: 69 | L97: 88 | N97: 4 | P97: 31 | U97: 8 | V97: 1132
B98: 640 | C98: Économie domestique/vie pratique, hôtellerie | D98: 6 | E98: 8 | F98: 109 | G98: 75 | H98: 19 | I98: 168 | J98: 90 | L98: 44 | N98: 2 | P98: 7 | U98: 2 | V98: 530
B99: 650 | C99: Gestion et organisation des entreprises, publicité | D99: 4 | E99: 8 | F99: 115 | G99: 61 | H99: 21 | I99: 75 | J99: 28 | L99: 44 | M99: 1 | N99: 6 | U99: 2 | V99: 365
B100: 660 | C100: Génie chimique et technologies connexes | E100: 1 | F100: 15 | G100: 12 | H100: 3 | I100: 8 | J100: 4 | L100: 2 | V100: 45
B101: 670 | C101: Industries et métiers divers | D101: 2 | E101: 9 | F101: 50 | G101: 35 | H101: 10 | I101: 41 | J101: 42 | L101: 37 | P101: 4 | U101: 1 | V101: 231
B102: 690 | C102: Bâtiment | D102: 4 | E102: 10 | F102: 60 | G102: 28 | H102: 17 | I102: 34 | J102: 30 | L102: 10 | P102: 5 | V102: 198
A103: Total 6XX | D103: 54 | E103: 112 | F103: 1208 | G103: 648 | H103: 296 | I103: 880 | J103: 478 | L103: 358 | M103: 3 | N103: 19 | P103: 53 | T103: 1 | U103: 44 | V103: =SUM(V94:V102) -> 4154
A104: 7XX | B104: 700 | C104: Arts (généralités) | D104: 8 | E104: 26 | F104: 181 | G104: 101 | H104: 26 | I104: 48 | J104: 69 | L104: 33 | N104: 2 | P104: 1 | U104: 2 | V104: 497
B105: 710 | C105: Urbanisme, aménagement du territoire | D105: 5 | E105: 7 | F105: 78 | G105: 41 | H105: 11 | I105: 20 | J105: 6 | L105: 6 | N105: 2 | U105: 4 | V105: 180
B106: 720 | C106: Architecture | D106: 4 | E106: 22 | F106: 59 | G106: 21 | H106: 1 | I106: 19 | J106: 13 | L106: 4 | U106: 1 | V106: 144
B107: 730 | C107: Arts plastiques, sculpture | D107: 1 | E107: 3 | F107: 18 | G107: 6 | H107: 1 | I107: 3 | J107: 2 | L107: 2 | U107: 2 | V107: 38
B108: 740 | C108: Dessin, arts décoratifs, artisanat d’art, bandes dessinées (histoire et critique) | D108: 1 | E108: 17 | F108: 59 | G108: 44 | H108: 13 | I108: 97 | J108: 53 | L108: 7 | N108: 2 | P108: 2 | U108: 1 | V108: 296
B109: 750 | C109: Peinture, arts graphiques | D109: 2 | E109: 8 | F109: 30 | G109: 12 | H109: 4 | I109: 17 | J109: 7 | M109: 1 | U109: 2 | V109: 83
B110: 770 | C110: Photographie | D110: 1 | E110: 6 | F110: 43 | G110: 30 | H110: 5 | I110: 12 | J110: 13 | L110: 3 | V110: 113
B111: 778 | C111: Érotisme, pornographie | F111: 5 | G111: 1 | H111: 1 | I111: 5 | J111: 5 | L111: 1 | V111: 18
B112: 780 | C112: Musique | D112: 7 | E112: 7 | F112: 54 | G112: 33 | H112: 7 | I112: 42 | J112: 22 | L112: 12 | T112: 1 | U112: 3 | V112: 188
B113: 790 | C113: Spectacles (généralités), loisirs | D113: 2 | E113: 3 | F113: 34 | G113: 15 | H113: 8 | I113: 36 | J113: 41 | L113: 30 | M113: 3 | N113: 6 | P113: 11 | T113: 1 | U113: 1 | V113: 191
B114: 791 | C114: Audiovisuel | D114: 1 | E114: 8 | F114: 79 | G114: 25 | H114: 7 | I114: 24 | J114: 28 | L114: 21 | M114: 1 | N114: 2 | P114: 10 | T114: 2 | V114: 208
B115: 792 | C115: Représentations scéniques | D115: 2 | E115: 5 | F115: 19 | G115: 15 | H115: 4 | I115: 7 | J115: 9 | L115: 2 | N115: 1 | U115: 1 | V115: 65
B116: 793 | C116: Jeux et divertissements d'intérieur | D116: 2 | E116: 2 | F116: 63 | G116: 35 | H116: 24 | I116: 182 | J116: 267 | L116: 37 | M116: 7 | N116: 6 | P116: 8 | U116: 1 | V116: 634
B117: 796 | C117: Sports, activités de plein air | D117: 16 | E117: 14 | F117: 294 | G117: 115 | H117: 57 | I117: 195 | J117: 155 | L117: 84 | M117: 4 | N117: 8 | P117: 15 | T117: 7 | U117: 6 | V117: 970
A118: Total 7XX | D118: 52 | E118: 128 | F118: 1016 | G118: 494 | H118: 169 | I118: 707 | J118: 690 | L118: 242 | M118: 16 | N118: 29 | P118: 47 | T118: 11 | U118: 24 | V118: 3625
A119: 8XX | B119: 800 | C119: Littérature générale, histoire et critique littéraires, revues littéraires | D119: 24 | E119: 33 | F119: 335 | G119: 146 | H119: 33 | I119: 63 | J119: 13 | L119: 15 | N119: 1 | T119: 1 | U119: 9 | V119: 673
B120: 801 | C120: Poésie | D120: 1 | E120: 7 | F120: 60 | G120: 16 | H120: 12 | I120: 8 | J120: 1 | L120: 4 | U120: 1 | V120: 110
B121: 802 | C121: Théâtre | F121: 3 | G121: 2 | V121: 5
B122: 803 | C122: Roman et fiction romanesque | F122: 5 | V122: 5
B123: 804 | C123: Essais littéraires et écrits divers | F123: 6 | G123: 5 | I123: 1 | J123: 2 | L123: 2 | V123: 16
B124: 805 | C124: Bandes dessinées | D124: 5 | E124: 4 | F124: 47 | G124: 22 | H124: 5 | I124: 11 | J124: 11 | L124: 16 | U124: 1 | V124: 122
B125: 809 | C125: Littérature pour la jeunesse | F125: 7 | G125: 4 | I125: 6 | J125: 2 | L125: 3 | P125: 1 | V125: 23
A126: Total 8XX | D126: 30 | E126: 44 | F126: 463 | G126: 195 | H126: 50 | I126: 89 | J126: 29 | L126: 40 | N126: 1 | P126: 1 | T126: 1 | U126: 11 | V126: 954
A127: 9XX | B127: 900 | C127: Histoire et géographie (généralités) | D127: 10 | E127: 11 | F127: 76 | G127: 32 | H127: 9 | I127: 54 | J127: 13 | L127: 2 | U127: 4 | V127: 211
B128: 910 | C128: Géographie, voyages, tourisme | D128: 4 | E128: 6 | F128: 137 | G128: 47 | H128: 10 | I128: 78 | J128: 23 | L128: 14 | M128: 1 | N128: 2 | U128: 2 | V128: 324
B129: 920 | C129: Biographies | E129: 3 | F129: 2 | I129: 1 | V129: 6
B130: 929 | C130: GénéalogieHistoire ancienne, archéologie | D130: 5 | E130: 2 | F130: 28 | G130: 30 | H130: 18 | I130: 60 | J130: 1 | L130: 3 | U130: 2 | V130: 149
B131: 930 | C131: Histoire ancienne, archéologie, préhistoire | D131: 15 | E131: 12 | F131: 87 | G131: 36 | H131: 2 | I131: 9 | J131: 3 | L131: 1 | V131: 165
B132: 940 | C132: Histoire médiévale, moderne et contemporaine | D132: 3 | E132: 9 | F132: 59 | G132: 43 | H132: 10 | I132: 33 | J132: 7 | L132: 2 | N132: 1 | P132: 1 | U132: 2 | V132: 170
B133: 944 | C133: Histoire de France, histoire locale | D133: 41 | E133: 60 | F133: 637 | G133: 230 | H133: 44 | I133: 100 | J133: 18 | L133: 10 | U133: 7 | V133: 1147
A134: Total 9XX | D134: 78 | E134: 103 | F134: 1026 | G134: 418 | H134: 93 | I134: 335 | J134: 65 | L134: 32 | M134: 1 | N134: 3 | P134: 1 | U134: 17 | V134: 2172
A135: Non renseigné | D135: 57 | E135: 80 | F135: 1209 | G135: 810 | H135: 408 | I135: 1345 | J135: 694 | L135: 882 | M135: 18 | N135: 76 | O135: 1 | P135: 384 | Q135: 10 | T135: 122 | U135: 47 | V135: 6143
A136: Total général
A138: 2017 | F138: Total
A139: Grandes classes | B139: Indices | C139: Intitulés | D139: 01-Triennal | E139: 02-Biennal | F139: 03-Annuel | G139: 04-Semestriel | H139: 05-3 fois par an | I139: 06-Trimestriel | J139: 07-Bimestriel | K139: 08-Septembre à juin | L139: 09-Mensuel | M139: 10-Bimensuel, ttes les 2 semaines | N139: 11-septembre à juin | O139: 12-3 fois par mois | P139: 13-Hebdomadaire | Q139: 14-Semi-hebdomadaire | R139: 15-3 fois par semaine | S139: 16-5 jours par semaine | T139: 17-Quotidien | U139: 18-Irrégulier, Autres périodes | V139: Total général
A140: 0XX | B140: 000 | C140: Généralités, collections encyclopédiques | D140: 2 | F140: 20 | G140: 9 | H140: 9 | I140: 9 | J140: 18 | L140: 17 | P140: 5 | T140: 2 | U140: 1 | V140: 92
B141: 001 | C141: Culture générale | D141: 1 | E141: 2 | F141: 35 | G141: 15 | H141: 5 | I141: 12 | J141: 3 | L141: 8 | V141: 81
B142: 004 | C142: Informatique | E142: 1 | F142: 26 | G142: 14 | H142: 5 | I142: 30 | J142: 23 | L142: 13 | N142: 1 | T142: 2 | U142: 4 | V142: 119
B143: 010 | C143: Bibliographie, catalogues | D143: 2 | E143: 1 | F143: 8 | G143: 3 | H143: 1 | L143: 1 | U143: 1 | V143: 17
B144: 020 | C144: Sciences de l'information, lecture | D144: 1 | E144: 2 | F144: 24 | G144: 18 | H144: 9 | I144: 13 | J144: 5 | L144: 4 | V144: 76
B145: 060 | C145: Instituts de recherche, archives, musées | D145: 12 | E145: 9 | F145: 53 | G145: 29 | H145: 9 | I145: 10 | J145: 3 | L145: 5 | U145: 1 | V145: 131
B146: 070 | C146: Édition, médias, librairie | D146: 4 | E146: 4 | F146: 56 | G146: 31 | H146: 16 | I146: 35 | J146: 23 | L146: 39 | M146: 1 | N146: 6 | O146: 1 | P146: 73 | Q146: 1 | T146: 17 | U146: 4 | V146: 311
B147: 071 | C147: Magazines généraux | E147: 5 | F147: 69 | G147: 56 | H147: 26 | I147: 100 | J147: 108 | L147: 83 | M147: 4 | N147: 9 | P147: 31 | R147: 1 | T147: 2 | U147: 8 | V147: 502
B148: 072 | C148: Publications féminines, publications masculines | E148: 2 | F148: 16 | G148: 24 | H148: 11 | I148: 53 | J148: 40 | L148: 45 | P148: 7 | U148: 4 | V148: 202
B149: 073 | C149: Presse et collections documentaires pour enfants et adolescents | E149: 1 | F149: 46 | G149: 39 | H149: 18 | I149: 104 | J149: 66 | L149: 40 | M149: 3 | N149: 6 | P149: 4 | U149: 4 | V149: 331
B150: 074 | C150: Presse nationale et locale d’information | D150: 1 | F150: 18 | G150: 9 | H150: 5 | I150: 20 | J150: 36 | L150: 56 | M150: 3 | N150: 8 | P150: 194 | Q150: 3 | R150: 2 | T150: 41 | U150: 4 | V150: 400
B151: 075 | C151: Presse parallèle, fanzines | D151: 3 | E151: 5 | F151: 30 | G151: 15 | H151: 6 | I151: 6 | J151: 4 | L151: 10 | N151: 1 | U151: 1 | V151: 81
B152: 076 | C152: Journaux internes d’entreprise | D152: 1 | F152: 43 | G152: 148 | H152: 120 | I152: 173 | J152: 61 | L152: 53 | P152: 1 | U152: 5 | V152: 605
B153: 077 | C153: Journaux d’annonces | F153: 2 | G153: 4 | H153: 6 | I153: 10 | J153: 12 | L153: 44 | M153: 3 | N153: 11 | P153: 7 | Q153: 1 | T153: 1 | V153: 101
B154: 090 | C154: Bibliophilie | F154: 1 | G154: 2 | H154: 1 | J154: 1 | U154: 1 | V154: 6
A155: Total 0XX | D155: 27 | E155: 32 | F155: 447 | G155: 416 | H155: 247 | I155: 575 | J155: 403 | L155: 418 | M155: 14 | N155: 42 | O155: 1 | P155: 322 | Q155: 5 | R155: 3 | T155: 65 | U155: 38 | V155: 3055
A156: 1XX | B156: 100 | C156: Philosophie | D156: 4 | E156: 4 | F156: 33 | G156: 19 | H156: 4 | I156: 27 | J156: 5 | L156: 1 | V156: 97
B157: 130 | C157: Ésotérisme et sciences occultes | D157: 1 | F157: 12 | G157: 4 | H157: 1 | I157: 20 | J157: 3 | L157: 3 | P157: 1 | U157: 1 | V157: 46
B158: 150 | C158: Psychologie et psychanalyse | D158: 5 | E158: 1 | F158: 36 | G158: 33 | H158: 10 | I158: 27 | J158: 12 | L158: 5 | V158: 129
A159: Total 1XX | D159: 10 | E159: 5 | F159: 81 | G159: 56 | H159: 15 | I159: 74 | J159: 20 | L159: 9 | P159: 1 | U159: 1 | V159: 272
A160: 2XX | B160: 200 | C160: Religion | D160: 2 | E160: 2 | F160: 19 | G160: 18 | H160: 10 | I160: 28 | J160: 10 | L160: 9 | V160: 98
B161: 280 | C161: Églises chrétiennes | D161: 10 | E161: 4 | F161: 158 | G161: 126 | H161: 135 | I161: 551 | J161: 245 | L161: 391 | M161: 3 | N161: 16 | O161: 2 | P161: 29 | T161: 1 | U161: 6 | V161: 1677
B162: 294 | C162: Hindouisme, bouddhisme | D162: 1 | F162: 3 | G162: 2 | H162: 1 | I162: 1 | J162: 1 | L162: 2 | V162: 11
B163: 296 | C163: Judaïsme | D163: 1 | F163: 4 | G163: 2 | H163: 1 | I163: 6 | J163: 3 | N163: 1 | P163: 1 | V163: 19
B164: 297 | C164: Islam | F164: 4 | G164: 3 | H164: 1 | I164: 2 | U164: 1 | V164: 11
B165: 299 | C165: Autres religions | E165: 1 | F165: 5 | G165: 3 | H165: 1 | I165: 4 | J165: 3 | L165: 4 | N165: 1 | U165: 1 | V165: 23
A166: Total 2XX | D166: 14 | E166: 7 | F166: 193 | G166: 154 | H166: 149 | I166: 592 | J166: 262 | L166: 406 | M166: 3 | N166: 18 | O166: 2 | P166: 30 | T166: 1 | U166: 8 | V166: 1839
A167: 3XX | B167: 300 | C167: Sciences sociales, sociologie | D167: 5 | E167: 14 | F167: 98 | G167: 70 | H167: 24 | I167: 43 | J167: 18 | L167: 13 | N167: 2 | P167: 1 | U167: 2 | V167: 290
B168: 320 | C168: Sciences politiques et gouvernement | D168: 6 | E168: 8 | F168: 76 | G168: 44 | H168: 18 | I168: 48 | J168: 17 | L168: 19 | M168: 2 | N168: 1 | P168: 6 | T168: 1 | U168: 8 | V168: 254
B169: 323 | C169: Droits civils et politiques, citoyenneté, minorités | D169: 1 | E169: 6 | F169: 38 | G169: 18 | H169: 11 | I169: 19 | J169: 14 | L169: 7 | P169: 2 | R169: 1 | U169: 5 | V169: 122
B170: 324 | C170: Partis et mouvements politiques | D170: 2 | F170: 26 | G170: 27 | H170: 20 | I170: 38 | J170: 33 | L170: 25 | M170: 1 | N170: 3 | P170: 8 | U170: 3 | V170: 186
B171: 327 | C171: Politique internationale | E171: 1 | F171: 14 | G171: 17 | H171: 6 | I171: 21 | J171: 9 | L171: 6 | M171: 2 | N171: 2 | U171: 3 | V171: 81
B172: 330 | C172: Économie (généralités) | D172: 13 | E172: 6 | F172: 182 | G172: 43 | H172: 18 | I172: 42 | J172: 33 | L172: 26 | N172: 4 | O172: 1 | P172: 5 | R172: 1 | U172: 8 | V172: 382
B173: 331 | C173: Économie du travail, syndicats | D173: 22 | E173: 7 | F173: 151 | G173: 143 | H173: 117 | I173: 423 | J173: 185 | L173: 115 | N173: 8 | O173: 1 | P173: 7 | U173: 58 | V173: 1237
B174: 332 | C174: Économie financière | D174: 1 | E174: 3 | F174: 93 | G174: 46 | H174: 29 | I174: 57 | J174: 15 | L174: 36 | N174: 5 | P174: 14 | T174: 3 | U174: 2 | V174: 304
B175: 333 | C175: Économie du foncier et de l'énergie | D175: 2 | E175: 10 | F175: 169 | G175: 90 | H175: 57 | I175: 75 | J175: 37 | L175: 33 | N175: 2 | P175: 3 | T175: 2 | U175: 5 | V175: 485
B176: 338 | C176: Économie de la production et de la consommation | D176: 7 | E176: 15 | F176: 219 | G176: 57 | H176: 38 | I176: 93 | J176: 68 | L176: 50 | M176: 1 | N176: 8 | P176: 16 | R176: 1 | U176: 9 | V176: 582
B177: 340 | C177: Droit | D177: 14 | E177: 14 | F177: 176 | G177: 97 | H177: 48 | I177: 126 | J177: 42 | L177: 101 | N177: 9 | P177: 19 | Q177: 1 | T177: 3 | U177: 8 | V177: 658
B178: 350 | C178: Administration publique | D178: 4 | E178: 8 | F178: 95 | G178: 18 | H178: 8 | I178: 28 | J178: 8 | L178: 14 | N178: 2 | P178: 1 | U178: 1 | V178: 187
B179: 352 | C179: Administration territoriale | D179: 49 | E179: 44 | F179: 695 | G179: 431 | H179: 197 | I179: 345 | J179: 178 | L179: 228 | M179: 15 | N179: 4 | O179: 7 | P179: 11 | Q179: 1 | T179: 1 | U179: 14 | V179: 2220
B180: 355 | C180: Armée, défense | D180: 1 | E180: 8 | F180: 79 | G180: 53 | H180: 22 | I180: 47 | J180: 21 | L180: 11 | M180: 2 | N180: 1 | P180: 4 | U180: 10 | V180: 259
B181: 362 | C181: Problèmes et services sociaux | D181: 14 | E181: 28 | F181: 399 | G181: 339 | H181: 195 | I181: 389 | J181: 92 | L181: 50 | N181: 2 | P181: 1 | U181: 7 | V181: 1516
B182: 363 | C182: Protection de l’environnement | D182: 15 | E182: 27 | F182: 361 | G182: 218 | H182: 53 | I182: 94 | J182: 37 | L182: 13 | P182: 1 | U182: 3 | V182: 822
B183: 366 | C183: Associations, cercles et clubs divers | D183: 9 | E183: 12 | F183: 135 | G183: 137 | H183: 81 | I183: 130 | J183: 30 | L183: 28 | N183: 1 | P183: 1 | U183: 3 | V183: 567
B184: 368 | C184: Assurances, sécurité sociale, retraites | D184: 2 | E184: 5 | F184: 132 | G184: 105 | H184: 62 | I184: 87 | J184: 19 | L184: 15 | P184: 1 | Q184: 1 | U184: 8 | V184: 437
B185: 370 | C185: Éducation, enseignement | D185: 11 | E185: 2 | F185: 108 | G185: 31 | H185: 15 | I185: 22 | J185: 9 | L185: 12 | M185: 1 | N185: 2 | P185: 1 | V185: 214
B186: 371 | C186: Organisation scolaire, pédagogie, parents d’élèves | D186: 1 | E186: 4 | F186: 111 | G186: 31 | H186: 11 | I186: 15 | J186: 12 | L186: 9 | U186: 2 | V186: 196
B187: 373 | C187: Enseignement primaire, enseignement secondaire général et technique, journaux scolaires | D187: 7 | E187: 4 | F187: 127 | G187: 33 | H187: 22 | I187: 20 | J187: 15 | L187: 12 | P187: 1 | U187: 2 | V187: 243
B188: 374 | C188: Formation professionnelle et continue | F188: 21 | G188: 10 | H188: 5 | I188: 9 | J188: 3 | L188: 1 | N188: 1 | V188: 50
B189: 378 | C189: Enseignement supérieur | D189: 9 | E189: 17 | F189: 119 | G189: 28 | H189: 27 | I189: 21 | J189: 14 | L189: 16 | M189: 1 | N189: 1 | P189: 1 | U189: 2 | V189: 256
B190: 380 | C190: Commerce | D190: 1 | E190: 4 | F190: 97 | G190: 23 | H190: 12 | I190: 39 | J190: 36 | L190: 31 | M190: 1 | P190: 3 | U190: 3 | V190: 250
B191: 383 | C191: Moyens de communication | D191: 1 | E191: 1 | F191: 16 | G191: 8 | H191: 4 | I191: 19 | J191: 9 | L191: 3 | V191: 61
B192: 385 | C192: Transports | D192: 9 | E192: 7 | F192: 121 | G192: 109 | H192: 24 | I192: 68 | J192: 42 | L192: 26 | M192: 4 | N192: 8 | P192: 5 | U192: 2 | V192: 425
B193: 390 | C193: Ethnologie, anthropologie, folklore | E193: 2 | F193: 12 | G193: 6 | H193: 4 | I193: 10 | J193: 4 | V193: 38
A194: Total 3XX | D194: 206 | E194: 257 | F194: 3870 | G194: 2232 | H194: 1128 | I194: 2328 | J194: 1000 | L194: 900 | M194: 30 | N194: 66 | O194: 9 | P194: 112 | Q194: 3 | R194: 3 | T194: 10 | U194: 168 | V194: 12322
A195: 4XX | B195: 400 | C195: Linguistique | D195: 4 | E195: 1 | F195: 42 | G195: 13 | I195: 5 | J195: 2 | L195: 4 | N195: 1 | V195: 72
A196: Total 4XX | D196: 4 | E196: 1 | F196: 42 | G196: 13 | I196: 5 | J196: 2 | L196: 4 | N196: 1 | V196: 72
A197: 5XX | B197: 500 | C197: Sciences (généralités) | D197: 3 | E197: 3 | F197: 34 | G197: 18 | H197: 6 | I197: 24 | J197: 16 | L197: 6 | V197: 110
B198: 510 | C198: Mathématiques | F198: 11 | G198: 3 | H198: 2 | I198: 7 | J198: 1 | L198: 2 | V198: 26
B199: 520 | C199: Astronomie | D199: 1 | F199: 8 | G199: 6 | H199: 3 | I199: 6 | J199: 2 | L199: 1 | P199: 1 | V199: 28
B200: 530 | C200: Physique | D200: 2 | E200: 1 | F200: 6 | G200: 4 | I200: 1 | J200: 2 | L200: 6 | V200: 22
B201: 540 | C201: Chimie, minéralogie | D201: 1 | E201: 1 | F201: 8 | G201: 5 | I201: 3 | J201: 3 | L201: 2 | P201: 1 | V201: 24
B202: 550 | C202: Sciences de la terre | D202: 4 | E202: 2 | F202: 36 | G202: 8 | H202: 2 | I202: 8 | J202: 1 | L202: 7 | U202: 1 | V202: 69
... 389 more rows

Sheet V_éd pub
A1: Nombre de titres vivants Edition publique
A2: Edition publique | B2: 2016 | C2: 2017 | D2: 2018
A3: Hors Edition publique | B3: 29507 | C3: 28949 | D3: 28233
A4: Edition publique | B4: 7140 | C4: 6784 | D4: 5968
A5: Non renseigné | B5: 40 | C5: 39 | D5: 39
A6: Total | B6: 36687 | C6: 35772 | D6: 34240
A7: Source : Entrées dépôt légal - logiciel de bulletinage
A9: Nombre de titres vivants Edition publique par périodicité
B10: 2016 | D10: 2017 | F10: 2018
A11: Périodicité | B11: Hors Publication officielle | C11: Publication officielle | D11: Hors Publication officielle | E11: Publication officielle | F11: Hors Publication officielle | G11: Publication officielle
A12: Triennal | B12: 474 | C12: 127 | D12: 451 | E12: 118 | F12: 420 | G12: 119
A13: Biennal | B13: 683 | C13: 179 | D13: 629 | E13: 157 | F13: 613 | G13: 151
A14: Annuel | B14: 7229 | C14: 2838 | D14: 7147 | E14: 2693 | F14: 7239 | G14: 2406
A15: Semestriel | B15: 4444 | C15: 1312 | D15: 4348 | E15: 1195 | F15: 4330 | G15: 1107
A16: 3 fois par an | B16: 2108 | C16: 546 | D16: 2139 | E16: 557 | F16: 1982 | G16: 524
A17: Trimestriel | B17: 6460 | C17: 962 | D17: 6212 | E17: 895 | F17: 6103 | G17: 753
A18: Bimestriel | B18: 3291 | C18: 502 | D18: 3331 | E18: 497 | F18: 3105 | G18: 438
A19: Mensuel | B19: 3 | D19: 2893 | E19: 519 | F19: 2715 | G19: 357
A20: Bimensuel, ttes les 2 semaines | B20: 3031 | C20: 537 | D20: 296 | E20: 46 | F20: 289 | G20: 31
A21: 3 fois par mois | B21: 256 | C21: 28 | D21: 9 | E21: 9 | F21: 4 | G21: 1
A22: Hebdomadaire | B22: 8 | C22: 10 | D22: 953 | E22: 29 | F22: 921 | G22: 15
A23: Semi-hebdomadaire | B23: 960 | C23: 28 | D23: 18 | E23: 2 | F23: 15 | G23: 1
A24: 3 fois par semaine | B24: 18 | C24: 3 | D24: 3 | E24: 2 | F24: 2 | G24: 2
A25: 5 jours par semaine | B25: 4 | C25: 3 | D25: 0 | E25: 0 | F25: 0 | G25: 0
A26: Quotidien | B26: 218 | C26: 8 | D26: 212 | E26: 6 | F26: 207 | G26: 3
A27: Irrégulier, Autres périodes | B27: 320 | C27: 57 | D27: 308 | E27: 59 | F27: 288 | G27: 60
A28: Total | B28: 29507 | C28: 7140 | D28: 28949 | E28: 6784 | F28: 28233 | G28: 5968
A30: Nombre de titres vivants Edition publique par thématique
D31: 2016 | F31: 2017 | H31: 2018
B32: Indices | C32: Intitulés | D32: Hors Edition publique | E32: Edition publique | F32: Hors Edition publique | G32: Edition publique | H32: Hors Edition publique | I32: Edition publique
A33: 0XX | B33: 000 | C33: Généralités, collections encyclopédiques | D33: 89 | E33: 5 | F33: 85 | G33: 5 | H33: 81 | I33: 5
B34: 001 | C34: Culture générale | D34: 66 | E34: 7 | F34: 74 | G34: 7 | H34: 82 | I34: 8
B35: 004 | C35: Informatique | D35: 129 | E35: 5 | F35: 115 | G35: 4 | H35: 106 | I35: 4
B36: 010 | C36: Bibliographie, catalogues | D36: 14 | E36: 4 | F36: 13 | G36: 4 | H36: 14 | I36: 4
B37: 020 | C37: Sciences de l'information, lecture | D37: 39 | E37: 46 | F37: 38 | G37: 38 | H37: 35 | I37: 33
B38: 060 | C38: Instituts de recherche, archives, musées | D38: 93 | E38: 38 | F38: 93 | G38: 38 | H38: 100 | I38: 39
B39: 070 | C39: Édition, médias, librairie | D39: 313 | E39: 12 | F39: 299 | G39: 12 | H39: 296 | I39: 12
B40: 071 | C40: Magazines généraux | D40: 450 | E40: 16 | F40: 485 | G40: 13 | H40: 474 | I40: 12
B41: 072 | C41: Publications féminines, publications masculines | D41: 204 | E41: 1 | F41: 201 | G41: 1 | H41: 205 | I41: 1
B42: 073 | C42: Presse et collections documentaires pour enfants et adolescents | D42: 309 | E42: 13 | F42: 320 | G42: 11 | H42: 316 | I42: 11
B43: 074 | C43: Presse nationale et locale d’information | D43: 410 | E43: 4 | F43: 397 | G43: 3 | H43: 386 | I43: 2
B44: 075 | C44: Presse parallèle, fanzines | D44: 79 | F44: 81 | H44: 98
B45: 076 | C45: Journaux internes d’entreprise | D45: 447 | E45: 212 | F45: 424 | G45: 177 | H45: 370 | I45: 166
B46: 077 | C46: Journaux d’annonces | D46: 103 | E46: 3 | F46: 99 | G46: 2 | H46: 93 | I46: 1
B47: 090 | C47: Bibliophilie | D47: 7 | F47: 6 | H47: 6
A48: Total 0XX | D48: 2752 | E48: 366 | F48: 2730 | G48: 315 | H48: 2662 | I48: 298
A49: 1XX | B49: 100 | C49: Philosophie | D49: 92 | E49: 7 | F49: 91 | G49: 6 | H49: 95 | I49: 6
B50: 130 | C50: Ésotérisme et sciences occultes | D50: 42 | F50: 46 | H50: 48
B51: 150 | C51: Psychologie et psychanalyse | D51: 127 | E51: 3 | F51: 126 | G51: 3 | H51: 130 | I51: 2
A52: Total 1XX | D52: 261 | E52: 10 | F52: 263 | G52: 9 | H52: 273 | I52: 8
A53: 2XX | B53: 200 | C53: Religion | D53: 102 | E53: 1 | F53: 97 | G53: 1 | H53: 93 | I53: 1
B54: 280 | C54: Églises chrétiennes | D54: 1651 | F54: 1674 | H54: 1656 | I54: 1
B55: 294 | C55: Hindouisme, bouddhisme | D55: 11 | F55: 11 | H55: 11
B56: 296 | C56: Judaïsme | D56: 24 | F56: 19 | H56: 19
B57: 297 | C57: Islam | D57: 11 | F57: 11 | H57: 11
B58: 299 | C58: Autres religions | D58: 21 | F58: 22 | H58: 22
A59: Total 2XX | D59: 1820 | E59: 1 | F59: 1834 | G59: 1 | H59: 1812 | I59: 2
A60: 3XX | B60: 300 | C60: Sciences sociales, sociologie | D60: 244 | E60: 56 | F60: 237 | G60: 53 | H60: 234 | I60: 51
B61: 320 | C61: Sciences politiques et gouvernement | D61: 251 | E61: 28 | F61: 229 | G61: 25 | H61: 214 | I61: 47
B62: 323 | C62: Droits civils et politiques, citoyenneté, minorités | D62: 112 | E62: 16 | F62: 105 | G62: 15 | H62: 118 | I62: 18
B63: 324 | C63: Partis et mouvements politiques | D63: 211 | E63: 1 | F63: 185 | G63: 1 | H63: 157
B64: 327 | C64: Politique internationale | D64: 68 | E64: 5 | F64: 77 | G64: 4 | H64: 67 | I64: 6
B65: 330 | C65: Économie (généralités) | D65: 204 | E65: 152 | F65: 207 | G65: 175 | H65: 170 | I65: 154
B66: 331 | C66: Économie du travail, syndicats | D66: 1201 | E66: 88 | F66: 1153 | G66: 84 | H66: 1109 | I66: 82
B67: 332 | C67: Économie financière | D67: 270 | E67: 41 | F67: 269 | G67: 35 | H67: 246 | I67: 33
B68: 333 | C68: Économie du foncier et de l'énergie | D68: 305 | E68: 168 | F68: 317 | G68: 168 | H68: 291 | I68: 159
B69: 338 | C69: Économie de la production et de la consommation | D69: 367 | E69: 235 | F69: 351 | G69: 229 | H69: 361 | I69: 226
B70: 340 | C70: Droit | D70: 579 | E70: 86 | F70: 580 | G70: 78 | H70: 551 | I70: 80
B71: 350 | C71: Administration publique | D71: 102 | E71: 100 | F71: 104 | G71: 83 | H71: 100 | I71: 71
B72: 352 | C72: Administration territoriale | D72: 492 | E72: 1827 | F72: 423 | G72: 1797 | H72: 381 | I72: 1307
B73: 355 | C73: Armée, défense | D73: 184 | E73: 58 | F73: 196 | G73: 63 | H73: 192 | I73: 53
B74: 362 | C74: Problèmes et services sociaux | D74: 1298 | E74: 151 | F74: 1379 | G74: 137 | H74: 1457 | I74: 126
B75: 363 | C75: Protection de l’environnement | D75: 460 | E75: 417 | F75: 444 | G75: 378 | H75: 423 | I75: 382
B76: 366 | C76: Associations, cercles et clubs divers | D76: 538 | E76: 25 | F76: 539 | G76: 28 | H76: 519 | I76: 27
B77: 368 | C77: Assurances, sécurité sociale, retraites | D77: 423 | E77: 41 | F77: 400 | G77: 37 | H77: 398 | I77: 32
B78: 370 | C78: Éducation, enseignement | D78: 173 | E78: 66 | F78: 156 | G78: 58 | H78: 145 | I78: 46
B79: 371 | C79: Organisation scolaire, pédagogie, parents d’élèves | D79: 129 | E79: 65 | F79: 118 | G79: 78 | H79: 108 | I79: 70
B80: 373 | C80: Enseignement primaire, enseignement secondaire général et technique, journaux scolaires | D80: 173 | E80: 71 | F80: 177 | G80: 66 | H80: 183 | I80: 53
B81: 374 | C81: Formation professionnelle et continue | D81: 45 | E81: 16 | F81: 38 | G81: 12 | H81: 37 | I81: 12
B82: 378 | C82: Enseignement supérieur | D82: 179 | E82: 96 | F82: 169 | G82: 87 | H82: 172 | I82: 84
B83: 380 | C83: Commerce | D83: 208 | E83: 53 | F83: 196 | G83: 54 | H83: 209 | I83: 46
B84: 383 | C84: Moyens de communication | D84: 52 | E84: 12 | F84: 52 | G84: 9 | H84: 45 | I84: 8
B85: 385 | C85: Transports | D85: 312 | E85: 125 | F85: 304 | G85: 120 | H85: 304 | I85: 94
B86: 390 | C86: Ethnologie, anthropologie, folklore | D86: 37 | E86: 3 | F86: 37 | G86: 1 | H86: 35 | I86: 1
A87: Total 3XX | D87: 8617 | E87: 4002 | F87: 8442 | G87: 3875 | H87: 8226 | I87: 3268
A88: 4XX | B88: 400 | C88: Linguistique | D88: 64 | E88: 15 | F88: 58 | G88: 14 | H88: 63 | I88: 14
A89: Total 4XX | D89: 64 | E89: 15 | F89: 58 | G89: 14 | H89: 63 | I89: 14
A90: 5XX | B90: 500 | C90: Sciences (généralités) | D90: 95 | E90: 15 | F90: 93 | G90: 17 | H90: 94 | I90: 17
B91: 510 | C91: Mathématiques | D91: 18 | E91: 9 | F91: 16 | G91: 10 | H91: 18 | I91: 10
B92: 520 | C92: Astronomie | D92: 26 | E92: 6 | F92: 22 | G92: 6 | H92: 24 | I92: 6
B93: 530 | C93: Physique | D93: 20 | E93: 5 | F93: 16 | G93: 6 | H93: 16 | I93: 4
B94: 540 | C94: Chimie, minéralogie | D94: 25 | F94: 24 | H94: 24
B95: 550 | C95: Sciences de la terre | D95: 45 | E95: 25 | F95: 45 | G95: 24 | H95: 43 | I95: 22
B96: 560 | C96: Paléontologie | D96: 7 | F96: 8 | H96: 7
B97: 570 | C97: Sciences de la vie | D97: 42 | E97: 7 | F97: 41 | G97: 7 | H97: 43 | I97: 8
B98: 580 | C98: Botanique | D98: 66 | E98: 6 | F98: 71 | G98: 7 | H98: 70 | I98: 7
B99: 590 | C99: Zoologie | D99: 142 | E99: 2 | F99: 137 | G99: 3 | H99: 132 | I99: 2
A100: Total 5XX | D100: 486 | E100: 75 | F100: 473 | H100: 471 | I100: 76
A101: 6XX | B101: 600 | C101: Sciences appliquées, technologie | D101: 46 | E101: 4 | F101: 45 | G101: 4 | H101: 42 | I101: 5
B102: 610 | C102: Médecine, santé | D102: 1148 | E102: 232 | F102: 1113 | G102: 210 | H102: 1080 | I102: 189
B103: 620 | C103: Sciences de l'ingénieur | D103: 298 | E103: 55 | F103: 279 | G103: 53 | H103: 287 | I103: 50
B104: 630 | C104: Agriculture, élevage | D104: 839 | E104: 354 | F104: 813 | G104: 353 | H104: 777 | I104: 352
B105: 640 | C105: Économie domestique/vie pratique, hôtellerie | D105: 524 | E105: 6 | F105: 529 | G105: 7 | H105: 522 | I105: 8
B106: 650 | C106: Gestion et organisation des entreprises, publicité | D106: 383 | E106: 28 | F106: 358 | G106: 24 | H106: 345 | I106: 20
B107: 660 | C107: Génie chimique et technologies connexes | D107: 46 | E107: 5 | F107: 40 | G107: 5 | H107: 40 | I107: 5
B108: 670 | C108: Industries et métiers divers | D108: 257 | E108: 23 | F108: 232 | G108: 18 | H108: 215 | I108: 16
B109: 690 | C109: Bâtiment | D109: 227 | E109: 12 | F109: 215 | G109: 12 | H109: 186 | I109: 12
A110: Total 6XX | D110: 3768 | E110: 719 | F110: 3624 | G110: 686 | H110: 3494 | I110: 657
A111: 7XX | B111: 700 | C111: Arts (généralités) | D111: 466 | E111: 48 | F111: 468 | G111: 42 | H111: 459 | I111: 37
B112: 710 | C112: Urbanisme, aménagement du territoire | D112: 139 | E112: 59 | F112: 136 | G112: 52 | H112: 127 | I112: 53
B113: 720 | C113: Architecture | D113: 125 | E113: 25 | F113: 120 | G113: 25 | H113: 117 | I113: 27
B114: 730 | C114: Arts plastiques, sculpture | D114: 34 | E114: 5 | F114: 35 | G114: 5 | H114: 33 | I114: 5
B115: 740 | C115: Dessin, arts décoratifs, artisanat d’art, bandes dessinées (histoire et critique) | D115: 292 | E115: 5 | F115: 275 | G115: 5 | H115: 289 | I115: 6
B116: 750 | C116: Peinture, arts graphiques | D116: 74 | E116: 4 | F116: 73 | G116: 3 | H116: 80 | I116: 3
B117: 770 | C117: Photographie | D117: 110 | E117: 3 | F117: 112 | G117: 2 | H117: 111 | I117: 2
B118: 778 | C118: Érotisme, pornographie | D118: 22 | F118: 17 | H118: 18
B119: 780 | C119: Musique | D119: 202 | E119: 10 | F119: 191 | G119: 11 | H119: 177 | I119: 11
B120: 790 | C120: Spectacles (généralités), loisirs | D120: 176 | E120: 8 | F120: 178 | G120: 8 | H120: 184 | I120: 7
B121: 791 | C121: Audiovisuel | D121: 188 | E121: 16 | F121: 192 | G121: 16 | H121: 184 | I121: 24
B122: 792 | C122: Représentations scéniques | D122: 69 | E122: 8 | F122: 61 | G122: 8 | H122: 58 | I122: 7
B123: 793 | C123: Jeux et divertissements d'intérieur | D123: 551 | E123: 7 | F123: 593 | G123: 6 | H123: 628 | I123: 6
B124: 796 | C124: Sports, activités de plein air | D124: 1031 | E124: 18 | F124: 1016 | G124: 16 | H124: 955 | I124: 15
A125: Total 7XX | D125: 3479 | E125: 216 | F125: 3467 | G125: 199 | H125: 3420 | I125: 203
A126: 8XX | B126: 800 | C126: Littérature générale, histoire et critique littéraires, revues littéraires | D126: 618 | E126: 67 | F126: 615 | G126: 58 | H126: 617 | I126: 55
B127: 801 | C127: Poésie | D127: 102 | E127: 5 | F127: 104 | G127: 3 | H127: 107 | I127: 3
B128: 802 | C128: Théâtre | D128: 3 | E128: 2 | F128: 3 | G128: 2 | H128: 4 | I128: 1
B129: 803 | C129: Roman et fiction romanesque | D129: 2 | F129: 5 | H129: 5
B130: 804 | C130: Essais littéraires et écrits divers | D130: 11 | E130: 1 | F130: 11 | G130: 1 | H130: 15 | I130: 1
B131: 805 | C131: Bandes dessinées | D131: 167 | E131: 3 | F131: 152 | G131: 2 | H131: 120 | I131: 2
B132: 809 | C132: Littérature pour la jeunesse | D132: 23 | E132: 1 | F132: 25 | G132: 1 | H132: 22 | I132: 1
A133: Total 8XX | D133: 926 | E133: 79 | F133: 915 | G133: 67 | H133: 890 | I133: 63
A134: 9XX | B134: 900 | C134: Histoire et géographie (généralités) | D134: 182 | E134: 29 | F134: 188 | G134: 26 | H134: 185 | I134: 26
B135: 910 | C135: Géographie, voyages, tourisme | D135: 293 | E135: 42 | F135: 282 | G135: 39 | H135: 293 | I135: 31
B136: 920 | C136: Biographies | D136: 8 | E136: 1 | F136: 8 | G136: 1 | H136: 6
B137: 929 | C137: GénéalogieHistoire ancienne, archéologie | D137: 149 | F137: 149 | H137: 149
B138: 930 | C138: Histoire ancienne, archéologie, préhistoire | D138: 148 | E138: 26 | F138: 145 | G138: 24 | H138: 140 | I138: 24
B139: 940 | C139: Histoire médiévale, moderne et contemporaine | D139: 153 | E139: 13 | F139: 158 | G139: 12 | H139: 160 | I139: 10
B140: 944 | C140: Histoire de France, histoire locale | D140: 1080 | E140: 47 | F140: 1094 | G140: 43 | H140: 1106 | I140: 41
A141: Total 9XX | D141: 2013 | E141: 158 | F141: 2024 | G141: 145 | H141: 2039 | I141: 132
B142: non renseigné | D142: 5321 | E142: 1499 | F142: 5119 | G142: 1393 | H142: 4883 | I142: 1247
A143: Total | D143: 29507 | E143: 7140 | F143: 28949 | G143: 6784 | H143: 28233 | I143: 5968
A144: Source : Entrées dépôt légal - logiciel de bulletinage

Sheet V_om
A1: Nombre de titres vivants outre-mer et thématique
A2: 2018
A3: Grandes classes | B3: Indices | C3: Intitulés | D3: Réunion | E3: Guadeloupe | F3: Nouvelle-Calédonie | G3: Martinique | H3: Guyane française | I3: Mayotte | J3: Polynésie française | K3: Saint-Martin (partie française) | L3: Saint-Pierre-et-Miquelon | M3: Wallis et Futuna (îles) | N3: Saint-Barthélemy
A4: 0XX | B4: 000 | C4: Généralités, collections encyclopédiques | D4: 2 | F4: 3 | O4: 5
B5: 001 | C5: Culture générale | D5: 1 | O5: 1
B6: 004 | C6: Informatique | D6: 3 | E6: 2 | F6: 1 | H6: 1 | O6: 7
B7: 020 | C7: Sciences de l'information, lecture | F7: 1 | O7: 1
B8: 060 | C8: Instituts de recherche, archives, musées | G8: 1 | O8: 1
B9: 070 | C9: Édition, médias, librairie | D9: 2 | E9: 5 | F9: 2 | H9: 1 | I9: 3 | O9: 13
B10: 071 | C10: Magazines généraux | D10: 9 | E10: 17 | F10: 12 | G10: 8 | H10: 1 | I10: 3 | J10: 1 | K10: 3 | O10: 54
B11: 072 | C11: Publications féminines, publications masculines | D11: 3 | E11: 3 | F11: 6 | G11: 2 | H11: 2 | I11: 3 | K11: 1 | O11: 20
B12: 073 | C12: Presse et collections documentaires pour enfants et adolescents | D12: 3 | E12: 3 | F12: 3 | G12: 1 | H12: 2 | J12: 1 | K12: 2 | O12: 15
B13: 074 | C13: Presse nationale et locale d’information | D13: 3 | E13: 9 | F13: 7 | H13: 2 | I13: 2 | K13: 2 | N13: 2 | O13: 27
B14: 075 | C14: Presse parallèle, fanzines | D14: 1 | E14: 1 | O14: 2
B15: 076 | C15: Journaux internes d’entreprise | D15: 20 | E15: 4 | F15: 8 | G15: 4 | H15: 3 | I15: 1 | O15: 40
B16: 077 | C16: Journaux d’annonces | E16: 5 | F16: 8 | G16: 2 | H16: 1 | I16: 3 | K16: 2 | O16: 21
A17: Total 0XX | D17: 47 | E17: 49 | F17: 51 | G17: 18 | H17: 13 | I17: 15 | J17: 2 | K17: 10 | N17: 2 | O17: 207
A18: 1XX | B18: 130 | C18: Ésotérisme et sciences occultes | F18: 1 | O18: 1
B19: 150 | C19: Psychologie et psychanalyse | E19: 1 | O19: 1
A20: Total 1XX | E20: 1 | F20: 1 | O20: 2
A21: 2XX | B21: 200 | C21: Religion
B22: 280 | C22: Églises chrétiennes | D22: 5 | E22: 4 | F22: 1 | G22: 3 | O22: 13
B23: 297 | C23: Islam | D23: 2 | O23: 2
B24: 299 | C24: Autres religions | E24: 1 | O24: 1
A25: Total 2XX | D25: 7 | E25: 5 | F25: 1 | G25: 3 | O25: 16
A26: 3XX | B26: 300 | C26: Sciences sociales, sociologie | F26: 2 | G26: 4 | H26: 1 | M26: 1 | O26: 8
B27: 320 | C27: Sciences politiques et gouvernement | D27: 3 | E27: 3 | F27: 3 | G27: 4 | H27: 2 | O27: 15
B28: 323 | C28: Droits civils et politiques, citoyenneté, minorités | E28: 1 | F28: 1 | H28: 1 | O28: 3
B29: 324 | C29: Partis et mouvements politiques | D29: 7 | E29: 4 | F29: 5 | G29: 3 | H29: 1 | O29: 20
B30: 330 | C30: Économie (généralités) | D30: 8 | E30: 9 | F30: 5 | G30: 4 | H30: 2 | I30: 2 | M30: 1 | O30: 31
B31: 331 | C31: Économie du travail, syndicats | D31: 10 | E31: 6 | F31: 10 | G31: 4 | H31: 4 | O31: 34
B32: 332 | C32: Économie financière | D32: 1 | F32: 1 | O32: 2
B33: 333 | C33: Économie du foncier et de l'énergie | D33: 10 | E33: 6 | F33: 5 | G33: 5 | H33: 2 | I33: 1 | O33: 29
B34: 338 | C34: Économie de la production et de la consommation | D34: 8 | E34: 10 | F34: 19 | G34: 7 | H34: 3 | I34: 3 | J34: 1 | K34: 1 | O34: 52
B35: 340 | C35: Droit | D35: 1 | E35: 1 | F35: 4 | G35: 1 | N35: 1 | O35: 8
B36: 350 | C36: Administration publique | F36: 2 | O36: 2
B37: 352 | C37: Administration territoriale | D37: 24 | E37: 20 | F37: 14 | G37: 13 | H37: 8 | I37: 3 | K37: 2 | O37: 84
B38: 355 | C38: Armée, défense | D38: 2 | F38: 3 | G38: 2 | O38: 7
B39: 362 | C39: Problèmes et services sociaux | D39: 12 | E39: 9 | F39: 13 | G39: 5 | H39: 1 | O39: 40
B40: 363 | C40: Protection de l’environnement | D40: 6 | E40: 2 | F40: 13 | G40: 9 | H40: 6 | O40: 36
B41: 366 | C41: Associations, cercles et clubs divers | D41: 5 | E41: 2 | F41: 1 | H41: 1 | K41: 1 | O41: 10
B42: 368 | C42: Assurances, sécurité sociale, retraites | D42: 1 | E42: 4 | F42: 2 | G42: 3 | H42: 1 | O42: 11
B43: 370 | C43: Éducation, enseignement | D43: 4 | E43: 1 | F43: 2 | I43: 1 | O43: 8
B44: 371 | C44: Organisation scolaire, pédagogie, parents d’élèves | D44: 3 | E44: 1 | F44: 2 | G44: 7 | H44: 1 | O44: 14
B45: 373 | C45: Enseignement primaire, enseignement secondaire général et technique, journaux scolaires | D45: 5 | E45: 12 | F45: 5 | H45: 1 | I45: 3 | J45: 1 | O45: 27
B46: 374 | C46: Formation professionnelle et continue | D46: 1 | E46: 1 | O46: 2
B47: 378 | C47: Enseignement supérieur | D47: 1 | E47: 1 | F47: 1 | G47: 3 | O47: 6
B48: 380 | C48: Commerce | D48: 2 | E48: 2 | F48: 1 | G48: 1 | I48: 1 | O48: 7
B49: 383 | C49: Moyens de communication | E49: 2 | F49: 1 | H49: 1 | O49: 4
B50: 385 | C50: Transports | D50: 6 | E50: 3 | F50: 5 | G50: 2 | H50: 2 | I50: 1 | O50: 19
B51: 390 | C51: Ethnologie, anthropologie, folklore | D51: 2 | F51: 1 | G51: 1 | O51: 4
A52: Total 3XX | D52: 122 | E52: 100 | F52: 121 | G52: 78 | H52: 38 | I52: 15 | J52: 2 | K52: 4 | L52: 0 | M52: 2 | N52: 1 | O52: 483
A53: 5XX | B53: 500 | C53: Sciences (généralités) | E53: 1 | I53: 2 | O53: =SUM(D53:N53) -> 3
B54: 520 | C54: Astronomie
B55: 550 | C55: Sciences de la terre | F55: 2 | O55: =SUM(D55:N55) -> 2
B56: 570 | C56: Sciences de la vie
B57: 580 | C57: Botanique | E57: 1 | G57: 1 | O57: 2
B58: 590 | C58: Zoologie | D58: 1 | F58: 1 | J58: 1 | O58: 3
A59: Total 5XX | D59: 1 | E59: 2 | F59: 3 | G59: 1 | I59: 2 | J59: 1 | O59: 10
A60: 6XX | B60: 600 | C60: Sciences appliquées, technologie | D60: 3 | O60: 3
B61: 610 | C61: Médecine, santé | D61: 14 | E61: 6 | F61: 9 | G61: 4 | H61: 4 | I61: 2 | O61: 39
B62: 620 | C62: Sciences de l'ingénieur | D62: 4 | H62: 1 | I62: 1 | O62: 6
B63: 630 | C63: Agriculture, élevage | D63: 12 | E63: 7 | F63: 12 | G63: 3 | H63: 2 | J63: 1 | O63: 37
B64: 640 | C64: Économie domestique/vie pratique, hôtellerie | D64: 2 | E64: 4 | F64: 3 | G64: 1 | H64: 2 | I64: 1 | J64: 2 | O64: 15
B65: 650 | C65: Gestion et organisation des entreprises, publicité | D65: 7 | E65: 3 | G65: 1 | O65: 11
B66: 670 | C66: Industries et métiers divers | D66: 2 | F66: 5 | G66: 1 | O66: 8
B67: 690 | C67: Bâtiment | D67: 3 | E67: 2 | F67: 4 | G67: 2 | H67: 1 | I67: 1 | O67: 13
A68: Total 6XX | D68: 47 | E68: 22 | F68: 33 | G68: 12 | H68: 10 | I68: 5 | J68: 3 | O68: 132
A69: 7XX | B69: 700 | C69: Arts (généralités) | D69: 3 | E69: 2 | F69: 1 | G69: 2 | O69: =SUM(D69:N69) -> 8
B70: 710 | C70: Urbanisme, aménagement du territoire | D70: 3 | E70: 1 | F70: 1 | G70: 2 | H70: 1 | O70: =SUM(D70:N70) -> 8
B71: 720 | C71: Architecture | D71: 2 | E71: 1 | F71: 3 | O71: 6
B72: 740 | C72: Dessin, arts décoratifs, artisanat d’art, bandes dessinées (histoire et critique) | D72: 3 | E72: 2 | F72: 2 | G72: 1 | H72: 1 | O72: 9
B73: 750 | C73: Peinture, arts graphiques | J73: 1 | O73: 1
B74: 770 | C74: Photographie | O74: 0
B75: 780 | C75: Musique | D75: 2 | E75: 2 | F75: 2 | G75: 1 | O75: 7
B76: 790 | C76: Spectacles (généralités), loisirs | D76: 4 | E76: 8 | F76: 1 | H76: 1 | I76: 3 | J76: 1 | O76: 18
B77: 791 | C77: Audiovisuel | D77: 5 | E77: 2 | F77: 1 | G77: 2 | H77: 1 | O77: 11
B78: 792 | C78: Représentations scéniques | G78: 1 | O78: 1
B79: 793 | C79: Jeux et divertissements d'intérieur | D79: 2 | E79: 2 | F79: 3 | O79: 7
B80: 796 | C80: Sports, activités de plein air | D80: 3 | E80: 5 | F80: 12 | G80: 4 | H80: 2 | O80: 26
A81: Total 7XX | D81: 27 | E81: 25 | F81: 26 | G81: 13 | H81: 6 | I81: 3 | J81: 2 | O81: 102
A82: 8XX | B82: 800 | C82: Littérature générale, histoire et critique littéraires, revues littéraires | D82: 2 | F82: 3 | G82: 2 | H82: 3 | J82: 1 | O82: 11
B83: 801 | C83: Poésie
B84: 804 | C84: Essais littéraires et écrits divers | F84: 1 | O84: 1
B85: 805 | C85: Bandes dessinées | E85: 1 | G85: 4 | O85: 5
B86: 809 | C86: Littérature pour la jeunesse | F86: 2 | O86: 2
A87: Total 8XX | D87: 2 | E87: 1 | F87: 6 | G87: 6 | H87: 3 | J87: 1 | O87: 19
A88: 9XX | B88: 900 | C88: Histoire et géographie (généralités) | E88: 1 | F88: 1 | G88: 3 | H88: 1 | O88: 6
B89: 910 | C89: Géographie, voyages, tourisme | D89: 5 | E89: 5 | F89: 7 | G89: 3 | J89: 1 | K89: 1 | O89: 22
B90: 920 | C90: Biographies | O90: 0
B91: 929 | C91: GénéalogieHistoire ancienne, archéologie | D91: 1 | G91: 1 | O91: 2
B92: 930 | C92: Histoire ancienne, archéologie, préhistoire | O92: 0
B93: 940 | C93: Histoire médiévale, moderne et contemporaine | E93: 1 | I93: 1 | O93: 2
B94: 944 | C94: Histoire de France, histoire locale | D94: 2 | E94: 1 | F94: 1 | G94: 1 | I94: 1 | O94: 6
A95: Total 9XX | D95: 8 | E95: 8 | F95: 9 | G95: 8 | H95: 1 | I95: 2 | J95: 1 | K95: 1 | O95: 38
B96: Non renseigné | D96: 25 | E96: 18 | F96: 31 | G96: 17 | H96: 12 | I96: 1 | J96: 3 | O96: 107
A97: Total général | D97: 286 | E97: 231 | F97: 282 | G97: 156 | H97: 83 | I97: 43 | J97: 15 | K97: 15 | M97: 2 | N97: 3 | O97: 1116
A99: 2017
A100: Grandes classes | B100: Indices | C100: Intitulés | D100: Réunion | E100: Guadeloupe | F100: Nouvelle-Calédonie | G100: Martinique | H100: Guyane française | I100: Mayotte | J100: Polynésie française | K100: Saint-Martin (partie française) | L100: Saint-Pierre-et-Miquelon | M100: Wallis et Futuna (îles) | N100: Saint-Barthélemy
A101: 0XX | B101: 000 | C101: Généralités, collections encyclopédiques | D101: 3 | F101: 3 | O101: 6
B102: 001 | C102: Culture générale | D102: 1 | J102: 1 | O102: 2
B103: 004 | C103: Informatique | D103: 3 | E103: 2 | F103: 1 | H103: 1 | O103: 7
B104: 020 | C104: Sciences de l'information, lecture | D104: 1 | F104: 2 | I104: 2 | O104: 5
B105: 060 | C105: Instituts de recherche, archives, musées | G105: 2 | O105: 2
B106: 070 | C106: Édition, médias, librairie | D106: 2 | E106: 6 | F106: 2 | H106: 2 | I106: 3 | J106: 1 | O106: 16
B107: 071 | C107: Magazines généraux | D107: 11 | E107: 25 | F107: 16 | G107: 13 | H107: 1 | I107: 4 | J107: 2 | K107: 4 | N107: 1 | O107: 77
B108: 072 | C108: Publications féminines, publications masculines | D108: 5 | E108: 5 | F108: 7 | G108: 4 | H108: 2 | I108: 2 | O108: 25
B109: 073 | C109: Presse et collections documentaires pour enfants et adolescents | D109: 4 | E109: 3 | F109: 6 | G109: 2 | H109: 1 | I109: 1 | J109: 1 | K109: 2 | O109: 20
B110: 074 | C110: Presse nationale et locale d’information | D110: 5 | E110: 14 | F110: 10 | H110: 3 | I110: 4 | K110: 2 | N110: 2 | O110: 40
B111: 075 | C111: Presse parallèle, fanzines | D111: 2 | F111: 1 | O111: 3
B112: 076 | C112: Journaux internes d’entreprise | D112: 31 | E112: 5 | F112: 7 | G112: 6 | H112: 4 | I112: 1 | O112: 54
B113: 077 | C113: Journaux d’annonces | D113: 1 | E113: 5 | F113: 10 | G113: 2 | H113: 1 | I113: 3 | K113: 2 | O113: 24
A114: Total 0XX | D114: 69 | E114: 65 | F114: 65 | G114: 29 | H114: 15 | I114: 20 | J114: 5 | K114: 10 | N114: 3 | O114: 281
A115: 1XX | B115: 130 | C115: Ésotérisme et sciences occultes | F115: 1 | O115: 1
B116: 150 | C116: Psychologie et psychanalyse | E116: 1 | O116: 1
A117: Total 1XX | E117: 1 | F117: 1 | O117: 2
A118: 2XX | B118: 200 | C118: Religion | D118: 1 | O118: 1
B119: 280 | C119: Églises chrétiennes | D119: 6 | E119: 4 | F119: 2 | G119: 5 | O119: 17
B120: 297 | C120: Islam | D120: 4 | O120: 4
B121: 299 | C121: Autres religions | E121: 1 | O121: 1
A122: Total 2XX | D122: 11 | E122: 5 | F122: 2 | G122: 5 | O122: 23
A123: 3XX | B123: 300 | C123: Sciences sociales, sociologie | E123: 1 | F123: 3 | G123: 4 | H123: 1 | M123: 1 | O123: 10
B124: 320 | C124: Sciences politiques et gouvernement | D124: 4 | E124: 4 | F124: 4 | G124: 4 | H124: 5 | O124: 21
B125: 323 | C125: Droits civils et politiques, citoyenneté, minorités | E125: 2 | F125: 1 | G125: 1 | H125: 1 | O125: 5
B126: 324 | C126: Partis et mouvements politiques | D126: 20 | E126: 4 | F126: 5 | G126: 3 | H126: 1 | O126: 33
B127: 330 | C127: Économie (généralités) | D127: 8 | E127: 26 | F127: 8 | G127: 8 | H127: 4 | I127: 2 | M127: 2 | O127: 58
B128: 331 | C128: Économie du travail, syndicats | D128: 19 | E128: 12 | F128: 10 | G128: 9 | H128: 4 | O128: 54
B129: 332 | C129: Économie financière | D129: 1 | F129: 1 | O129: 2
B130: 333 | C130: Économie du foncier et de l'énergie | D130: 14 | E130: 6 | F130: 8 | G130: 6 | H130: 6 | I130: 1 | O130: 41
B131: 338 | C131: Économie de la production et de la consommation | D131: 12 | E131: 12 | F131: 22 | G131: 7 | H131: 3 | I131: 3 | J131: 1 | K131: 2 | L131: 1 | O131: 63
B132: 340 | C132: Droit | D132: 1 | E132: 2 | F132: 4 | G132: 2 | J132: 2 | N132: 1 | O132: 12
B133: 350 | C133: Administration publique | E133: 1 | F133: 3 | J133: 1 | O133: 5
B134: 352 | C134: Administration territoriale | D134: 34 | E134: 44 | F134: 19 | G134: 18 | H134: 31 | I134: 7 | K134: 2 | L134: 5 | N134: 2 | O134: 162
B135: 355 | C135: Armée, défense | D135: 3 | F135: 3 | G135: 2 | H135: 3 | O135: 11
B136: 362 | C136: Problèmes et services sociaux | D136: 19 | E136: 13 | F136: 17 | G136: 9 | H136: 4 | O136: 62
B137: 363 | C137: Protection de l’environnement | D137: 7 | E137: 3 | F137: 14 | G137: 12 | H137: 6 | K137: 1 | O137: 43
B138: 366 | C138: Associations, cercles et clubs divers | D138: 7 | E138: 5 | F138: 1 | H138: 1 | K138: 1 | O138: 15
B139: 368 | C139: Assurances, sécurité sociale, retraites | D139: 2 | E139: 4 | F139: 3 | G139: 5 | H139: 3 | O139: 17
B140: 370 | C140: Éducation, enseignement | D140: 6 | E140: 2 | F140: 4 | H140: 1 | I140: 2 | J140: 1 | O140: 16
B141: 371 | C141: Organisation scolaire, pédagogie, parents d’élèves | D141: 6 | E141: 1 | F141: 2 | G141: 7 | H141: 4 | O141: 20
B142: 373 | C142: Enseignement primaire, enseignement secondaire général et technique, journaux scolaires | D142: 9 | E142: 24 | F142: 9 | G142: 1 | H142: 7 | I142: 3 | J142: 1 | O142: 54
B143: 374 | C143: Formation professionnelle et continue | D143: 1 | E143: 2 | K143: 1 | O143: 4
B144: 378 | C144: Enseignement supérieur | D144: 6 | E144: 2 | F144: 1 | G144: 3 | O144: 12
B145: 380 | C145: Commerce | D145: 3 | E145: 4 | F145: 1 | G145: 1 | H145: 1 | I145: 1 | O145: 11
B146: 383 | C146: Moyens de communication | D146: 2 | E146: 3 | F146: 1 | H146: 1 | O146: 7
B147: 385 | C147: Transports | D147: 5 | E147: 6 | F147: 5 | G147: 1 | H147: 3 | I147: 1 | O147: 21
B148: 390 | C148: Ethnologie, anthropologie, folklore | D148: 3 | E148: 1 | G148: 1 | O148: 5
A149: Total 3XX | D149: 192 | E149: 184 | F149: 149 | G149: 104 | H149: 90 | I149: 20 | J149: 6 | K149: 7 | L149: 6 | M149: 3 | N149: 3 | O149: 1376
A150: 5XX | B150: 500 | C150: Sciences (généralités) | D150: 1 | E150: 1 | I150: 2 | O150: 4
B151: 520 | C151: Astronomie | G151: 1 | O151: 1
B152: 550 | C152: Sciences de la terre | D152: 2 | E152: 1 | F152: 3 | G152: 1 | H152: 1 | O152: 8
B153: 570 | C153: Sciences de la vie | E153: 1 | O153: 1
B154: 580 | C154: Botanique | E154: 1 | G154: 1 | O154: 2
B155: 590 | C155: Zoologie | D155: 1 | F155: 1 | J155: 1 | O155: 3
A156: Total 5XX | D156: 4 | E156: 4 | F156: 4 | G156: 3 | H156: 1 | I156: 2 | J156: 1 | O156: 19
A157: 6XX | B157: 600 | C157: Sciences appliquées, technologie | D157: 3 | H157: 1 | O157: 4
B158: 610 | C158: Médecine, santé | D158: 16 | E158: 9 | F158: 12 | G158: 7 | H158: 4 | I158: 3 | K158: 1 | O158: 52
B159: 620 | C159: Sciences de l'ingénieur | D159: 4 | E159: 1 | G159: 1 | H159: 3 | I159: 1 | O159: 10
B160: 630 | C160: Agriculture, élevage | D160: 27 | E160: 14 | F160: 16 | G160: 6 | H160: 5 | I160: 2 | J160: 1 | O160: 71
B161: 640 | C161: Économie domestique/vie pratique, hôtellerie | D161: 2 | E161: 4 | F161: 6 | G161: 1 | H161: 2 | I161: 1 | O161: 16
B162: 650 | C162: Gestion et organisation des entreprises, publicité | D162: 9 | E162: 4 | F162: 1 | G162: 2 | H162: 2 | O162: 18
B163: 670 | C163: Industries et métiers divers | D163: 1 | E163: 1 | F163: 6 | G163: 1 | H163: 1 | O163: 10
B164: 690 | C164: Bâtiment | D164: 10 | E164: 8 | F164: 7 | G164: 3 | H164: 1 | I164: 2 | O164: 31
A165: Total 6XX | D165: 72 | E165: 41 | F165: 48 | H165: 19 | I165: 9 | J165: 1 | K165: 1 | O165: 212
A166: 7XX | B166: 700 | C166: Arts (généralités) | D166: 4 | E166: 4 | F166: 3 | G166: 4 | J166: 1 | O166: 16
B167: 710 | C167: Urbanisme, aménagement du territoire | D167: 5 | E167: 1 | F167: 1 | G167: 3 | H167: 3 | O167: 13
B168: 720 | C168: Architecture | D168: 2 | E168: 3 | F168: 4 | O168: 9
B169: 740 | C169: Dessin, arts décoratifs, artisanat d’art, bandes dessinées (histoire et critique) | D169: 2 | E169: 2 | F169: 2 | H169: 1 | I169: 1 | O169: 8
B170: 750 | C170: Peinture, arts graphiques | J170: 1 | O170: 1
B171: 770 | C171: Photographie | D171: 1 | O171: 1
B172: 780 | C172: Musique | D172: 2 | E172: 3 | F172: 1 | G172: 1 | O172: 7
B173: 790 | C173: Spectacles (généralités), loisirs | D173: 4 | E173: 9 | F173: 2 | H173: 2 | I173: 3 | J173: 1 | O173: 21
B174: 791 | C174: Audiovisuel | D174: 5 | E174: 4 | F174: 2 | G174: 2 | H174: 1 | O174: 14
B175: 792 | C175: Représentations scéniques | E175: 1 | O175: 1
B176: 793 | C176: Jeux et divertissements d'intérieur | D176: 6 | E176: 1 | F176: 3 | G176: 1 | O176: 11
B177: 796 | C177: Sports, activités de plein air | D177: 11 | E177: 12 | F177: 15 | G177: 9 | H177: 3 | O177: 50
A178: Total 7XX | D178: 42 | E178: 40 | F178: 33 | G178: 20 | H178: 10 | I178: 4 | J178: 3 | O178: 152
A179: 8XX | B179: 800 | C179: Littérature générale, histoire et critique littéraires, revues littéraires | D179: 4 | F179: 5 | G179: 3 | H179: 5 | J179: 1 | O179: 18
B180: 801 | C180: Poésie | E180: 1 | G180: 1 | O180: 2
B181: 804 | C181: Essais littéraires et écrits divers | F181: 1 | O181: 1
B182: 805 | C182: Bandes dessinées | D182: 1 | E182: 1 | G182: 4 | O182: 6
B183: 809 | C183: Littérature pour la jeunesse | F183: 1 | O183: 1
A184: Total 8XX | D184: 5 | E184: 2 | F184: 7 | G184: 8 | H184: 5 | J184: 1 | O184: 28
A185: 9XX | B185: 900 | C185: Histoire et géographie (généralités) | E185: 2 | F185: 1 | G185: 3 | H185: 2 | J185: 1 | O185: 9
B186: 910 | C186: Géographie, voyages, tourisme | D186: 7 | E186: 8 | F186: 8 | G186: 4 | H186: 1 | J186: 1 | K186: 1 | O186: 30
B187: 920 | C187: Biographies | D187: 1 | O187: 1
B188: 929 | C188: GénéalogieHistoire ancienne, archéologie | D188: 1 | E188: 1 | G188: 1 | O188: 3
B189: 930 | C189: Histoire ancienne, archéologie, préhistoire | J189: 1 | K189: 1 | O189: 2
B190: 940 | C190: Histoire médiévale, moderne et contemporaine | E190: 2 | I190: 1 | O190: 3
B191: 944 | C191: Histoire de France, histoire locale | D191: 2 | E191: 1 | F191: 1 | I191: 1 | M191: 1 | O191: 6
A192: Total 9XX | D192: 11 | E192: 14 | F192: 10 | G192: 8 | H192: 3 | I192: 2 | J192: 3 | K192: 2 | M192: 1 | O192: 54
B193: Non renseigné | D193: 43 | E193: 33 | F193: 37 | G193: 27 | H193: 19 | I193: 1 | J193: 5 | L193: 1 | M193: 1 | O193: 167
A194: Total général | D194: 449 | E194: 389 | F194: 356 | G194: 225 | H194: 162 | I194: 58 | J194: 25 | K194: 20 | L194: 7 | M194: 5 | N194: 6 | O194: 1702
A196: 2016
A197: Grandes classes | B197: Indices | C197: Intitulés | D197: Réunion | E197: Guadeloupe | F197: Nouvelle-Calédonie | G197: Martinique | H197: Guyane française | I197: Mayotte | J197: Polynésie française | K197: Saint-Martin (partie française) | L197: Saint-Pierre-et-Miquelon | M197: Wallis et Futuna (îles) | N197: Saint-Barthélemy
A198: 0XX | B198: 000 | C198: Généralités, collections encyclopédiques | D198: 3 | F198: 3 | O198: 6
B199: 001 | C199: Culture générale | D199: 1 | J199: 1 | O199: 2
B200: 004 | C200: Informatique | D200: 3 | E200: 2 | F200: 1 | H200: 1 | O200: 7
B201: 020 | C201: Sciences de l'information, lecture | D201: 1 | F201: 2 | I201: 2 | O201: 5
B202: 060 | C202: Instituts de recherche, archives, musées | G202: 2 | O202: 2
... 193 more rows

Sheet Cess
A1: Nombre de cessations de parution par année | G1: Nombre de cessations de parution par âge des publications* | P1: Titres morts dans le logiciel de bulletinage depuis 2006 par âge | T1: Nombre de périodiques par année de naissance et par statut
A2: (attention, cessations constatées en… et non titres morts en…) | U2: Nés en
A3: Cessation constatée en | B3: Nombre | H3: Cessation constatée en | P3: Age de la publication au moment de la cessation | Q3: valeur | U3: 2005 | V3: 2006 | W3: 2007 | X3: 2008 | Y3: 2009 | Z3: 2010 | AA3: 2011 | AB3: 2012 | AC3: 2013 | AD3: 2014 | AE3: 2015 | AF3: 2016 | AG3: 2017 | AH3: 2018
A4: 2016 | B4: 2843 | G4: Age de la publication au moment de la cessation | H4: 2011 | I4: 2012 | J4: 2013 | K4: 2014 | L4: 2015 | M4: 2016 | N4: 2017 | O4: 2018 | P4: 0 | Q4: 4770 | T4: Titres vivants | U4: 750 | V4: 774 | W4: 826 | X4: 891 | Y4: 939 | Z4: 1742 | AA4: 981 | AB4: 1188 | AC4: 1089 | AD4: 1237 | AE4: 1415 | AF4: 1656 | AG4: 1583 | AH4: 1084
A5: 2017 | B5: 3231 | G5: 0 | H5: 392 | I5: 464 | J5: 364 | K5: 384 | L5: 380 | M5: 30 | N5: 28 | O5: 23 | P5: 1 | Q5: 4098 | T5: Titres en cessation | U5: 107 | V5: 110 | W5: 126 | X5: 151 | Y5: 136 | Z5: 209 | AA5: 146 | AB5: 154 | AC5: 142 | AD5: 169 | AE5: 421 | AF5: 153 | AG5: 154 | AH5: 23
A6: 2018 | B6: 3713 | G6: 1 | H6: 344 | I6: 317 | J6: 278 | K6: 321 | L6: 295 | M6: 145 | N6: 137 | O6: 154 | P6: 2 | Q6: 3366 | T6: Total nés en... | U6: =SUM(U4:U5) -> 857 | V6: =SUM(V4:V5) -> 884 | W6: 952 | X6: 1042 | Y6: 1075 | Z6: 1951 | AA6: 1127 | AB6: 1342 | AC6: 1231 | AD6: 1406 | AE6: 1836 | AF6: 1809 | AG6: 1737 | AH6: 1107
A7: Total | B7: 9787 | G7: 2 | H7: 271 | I7: 248 | J7: 227 | K7: 222 | L7: 247 | M7: 197 | N7: 179 | O7: 153 | P7: 3 | Q7: 2997 | T7: Source : Entrées dépôt légal - logiciel de bulletinage
A8: Source : Entrées dépôt légal - logiciel de bulletinage | G8: 3 | H8: 219 | I8: 197 | J8: 201 | K8: 196 | L8: 206 | M8: 168 | N8: 205 | O8: 421 | P8: 4 | Q8: 2465 | T8: Périodiques en cessation par année de naissance
G9: 4 | H9: 167 | I9: 141 | J9: 158 | K9: 165 | L9: 153 | M9: 163 | N9: 190 | O9: 169 | P9: 5 | Q9: 2319 | U9: Cessés en
A10: Nombre de cessations de parution par pays et par année | G10: 5 | H10: 143 | I10: 154 | J10: 142 | K10: 125 | L10: 122 | M10: 150 | N10: 182 | O10: 142 | P10: 6 | Q10: 2046 | T10: Nés en | U10: 2005 | V10: 2006 | W10: 2007 | X10: 2008 | Y10: 2009 | Z10: 2010 | AA10: 2011 | AB10: 2012 | AC10: 2013 | AD10: 2014 | AE10: 2015 | AF10: 2016 | AG10: 2017 | AH10: 2018
B11: Nouvelles régions | C11: 2016 | D11: 2017 | E11: 2018 | G11: 6 | H11: 141 | I11: 131 | J11: 135 | K11: 89 | L11: 132 | M11: 205 | N11: 160 | O11: 154 | P11: 7 | Q11: 1826 | T11: 2005 | U11: 148 | V11: 383 | W11: 346 | X11: 364 | Y11: 307 | Z11: 212 | AA11: 154 | AB11: 143 | AC11: 146 | AD11: 100 | AE11: 96 | AF11: 75 | AG11: 48 | AH11: 35
A12: France hors Outre-Mer | B12: Grand Est | C12: 183 | D12: 206 | E12: 218 | G12: 7 | H12: 108 | I12: 124 | J12: 115 | K12: 117 | L12: 103 | M12: 167 | N12: 194 | O12: 146 | P12: 8 | Q12: 1635 | T12: 2006 | V12: 493 | W12: 462 | X12: 385 | Y12: 296 | Z12: 207 | AA12: 155 | AB12: 158 | AC12: 137 | AD12: 101 | AE12: 109 | AF12: 63 | AG12: 35 | AH12: 11
B13: Nouvelle Aquitaine | C13: 235 | D13: 257 | E13: 283 | G13: 8 | H13: 112 | I13: 127 | J13: 86 | K13: 76 | L13: 98 | M13: 113 | N13: 159 | O13: 209 | P13: 9 | Q13: 1561 | T13: 2007 | W13: 415 | X13: 379 | Y13: 289 | Z13: 263 | AA13: 161 | AB13: 168 | AC13: 129 | AD13: 107 | AE13: 91 | AF13: 59 | AG13: 32 | AH13: 10
B14: Auvergne - Rhône Alpes | C14: 257 | D14: 320 | E14: 349 | G14: 9 | H14: 111 | I14: 122 | J14: 113 | K14: 70 | L14: 86 | M14: 108 | N14: 137 | O14: 136 | P14: 10 | Q14: 1315 | T14: 2008 | X14: 468 | Y14: 343 | Z14: 304 | AA14: 221 | AB14: 172 | AC14: 161 | AD14: 132 | AE14: 135 | AF14: 86 | AG14: 65 | AH14: 11
B15: Normandie | C15: 93 | D15: 102 | E15: 117 | G15: 10 | H15: 105 | I15: 130 | J15: 95 | K15: 58 | L15: 87 | M15: 109 | N15: 110 | O15: 151 | P15: 11 | Q15: 1224 | T15: 2009 | Y15: 433 | Z15: 404 | AA15: 291 | AB15: 269 | AC15: 213 | AD15: 189 | AE15: 156 | AF15: 97 | AG15: 40 | AH15: 12
B16: Bourgogne - Franche-Comté | C16: 131 | D16: 120 | E16: 161 | G16: 11 | H16: 66 | I16: 107 | J16: 100 | K16: 45 | L16: 68 | M16: 102 | N16: 105 | O16: 126 | P16: 12 | Q16: 1132 | T16: 2010 | Z16: 452 | AA16: 332 | AB16: 289 | AC16: 291 | AD16: 235 | AE16: 196 | AF16: 131 | AG16: 88 | AH16: 33
B17: Bretagne | C17: 76 | D17: 107 | E17: 103 | G17: 12 | H17: 42 | I17: 49 | J17: 101 | K17: 56 | L17: 85 | M17: 79 | N17: 123 | O17: 110 | P17: 13 | Q17: 944 | T17: 2011 | AA17: 388 | AB17: 346 | AC17: 259 | AD17: 206 | AE17: 129 | AF17: 109 | AG17: 98 | AH17: 11
B18: Centre - Val-de-Loire | C18: 73 | D18: 93 | E18: 94 | G18: 13 | H18: 40 | I18: 44 | J18: 57 | K18: 30 | L18: 78 | M18: 72 | N18: 109 | O18: 107 | P18: 14 | Q18: 902 | T18: 2012 | AB18: 421 | AC18: 386 | AD18: 206 | AE18: 175 | AF18: 147 | AG18: 104 | AH18: 23
B19: Corse | C19: 7 | D19: 10 | E19: 16 | G19: 14 | H19: 42 | I19: 46 | J19: 33 | K19: 46 | L19: 72 | M19: 58 | N19: 85 | O19: 85 | P19: 15 | Q19: 860 | T19: 2013 | AC19: 401 | AD19: 253 | AE19: 240 | AF19: 158 | AG19: 78 | AH19: 28
B20: Ile-de-France | C20: 1185 | D20: 1333 | E20: 1207 | G20: 15 | H20: 40 | I20: 50 | J20: 36 | K20: 36 | L20: 53 | M20: 61 | N20: 66 | O20: 102 | P20: 16 | Q20: 931 | T20: 2014 | AD20: 314 | AE20: 250 | AF20: 157 | AG20: 75 | AH20: 23
B21: Occitanie | C21: 152 | D21: 201 | E21: 235 | G21: 16 | H21: 53 | I21: 35 | J21: 113 | K21: 28 | L21: 32 | M21: 196 | N21: 53 | O21: 77 | P21: 17 | Q21: 745 | T21: 2015 | AE21: 278 | AF21: 177 | AG21: 110 | AH21: 28
B22: Hauts-de-France | C22: 142 | D22: 165 | E22: 155 | G22: 17 | H22: 42 | I22: 43 | J22: 34 | K22: 24 | L22: 32 | M22: 44 | N22: 222 | O22: 59 | P22: 18 | Q22: 633 | T22: 2016 | AF22: 199 | AG22: 145 | AH22: 30
B23: Pays de la Loire | C23: 115 | D23: 95 | E23: 105 | G23: 18 | H23: 55 | I23: 41 | J23: 33 | K23: 27 | L23: 31 | M23: 28 | N23: 55 | O23: 295 | P23: 19 | Q23: 510 | T23: 2017 | AG23: 171 | AH23: 50
B24: Provence-Alpes-Côte d'Azur | C24: 162 | D24: 155 | E24: 177 | G24: 19 | H24: 31 | I24: 50 | J24: 30 | K24: 21 | L24: 38 | M24: 38 | N24: 44 | O24: 48 | P24: 20 | Q24: 520 | T24: 2018 | AH24: 30
B25: Non renseigné | C25: 10 | D25: 10 | E25: 3 | G25: 20 | H25: 56 | I25: 34 | J25: 37 | K25: 22 | L25: 30 | M25: 53 | N25: 44 | O25: 45 | P25: 21 | Q25: 486 | T25: Moyenne des titres qui cessent dans leur première année / nombre de titres parus cette même année sur 14 ans : 23,4%
A26: Total France hors Outre-Mer | C26: 2821 | D26: 3174 | E26: =SUM(E12:E25) -> 3223 | G26: 21 | H26: 17 | I26: 38 | J26: 37 | K26: 14 | L26: 35 | M26: 37 | N26: 33 | O26: 35 | P26: 22 | Q26: 419 | T26: Source : Entrées dépôt légal - logiciel de bulletinage
A27: France d'Outre-Mer | B27: Guadeloupe | C27: 0 | D27: 2 | E27: 103 | G27: 22 | H27: 14 | I27: 21 | J27: 48 | K27: 17 | L27: 35 | M27: 24 | N27: 34 | O27: 33 | P27: 23 | Q27: 333
B28: Guyane française | C28: 1 | E28: 56 | G28: 23 | H28: 19 | I28: 15 | J28: 11 | K28: 6 | L28: 31 | M28: 20 | N28: 22 | O28: 42 | P28: 24 | Q28: 389 | T28: Age médian au moment de la cessation
B29: Martinique | C29: 1 | D29: 4 | E29: 54 | G29: 24 | H29: 13 | I29: 13 | J29: 12 | K29: 17 | L29: 26 | M29: 21 | N29: 19 | O29: 44 | P29: 25 | Q29: 293
B30: Mayotte | C30: 1 | D30: 2 | E30: 12 | G30: 25 | H30: 6 | I30: 18 | J30: 9 | K30: 13 | L30: 13 | M30: 17 | N30: 33 | O30: 31 | P30: 26 | Q30: 389 | U30: 2011 | V30: 2012 | W30: 2013 | X30: 2014 | Y30: 2015 | Z30: 2016 | AA30: 2017 | AB30: 2018
B31: Nouvelle-Calédonie | C31: 0 | D31: 2 | E31: 73 | G31: 26 | H31: 12 | I31: 14 | J31: 13 | K31: 13 | L31: 20 | M31: 83 | N31: 23 | O31: 28 | P31: 27 | Q31: 271 | T31: Age médian | U31: 6 ans | V31: 6 ans | W31: 6 ans | X31: 6 ans | Y31: 8 ans | Z31: 8 ans | AA31: 9 ans | AB31: 13 ans
B32: Polynésie française | C32: 1 | E32: 9 | G32: 27 | H32: 11 | I32: 12 | J32: 21 | K32: 12 | L32: 9 | M32: 16 | N32: 90 | O32: 19 | P32: 28 | Q32: 262 | T32: Source : Entrées dépôt légal - logiciel de bulletinage
B33: Réunion | C33: 1 | D33: 3 | E33: 142 | G33: 28 | H33: 18 | I33: 10 | J33: 10 | K33: 3 | L33: 9 | M33: 7 | N33: 13 | O33: 105 | P33: 29 | Q33: 308
B34: Saint-Barthélémy | E34: 3 | G34: 29 | H34: 20 | I34: 13 | J34: 9 | K34: 5 | L34: 15 | M34: 8 | N34: 17 | O34: 9 | P34: 30 | Q34: 308
B35: Saint-Martin (partie française) | C35: 0 | E35: 3 | G35: 30 | H35: 20 | I35: 15 | J35: 12 | K35: 9 | L35: 4 | M35: 15 | N35: 22 | O35: 23 | P35: 30 | Q35: 200
B36: Saint-Pierre-et-Miquelon | E36: 7 | G36: 31 | H36: 10 | I36: 12 | J36: 2 | K36: 7 | L36: 16 | M36: 9 | N36: 8 | O36: 14 | P36: 31 | Q36: 181
B37: Wallis-et-Futuna | D37: 1 | E37: 2 | G37: 32 | H37: 3 | I37: 10 | J37: 8 | K37: 12 | L37: 10 | M37: 9 | N37: 7 | O37: 16 | P37: 32 | Q37: 218
C38: 5 | D38: =SUM(D27:D37) -> 14 | E38: =SUM(E27:E37) -> 464 | G38: 33 | H38: 8 | I38: 9 | J38: 10 | K38: 10 | L38: 16 | M38: 14 | N38: 12 | O38: 17 | P38: 33 | Q38: 227
A39: Autres pays | B39: Allemagne | C39: 1 | D39: 4 | G39: 34 | H39: 7 | I39: 10 | J39: 7 | K39: 6 | L39: 13 | M39: 12 | N39: 6 | O39: 9 | P39: 34 | Q39: 124
B40: Belgique | C40: 2 | D40: 5 | E40: 6 | G40: 35 | H40: 5 | I40: 5 | J40: 5 | K40: 8 | L40: 6 | M40: 10 | N40: 8 | O40: 14 | P40: 35 | Q40: 220
B41: Cameroun | C41: 1 | G41: 36 | H41: 3 | I41: 9 | J41: 2 | K41: 5 | L41: 8 | M41: 32 | N41: 4 | O41: 18 | P41: 36 | Q41: 107
B42: Canada | D42: 2 | G42: 37 | H42: 4 | I42: 4 | J42: 4 | K42: 3 | L42: 6 | M42: 7 | N42: 38 | O42: 5 | P42: 37 | Q42: 115
B43: Egypte | C43: 1 | D43: 1 | G43: 38 | H43: 6 | I43: 9 | J43: 5 | K43: 6 | L43: 7 | M43: 3 | N43: 7 | O43: 35 | P43: 38 | Q43: 127
B44: Espagne | D44: 3 | E44: 1 | G44: 39 | H44: 4 | I44: 7 | J44: 6 | K44: 8 | L44: 6 | M44: 5 | N44: 12 | O44: 5 | P44: 39 | Q44: 130
B45: Etats-Unis | D45: 1 | E45: 1 | G45: 40 | H45: 4 | I45: 11 | J45: 3 | K45: 5 | L45: 6 | M45: 6 | N45: 6 | O45: 6 | P45: 40 | Q45: 109
B46: Géorgie | D46: 1 | G46: 41 | H46: 4 | I46: 3 | J46: 1 | L46: 7 | M46: 11 | N46: 4 | O46: 10 | P46: 41 | Q46: 130
B47: Italie | C47: 2 | D47: 2 | G47: 42 | H47: 2 | I47: 4 | J47: 4 | K47: 4 | L47: 6 | M47: 8 | N47: 7 | O47: 9 | P47: 42 | Q47: 87
B48: Maurice | E48: 1 | G48: 43 | I48: 5 | J48: 6 | K48: 5 | L48: 4 | M48: 6 | N48: 7 | O48: 2 | P48: 43 | Q48: 82
B49: multiple | C49: 5 | D49: 14 | E49: 12 | G49: 44 | H49: 2 | I49: 1 | J49: 7 | K49: 2 | L49: 4 | M49: 4 | N49: 4 | O49: 6 | P49: 44 | Q49: 85
B50: Pays-Bas | C50: 1 | E50: 3 | G50: 45 | H50: 4 | J50: 4 | K50: 3 | L50: 3 | M50: 10 | N50: 6 | O50: 6 | P50: 45 | Q50: 81
B51: Roumanie | D51: 1 | G51: 46 | H51: 5 | I51: 2 | J51: 3 | K51: 2 | L51: 2 | M51: 9 | N51: 4 | O51: 2 | P51: 46 | Q51: 96
B52: Royaume-Uni | C52: 2 | D52: 4 | E52: 1 | G52: 47 | H52: 2 | I52: 7 | J52: 3 | K52: 3 | L52: 6 | M52: 4 | N52: 16 | O52: 4 | P52: 47 | Q52: 66
B53: Slovénie | G53: 48 | H53: 5 | I53: 1 | K53: 2 | L53: 1 | M53: 3 | N53: 5 | O53: 14 | P53: 48 | Q53: 106
B54: Suisse | C54: 2 | D54: 4 | E54: 1 | G54: 49 | O54: 4 | P54: 49 | Q54: 35
B55: Tunisie | G55: 50 | O55: 7 | P55: 50 | Q55: 68
B56: Turquie | D56: 1 | G56: 51 | O56: 1 | P56: 51 | Q56: 42
C57: 17 | D57: =SUM(D39:D56) -> 43 | E57: 26 | G57: 52 | O57: 2 | P57: 52 | Q57: 42
C58: 2843 | D58: 3231 | E58: 3713 | G58: 53 | O58: 1 | P58: 53 | Q58: 39
G59: 54 | H59: 1 | I59: 1 | J59: 2 | K59: 1 | L59: 4 | M59: 1 | O59: 2 | P59: 54 | Q59: 30
G60: 55 | H60: 1 | K60: 1 | L60: 2 | M60: 3 | P60: 55 | Q60: 22
G61: 51 | H61: 2 | I61: 3 | K61: 1 | L61: 4 | M61: 3 | N61: 4 | P61: 56 | Q61: 27
G62: 52 | H62: 2 | I62: 1 | J62: 1 | K62: 1 | M62: 1 | N62: 4 | P62: 57 | Q62: 36
G63: 53 | I63: 2 | L63: 1 | M63: 3 | N63: 1 | P63: 58 | Q63: 72
G64: 56 | H64: 1 | I64: 1 | J64: 1 | K64: 1 | L64: 1 | M64: 0 | N64: 1 | P64: 59 | Q64: 37
G65: 57 | H65: 1 | I65: 1 | J65: 2 | K65: 1 | L65: 3 | M65: 4 | N65: 4 | P65: 60 | Q65: 23
G66: 58 | K66: 1 | L66: 3 | M66: 2 | N66: 4 | O66: 7 | P66: 61 | Q66: 25
G67: 59 | I67: 2 | J67: 2 | N67: 3 | O67: 1 | P67: 62 | Q67: 32
G68: 60 | K68: 1 | L68: 1 | M68: 1 | N68: 1 | O68: 2 | P68: 63 | Q68: 39
G69: 61 | H69: 3 | I69: 1 | J69: 4 | K69: 1 | M69: 3 | O69: 1 | P69: 64 | Q69: 19
G70: 62 | H70: 1 | K70: 2 | L70: 2 | M70: 2 | N70: 1 | P70: 65 | Q70: 26
G71: 63 | H71: 1 | I71: 1 | L71: 1 | M71: 4 | N71: 1 | O71: 1 | P71: 66 | Q71: 39
G72: 64 | H72: 1 | I72: 1 | L72: 1 | M72: 1 | N72: 2 | O72: 1 | P72: 67 | Q72: 48
A73: Source : Entrées dépôt légal - logiciel de bulletinage | G73: 65 | I73: 2 | M73: 2 | N73: 1 | O73: 1 | P73: 68 | Q73: 52
G74: 66 | J74: 1 | L74: 2 | M74: 5 | N74: 2 | O74: 2 | P74: 69 | Q74: 13
A75: Nombre de cessations de parution par langue et par année | G75: 67 | H75: 1 | L75: 1 | N75: 4 | O75: 2 | P75: 70 | Q75: 28
A76: Langue | B76: 2016 | C76: 2017 | D76: 2018 | G76: 68 | H76: 1 | I76: 2 | J76: 1 | K76: 1 | L76: 1 | M76: 2 | N76: 3 | O76: 2 | P76: 71 | Q76: 38
A77: allemand | B77: 11 | C77: 10 | D77: 3 | G77: 69 | L77: 1 | M77: 1 | N77: 1 | O77: 1 | P77: 72 | Q77: 52
A78: anglais | B78: 67 | C78: 73 | D78: 56 | G78: 70 | L78: 1 | O78: 3 | P78: 73 | Q78: 20
A79: arabe | C79: 3 | G79: 71 | H79: 1 | L79: 2 | M79: 2 | N79: 4 | O79: 2 | P79: 74 | Q79: 51
A80: basque | C80: 1 | G80: 72 | H80: 1 | K80: 1 | M80: 1 | N80: 1 | O80: 1 | P80: 75 | Q80: 3
A81: catalan | D81: 1 | G81: 73 | H81: 1 | N81: 3 | O81: 2 | P81: 76 | Q81: 4
A82: chinois | B82: 3 | C82: 4 | D82: 1 | G82: 74 | M82: 1 | O82: 2 | P82: 77 | Q82: 6
A83: coréen | C83: 1 | G83: 75 | H83: 1 | J83: 1 | O83: 1 | P83: 78 | Q83: 6
A84: corse | B84: 1 | G84: 76 | J84: 1 | P84: 79 | Q84: 2
A85: créole ou pidgin français | D85: 1 | G85: 77 | J85: 1 | K85: 2 | N85: 1 | P85: 80 | Q85: 9
A86: danois | C86: 1 | G86: 78 | L86: 1 | P86: 81 | Q86: 5
A87: égyptien | C87: 1 | G87: 79 | K87: 1 | M87: 1 | N87: 1 | O87: 1 | P87: 82 | Q87: 5
A88: espagnol | B88: 21 | C88: 8 | D88: 5 | G88: 80 | I88: 1 | J88: 1 | N88: 1 | P88: 83 | Q88: 10
A89: français | B89: 2717 | C89: 3096 | D89: 3628 | G89: 81 | H89: 1 | J89: 1 | N89: 1 | P89: 84 | Q89: 14
A90: italien | B90: 4 | C90: 5 | D90: 2 | G90: 82 | H90: 1 | L90: 1 | N90: 2 | O90: 1 | P90: 85 | Q90: 3
A91: japonais | B91: 1 | C91: 1 | D91: 1 | G91: 83 | H91: 1 | M91: 1 | P91: 86 | Q91: 7
A92: multilingue | B92: 3 | C92: 6 | D92: 5 | G92: 84 | J92: 1 | L92: 1 | P92: 87 | Q92: 4
A93: néerlandais | B93: 4 | C93: 3 | G93: 85 | H93: 1 | P93: 88 | Q93: 4
A94: Non renseigné | C94: 1 | D94: 2 | G94: 86 | K94: 3 | P94: 89 | Q94: 35
A95: norvégien | D95: 1 | G95: 87 | J95: 2 | N95: 3 | P95: 90 | Q95: 12
A96: occitan | C96: 1 | D96: 1 | G96: 88 | J96: 2 | P96: 91 | Q96: 4
A97: occitan ancien | D97: 1 | G97: 89 | K97: 1 | P97: 92 | Q97: 2
A98: persan | C98: 1 | G98: 90 | O98: 1 | P98: 93 | Q98: 4
A99: polonais | B99: 1 | C99: 2 | D99: 1 | G99: 91 | H99: 1 | K99: 1 | L99: 1 | O99: 1 | P99: 94 | Q99: 1
A100: portugais | B100: 4 | C100: 4 | D100: 2 | G100: 92 | M100: 1 | O100: 1 | P100: 95 | Q100: 5
A101: roumain | B101: 2 | C101: 1 | G101: 93 | I101: 1 | J101: 1 | P101: 96 | Q101: 6
A102: russe | B102: 3 | C102: 3 | G102: 96 | M102: 1 | O102: 1 | P102: 97 | Q102: 7
A103: suédois | D103: 1 | G103: 97 | M103: 1 | O103: 2 | P103: 98 | Q103: 1
A104: tchèque | C104: 1 | G104: 98 | N104: 2 | O104: 3 | P104: 99 | Q104: 4
A105: thaï | C105: 1 | G105: 99 | I105: 1 | P105: 100 | Q105: 11
A106: turc | B106: 1 | C106: 1 | G106: 100 | L106: 1 | P106: 101 | Q106: 4
A107: vietnamien | C107: 1 | D107: 1 | G107: 101 | I107: 1 | P107: 102 | Q107: 5
A108: yiddish | C108: 1 | G108: 102 | I108: 1 | N108: 1 | O108: 1 | P108: 103 | Q108: 7
A109: Total | B109: 2843 | C109: 3231 | D109: 3713 | G109: 103 | P109: 104 | Q109: 4
A110: Source : Entrées dépôt légal - logiciel de bulletinage | G110: 104 | H110: 1 | L110: 1 | P110: 105 | Q110: 28
G111: 105 | H111: 3 | I111: 3 | J111: 1 | O111: 1 | P111: 106 | Q111: 76
A112: Nombre de cessations de parution par périodicité et par année | G112: 106 | H112: 9 | I112: 4 | J112: 1 | P112: 107 | Q112: 87
A113: Périodicité | B113: 2016 | C113: 2017 | D113: 2018 | G113: 107 | H113: 5 | I113: 9 | J113: 6 | L113: 3 | N113: 1 | P113: 108 | Q113: 95
A114: Triennal | B114: 34 | C114: 80 | D114: 59 | G114: 108 | H114: 7 | I114: 8 | J114: 6 | L114: 3 | M114: 1 | P114: 109 | Q114: 99
A115: Biennal | B115: 52 | C115: 118 | D115: 95 | G115: 109 | H115: 24 | I115: 7 | J115: 7 | L115: 7 | N115: 1 | P115: 110 | Q115: 109
A116: Annuel | B116: 697 | C116: 1085 | D116: 1111 | G116: 110 | H116: 31 | I116: 8 | J116: 10 | K116: 1 | L116: 6 | P116: 111 | Q116: 98
A117: Semestriel | B117: 538 | C117: 583 | D117: 577 | G117: 111 | H117: 12 | I117: 30 | J117: 13 | L117: 1 | P117: 112 | Q117: 94
A118: 3 fois par an | B118: 237 | C118: 218 | D118: 248 | G118: 112 | I118: 14 | J118: 18 | L118: 5 | P118: 113 | Q118: 110
A119: Trimestriel | B119: 579 | C119: 620 | D119: 710 | G119: 113 | I119: 1 | J119: 5 | L119: 15 | P119: 114 | Q119: 107
A120: Bimestriel | B120: 321 | C120: 250 | D120: 397 | G120: 114 | H120: 1 | K120: 1 | L120: 18 | P120: 115 | Q120: 124
A121: Mensuel | B121: 254 | C121: 184 | D121: 372 | G121: 115 | K121: 1 | L121: 16 | O121: 1 | P121: 116 | Q121: 51
A122: Bimensuel | B122: 7 | C122: 6 | D122: 27 | G122: 117 | N122: 1 | P122: 117 | Q122: 44
A123: Toutes les 2 semaines | B123: 28 | C123: 9 | D123: 21 | G123: 122 | M123: 1 | O123: 1 | P123: 118 | Q123: 16
A124: 3 fois par mois | C124: 1 | D124: 11 | G124: 123 | K124: 1 | N124: 1 | P124: 119 | Q124: 1
A125: Hebdomadaire | B125: 47 | C125: 35 | D125: 57 | G125: 125 | K125: 1 | P125: 122 | Q125: 1
A126: Semi-hebdomadaire | B126: 5 | C126: 2 | D126: 2 | G126: 126 | H126: 1 | P126: 123 | Q126: 1
A127: 3 fois par semaine | G127: 130 | J127: 1 | P127: 125 | Q127: 2
A128: Quotidien | B128: 4 | C128: 5 | D128: 10 | G128: 135 | M128: 1 | P128: 126 | Q128: 3
A129: Irrégulier, Autres périodes | B129: 40 | C129: 35 | D129: 16 | G129: 136 | O129: 1 | P129: 128 | Q129: 1
A130: Total | B130: 2843 | C130: 3231 | D130: 3713 | G130: 137 | M130: 1 | P130: 128 | Q130: 1
A131: Source : Entrées dépôt légal - logiciel de bulletinage | G131: 139 | N131: 1 | P131: 129 | Q131: 2
G132: 140 | I132: 1 | O132: 1 | P132: 130 | Q132: 1
A133: Nombre de cessations de parution par édition publique et par année | G133: 141 | N133: 1 | P133: 132 | Q133: 1
A134: Edition publique | B134: 2016 | C134: 2017 | D134: 2018 | G134: 143 | O134: 2 | P134: 134 | Q134: 34
A135: Hors Edition publique | B135: 2192 | C135: 2458 | D135: 2467 | G135: 147 | O135: 1 | P135: 136 | Q135: 1
A136: Edition publique | B136: 646 | C136: 765 | D136: 1245 | G136: 150 | L136: 1 | P136: 138 | Q136: 2
A137: Non renseigné | B137: 5 | C137: 8 | D137: 1 | G137: 152 | N137: 1 | P137: 142 | Q137: 1
A138: Total | B138: 2843 | C138: 3231 | D138: 3713 | G138: 156 | N138: 1 | P138: 143 | Q138: 1
A139: Source : Entrées dépôt légal - logiciel de bulletinage | G139: 157 | N139: 1 | P139: 144 | Q139: 1
G140: 158 | O140: 18 | P140: 145 | Q140: 4
A141: Nombre de cessations de parution par thématique et par année | G141: 160 | O141: 1 | P141: 148 | Q141: 6
A142: Grande classe | B142: Indices | C142: Intitulés | D142: 2016 | E142: 2017 | F142: 2018 | G142: 161 | N142: 2 | P142: 150 | Q142: 7
A143: 0XX | B143: 000 | C143: Généralités, collections encyclopédiques | D143: 1 | E143: 6 | F143: 5 | G143: 162 | N143: 1 | P143: 151 | Q143: 3
B144: 001 | C144: Culture générale | D144: 11 | E144: 8 | F144: 3 | G144: 163 | L144: 2 | P144: 153 | Q144: 9
B145: 004 | C145: Informatique | D145: 14 | E145: 19 | F145: 22 | G145: 164 | N145: 2 | P145: 154 | Q145: 16
B146: 010 | C146: Bibliographie, catalogues | D146: 1 | E146: 1 | F146: 1 | G146: 167 | N146: 2 | P146: 155 | Q146: 1
B147: 020 | C147: Sciences de l'information, lecture | D147: 9 | E147: 11 | F147: 5 | G147: 168 | O147: 9 | P147: 156 | Q147: 5
B148: 060 | C148: Instituts de recherche, archives, musées | D148: 6 | E148: 7 | F148: 12 | G148: 171 | L148: 1 | P148: 157 | Q148: 1
B149: 070 | C149: Édition, médias, librairie | D149: 21 | E149: 24 | F149: 11 | G149: 174 | J149: 1 | P149: 158 | Q149: 10
B150: 071 | C150: Magazines généraux | D150: 57 | E150: 63 | F150: 74 | G150: 177 | H150: 1 | N150: 1 | P150: 159 | Q150: 4
B151: 072 | C151: Publications féminines, publications masculines | D151: 27 | E151: 20 | F151: 25 | G151: 187 | N151: 7 | P151: 160 | Q151: 11
B152: 073 | C152: Presse et collections documentaires pour enfants et adolescents | D152: 55 | E152: 66 | F152: 50 | G152: 194 | O152: 1 | P152: 161 | Q152: 11
B153: 074 | C153: Presse nationale et locale d’information | D153: 22 | E153: 23 | F153: 28 | G153: 195 | I153: 1 | P153: 162 | Q153: 1
B154: 075 | C154: Presse parallèle, fanzines | D154: 10 | E154: 13 | F154: 7 | G154: 201 | O154: 4 | P154: 163 | Q154: 10
B155: 076 | C155: Journaux internes d’entreprise | D155: 107 | E155: 111 | F155: 108 | G155: 208 | I155: 1 | P155: 164 | Q155: 21
B156: 077 | C156: Journaux d’annonces | D156: 12 | E156: 6 | F156: 11 | G156: 213 | L156: 1 | O156: 1 | P156: 165 | Q156: 51
B157: 090 | C157: Bibliophilie | D157: 2 | E157: 1 | G157: 218 | O157: 6 | P157: 167 | Q157: 1
A158: Total 0XX | D158: 355 | E158: 379 | F158: 362 | G158: 225 | O158: 1 | P158: 168 | Q158: 2
A159: 1XX | B159: 100 | C159: Philosophie | D159: 5 | E159: 6 | F159: 7 | G159: 227 | N159: 1 | P159: 170 | Q159: 5
B160: 130 | C160: Ésotérisme et sciences occultes | D160: 4 | E160: 3 | F160: 5 | G160: Indéterminé | H160: 416 | I160: 240 | J160: 187 | K160: 600 | L160: 617 | M160: 91 | N160: 91 | O160: 130 | P160: 171 | Q160: 2
B161: 150 | C161: Psychologie et psychanalyse | D161: 20 | E161: 13 | F161: 9 | G161: Total | H161: 3352 | I161: 3287 | J161: 3035 | K161: 2986 | L161: 3490 | M161: 2843 | N161: 3231 | O161: 3713 | P161: 172 | Q161: 2
A162: Total 1XX | D162: 29 | E162: 22 | F162: 21 | G162: Source : Entrées dépôt légal - logiciel de bulletinage | P162: 173 | Q162: 1
A163: 2XX | B163: 200 | C163: Religion | D163: 4 | E163: 7 | F163: 10 | G163: * les dates de vie approximatives sont arrondies pour le calcul de l'âge, par exemple 201. = 2010 ; 19.. = 1900 | P163: 174 | Q163: 3
B164: 280 | C164: Églises chrétiennes | D164: 76 | E164: 56 | F164: 76 | G164: ** l'âge est indéterminé pour un certain de publications dont la cessation enregistrée dans l'application de bulletinage n'était pas reportée dans le catalogue à la date de la requête | P164: 175 | Q164: 20
B165: 294 | C165: Hindouisme, bouddhisme | D165: 1 | E165: 1 | F165: 1 | P165: 176 | Q165: 4
B166: 296 | C166: Judaïsme | D166: 3 | E166: 4 | F166: 2 | P166: 177 | Q166: 6
B167: 297 | C167: Islam | D167: 1 | E167: 2 | F167: 2 | P167: 178 | Q167: 1
B168: 299 | C168: Autres religions | D168: 1 | E168: 1 | F168: 1 | P168: 179 | Q168: 1
A169: Total 2XX | D169: 86 | E169: 71 | F169: 92 | P169: 180 | Q169: 9
A170: 3XX | B170: 300 | C170: Sciences sociales, sociologie | D170: 12 | E170: 24 | F170: 26 | P170: 181 | Q170: 5
B171: 310 | C171: Statistique | F171: 1 | P171: 183 | Q171: 3
B172: 320 | C172: Sciences politiques et gouvernement | D172: 27 | E172: 39 | F172: 34 | P172: 184 | Q172: 12
B173: 323 | C173: Droits civils et politiques, citoyenneté, minorités | D173: 12 | E173: 18 | F173: 14 | P173: 185 | Q173: 51
B174: 324 | C174: Partis et mouvements politiques | D174: 27 | E174: 36 | F174: 34 | P174: 186 | Q174: 1
B175: 327 | C175: Politique internationale | D175: 7 | E175: 6 | F175: 11 | P175: 195 | Q175: 2
B176: 330 | C176: Économie (généralités) | D176: 49 | E176: 35 | F176: 57 | P176: 208 | Q176: 1
B177: 331 | C177: Économie du travail, syndicats | D177: 111 | E177: 92 | F177: 87 | P177: 212 | Q177: 1
B178: 332 | C178: Économie financière | D178: 23 | E178: 33 | F178: 37 | P178: 213 | Q178: 6
B179: 333 | C179: Économie du foncier et de l'énergie | D179: 38 | E179: 37 | F179: 48 | P179: 214 | Q179: 3
B180: 338 | C180: Économie de la production et de la consommation | D180: 100 | E180: 91 | F180: 68 | P180: 215 | Q180: 22
B181: 340 | C181: Droit | D181: 37 | E181: 45 | F181: 50 | P181: 220 | Q181: 1
B182: 350 | C182: Administration publique | D182: 14 | E182: 20 | F182: 28 | P182: 225 | Q182: 1
B183: 352 | C183: Administration territoriale | D183: 207 | E183: 292 | F183: 683 | P183: indéterminé | Q183: 148
B184: 355 | C184: Armée, défense | D184: 18 | E184: 12 | F184: 18 | P184: Total général | Q184: 45373
B185: 362 | C185: Problèmes et services sociaux | D185: 100 | E185: 112 | F185: 147 | P185: Source : Entrées dépôt légal - logiciel de bulletinage
B186: 363 | C186: Protection de l’environnement | D186: 60 | E186: 95 | F186: 85
B187: 366 | C187: Associations, cercles et clubs divers | D187: 35 | E187: 35 | F187: 44
B188: 368 | C188: Assurances, sécurité sociale, retraites | D188: 46 | E188: 58 | F188: 40
B189: 370 | C189: Éducation, enseignement | D189: 13 | E189: 32 | F189: 37
B190: 371 | C190: Organisation scolaire, pédagogie, parents d’élèves | D190: 16 | E190: 20 | F190: 21
B191: 373 | C191: Enseignement primaire, enseignement secondaire général et technique, journaux scolaires | D191: 19 | E191: 18 | F191: 35
B192: 374 | C192: Formation professionnelle et continue | D192: 9 | E192: 12 | F192: 7
B193: 378 | C193: Enseignement supérieur | D193: 21 | E193: 35 | F193: 26
B194: 380 | C194: Commerce | D194: 21 | E194: 27 | F194: 19
B195: 383 | C195: Moyens de communication | D195: 16 | E195: 10 | F195: 13
B196: 385 | C196: Transports | D196: 30 | E196: 50 | F196: 74
B197: 390 | C197: Ethnologie, anthropologie, folklore | D197: 2 | E197: 4 | F197: 7
A198: Total 3XX | D198: 1070 | E198: 1288 | F198: 1751
A199: 4XX | B199: 400 | C199: Linguistique | D199: 1 | E199: 9 | F199: 4
A200: Total 4XX | D200: 1 | E200: 9 | F200: 4
... 55 more rows

Sheet Migr
A1: Nombre de migrations de support par type de migration
A2: Type de migration | B2: 2016 | C2: 2017 | D2: 2018
A3: En ligne | B3: 245 | C3: 266 | D3: 186
A4: Par mail | B4: 38 | C4: 39 | D4: 49
A5: Sur intranet | B5: 22 | C5: 22 | D5: 47
A6: Total | B6: 305 | C6: 327 | D6: =SUM(D3:D5) -> 282
A7: Source : Entrées dépôt légal - logiciel de bulletinage
A9: Nombre de migrations par pays et région
B10: Nouvelles régions | C10: 2016 | D10: 2017 | E10: 2018
A11: France hors Outre-Mer | B11: Grand Est | C11: 6 | D11: 10 | E11: 15
B12: Nouvelle Aquitaine | C12: 20 | D12: 15 | E12: 13
B13: Auvergne - Rhône Alpes | C13: 22 | D13: 30 | E13: 33
B14: Normandie | C14: 9 | D14: 8 | E14: 5
B15: Bourgogne - Franche-Comté | C15: 7 | D15: 14 | E15: 9
B16: Bretagne | C16: 5 | D16: 7 | E16: 12
B17: Centre - Val-de-Loire | C17: 7 | D17: 7 | E17: 8
B18: Corse | C18: 1 | D18: 0
B19: Ile-de-France | C19: 168 | D19: 174 | E19: 136
B20: Occitanie | C20: 10 | D20: 17 | E20: 10
B21: Hauts-de-France | C21: 9 | D21: 18 | E21: 10
B22: Pays-de-la-Loire | C22: 26 | D22: 11 | E22: 10
B23: Provence-Alpes-Côte d'Azur | C23: 10 | D23: 7 | E23: 16
B24: Non renseigné | C24: 2 | D24: 1
A25: Total France hors Outre-Mer | C25: 302 | D25: 319 | E25: 277
A26: France d'Outre-Mer | B26: Guadeloupe | D26: 1
B27: Guyane française
B28: Martinique | D28: 1
B29: Mayotte | C29: 1 | D29: 2
B30: Nouvelle-Calédonie | D30: 1
B31: Polynésie française | C31: 1
B32: Réunion | D32: 1
B33: Wallis et Futuna (îles) | D33: 1
A34: Total Outre-Mer | C34: 2 | D34: 7
A35: Autres pays | B35: Egypte | C35: 1
B37: Royaume-Uni | D37: 1
B38: Belgique | E38: 1
B39: multiple | E39: 4
A40: Total Autres pays | C40: 1 | D40: 1 | E40: 5
A41: Total | C41: 305 | D41: 327 | E41: 282
A42: Source : Entrées dépôt légal - logiciel de bulletinage
A44: Nombre de migrations par langue
A45: Langue | B45: 2016 | C45: 2017 | D45: 2018
A46: allemand | B46: 1
A47: anglais | B47: 17 | C47: 17 | D47: 8
A48: espagnol | B48: 4
A49: français | B49: 278 | C49: 307 | D49: 270
A50: italien | B50: 1
A51: japonais | D51: 1
A52: multilingue | B52: 1 | C52: 3 | D52: 2
A53: néerlandais | B53: 1
A54: portugais | B54: 1
A55: roumain | B55: 1
A56: non renseigné | D56: 1
A57: Total | B57: 305 | C57: 327 | D57: 282
A58: Source : Entrées dépôt légal - logiciel de bulletinage
A60: Nombre de migrations par édition publique
A61: Edition publique | B61: 2016 | C61: 2017 | D61: 2018
A62: Hors Edition publique | B62: 191 | C62: 233 | D62: 202
A63: Edition publique | B63: 114 | C63: 94 | D63: 80
A64: Total | B64: 305 | C64: 327 | D64: 282
A65: Source : Entrées dépôt légal - logiciel de bulletinage
A67: Nombre de migrations par périodicité
A68: Périodicité | B68: 2016 | C68: 2017 | D68: 2018
A69: Triennal | B69: 1 | C69: 3 | D69: 2
A70: Biennal | B70: 5 | C70: 8 | D70: 7
A71: Annuel | B71: 86 | C71: 101 | D71: 92
A72: Semestriel | B72: 56 | C72: 64 | D72: 37
A73: 3 fois par an | B73: 33 | C73: 20 | D73: 32
A74: Trimestriel | B74: 47 | C74: 66 | D74: 71
A75: Bimestriel | B75: 22 | C75: 24 | D75: 18
A76: Mensuel | B76: 30 | C76: 34 | D76: 15
A77: Bimensuel | B77: 2 | D77: 2
A78: Toutes les 2 semaines | B78: 2 | D78: 3
A79: Hebdomadaire | B79: 11 | C79: 1 | D79: 3
A80: Semi-hebdomadaire | B80: 3 | C80: 1
A81: Quotidien | B81: 2 | C81: 3
A82: Irrégulier, Autres périodes | B82: 5 | C82: 2
A83: Total | B83: 305 | C83: 327 | D83: 282
A84: Source : Entrées dépôt légal - logiciel de bulletinage
A86: Nombre de migrations par thématique
A87: Grande classe | B87: Indices | C87: Intitulés | D87: 2016 | E87: 2017 | F87: 2018
A88: 0XX | B88: 000 | C88: Généralités, collections encyclopédiques
B89: 001 | C89: Culture générale | E89: 1
B90: 004 | C90: Informatique | D90: 1 | E90: 5 | F90: 2
B91: 010 | C91: Bibliographie, catalogues
B92: 020 | C92: Sciences de l'information, lecture | D92: 2 | E92: 1
B93: 060 | C93: Instituts de recherche, archives, musées | E93: 2 | F93: 2
B94: 070 | C94: Édition, médias, librairie | D94: 1 | E94: 3 | F94: 1
B95: 071 | C95: Magazines généraux | E95: 4 | F95: 1
B96: 072 | C96: Publications féminines, publications masculines
B97: 073 | C97: Presse et collections documentaires pour enfants et adolescents
B98: 074 | C98: Presse nationale et locale d’information | D98: 2 | E98: 1
B99: 075 | C99: Presse parallèle, fanzines | E99: 1
B100: 076 | C100: Journaux internes d’entreprise | D100: 14 | E100: 11 | F100: 10
B101: 077 | C101: Journaux d'annonces
A102: Total 0XX | D102: 20 | E102: 29 | F102: 17
A103: 1XX | B103: 100 | C103: Philosophie | F103: 2
B104: 130 | C104: Ésotérisme et sciences occultes
B105: 150 | C105: Psychologie et psychanalyse | D105: 1
A106: Total 1XX | D106: 1 | F106: 2
A107: 2XX | B107: 200 | C107: Religion | F107: 1
B108: 280 | C108: Églises chrétiennes | D108: 8 | E108: 2 | F108: 2
B109: 294 | C109: Hindouisme, bouddhisme
B110: 296 | C110: Judaïsme
B111: 299 | C111: Autres religions | D111: 1
A112: Total 2XX | D112: 9 | E112: 2 | F112: 3
A113: 3XX | B113: 300 | C113: Sciences sociales, sociologie | D113: 3 | E113: 1
B114: 320 | C114: Sciences politiques et gouvernement | D114: 1 | E114: 2 | F114: 1
B115: 323 | C115: Droits civils et politiques, citoyenneté, minorités | F115: 2
B116: 324 | C116: Partis et mouvements politiques | D116: 2 | E116: 1 | F116: 3
B117: 327 | C117: Politique internationale | D117: 1 | E117: 1 | F117: 2
B118: 330 | C118: Économie (généralités) | D118: 15 | E118: 10 | F118: 4
B119: 331 | C119: Économie du travail, syndicats | D119: 8 | E119: 12 | F119: 6
B120: 332 | C120: Économie financière | D120: 5 | E120: 8 | F120: 6
B121: 333 | C121: Économie du foncier et de l'énergie | D121: 4 | E121: 2 | F121: 4
B122: 338 | C122: Économie de la production et de la consommation | D122: 19 | E122: 5 | F122: 4
B123: 340 | C123: Droit | D123: 4 | E123: 4 | F123: 14
B124: 350 | C124: Administration publique | D124: 3 | E124: 4 | F124: 4
B125: 352 | C125: Administration territoriale | D125: 24 | E125: 14 | F125: 16
B126: 355 | C126: Armée, défense | E126: 1 | F126: 2
B127: 362 | C127: Problèmes et services sociaux | D127: 6 | E127: 13 | F127: 27
B128: 363 | C128: Protection de l’environnement | D128: 6 | E128: 14 | F128: 10
B129: 366 | C129: Associations, cercles et clubs divers | D129: 2 | E129: 2 | F129: 7
B130: 368 | C130: Assurances, sécurité sociale, retraites | D130: 11 | E130: 13 | F130: 8
B131: 370 | C131: Éducation, enseignement | D131: 4 | E131: 6 | F131: 3
B132: 371 | C132: Organisation scolaire, pédagogie, parents d’élèves | D132: 2 | E132: 1 | F132: 2
B133: 373 | C133: Enseignement primaire, enseignement secondaire général et technique, journaux scolaires | E133: 3 | F133: 2
B134: 374 | C134: Formation professionnelle et continue | E134: 1
B135: 378 | C135: Enseignement supérieur | D135: 6 | E135: 7 | F135: 2
B136: 380 | C136: Commerce | D136: 1 | E136: 3 | F136: 3
B137: 385 | C137: Transports | D137: 5 | E137: 6 | F137: 5
B138: 390 | C138: Ethnologie, anthropologie, folklore | E138: 2
A139: Total 3XX | D139: 133 | E139: 136 | F139: 137
A140: 4XX | B140: 400 | C140: Linguistique | F140: 2
A141: Total 4XX | F141: 2
A142: 5XX | B142: 500 | C142: Sciences (généralités) | E142: 2
B143: 510 | C143: Mathématiques | D143: 1 | E143: 2
B144: 520 | C144: Astronomie
B145: 530 | C145: Physique | D145: 1 | E145: 2
B146: 540 | C146: Chimie, minéralogie
B147: 550 | C147: Sciences de la terre | D147: 1 | F147: 1
B148: 560 | C148: Paléontologie | F148: 1
B149: 570 | C149: Sciences de la vie | D149: 1 | F149: 1
B150: 580 | C150: Botanique
B151: 590 | C151: Zoologie | D151: 1 | E151: 3 | F151: 3
A152: Total 5XX | D152: 5 | E152: 9 | F152: 6
A153: 6XX | B153: 600 | C153: Sciences appliquées, technologie | D153: 4
B154: 610 | C154: Médecine, santé | D154: 12 | E154: 21 | F154: 14
B155: 620 | C155: Sciences de l'ingénieur | D155: 9 | E155: 17 | F155: 6
B156: 630 | C156: Agriculture, élevage | D156: 10 | E156: 10 | F156: 14
B157: 640 | C157: Économie domestique/vie pratique, hôtellerie | D157: 2 | E157: 4 | F157: 2
B158: 650 | C158: Gestion et organisation des entreprises, publicité | D158: 3 | E158: 9 | F158: 9
B159: 660 | C159: Génie chimique et technologies connexes | D159: 1 | E159: 4 | F159: 2
B160: 670 | C160: Industries et métiers divers | D160: 2 | E160: 4 | F160: 4
B161: 690 | C161: Bâtiment | D161: 7 | E161: 2 | F161: 3
A162: Total 6XX | D162: 50 | E162: 71 | F162: 54
A163: 7XX | B163: 700 | C163: Arts (généralités) | D163: 3 | E163: 3 | F163: 3
B164: 710 | C164: Urbanisme, aménagement du territoire | D164: 4 | E164: 1 | F164: 9
B165: 720 | C165: Architecture | E165: 1
B166: 730 | C166: Arts plastiques, sculpture
B167: 740 | C167: Dessin, arts décoratifs, artisanat d’art, bandes dessinées (histoire et critique) | E167: 3
B168: 750 | C168: Peinture, arts graphiques
B169: 770 | C169: Photographie | D169: 1 | E169: 2 | F169: 1
B170: 780 | C170: Musique | D170: 4 | E170: 4 | F170: 3
B171: 790 | C171: Spectacles (généralités), loisirs
B172: 791 | C172: Audiovisuel | D172: 12 | E172: 2 | F172: 3
B173: 792 | C173: Représentations scéniques
B174: 793 | C174: Jeux et divertissements d'intérieur | D174: 3
B175: 796 | C175: Sports, activités de plein air | D175: 4 | E175: 7 | F175: 9
A176: Total 7XX | D176: 31 | E176: 23 | F176: 28
A177: 8XX | B177: 800 | C177: Littérature générale, histoire et critique littéraires, revues littéraires | D177: 7 | E177: 4 | F177: 4
B178: 801 | C178: Poésie
B179: 802 | C179: Théâtre | D179: 1
B180: 809 | C180: Littérature pour la jeunesse | F180: 1
A181: Total 8XX | D181: 8 | E181: 4 | F181: 5
A182: 9XX | B182: 900 | C182: Histoire et géographie (généralités) | D182: 1 | E182: 1
B183: 910 | C183: Géographie, voyages, tourisme | E183: 5
B184: 929 | C184: GénéalogieHistoire ancienne, archéologie | D184: 1
B185: 930 | C185: Histoire ancienne, archéologie, préhistoire | E185: 1 | F185: 2
B186: 940 | C186: Histoire médiévale, moderne et contemporaine | F186: 1
B187: 944 | C187: Histoire de France, histoire locale | D187: 1 | E187: 1 | F187: 2
A188: Total 9XX | D188: 3 | E188: 8 | F188: 5
A189: Non renseigné | D189: 45 | E189: 45 | F189: 23
A190: Total | D190: 305 | E190: 327 | F190: 282
A191: Source : Entrées dépôt légal - logiciel de bulletinage

Sheet N_gén
A1: Nombre de nouveaux titres par pays et année
A2: Années | B2: Classes | C2: France métropolitaine | D2: France d'Outre-Mer | E2: Italie | F2: Belgique | G2: intergouvernemental | H2: Suisse | I2: Allemagne | J2: Royaume-Uni. | K2: Espagne | L2: Canada | M2: Etats-Unis (USA) | N2: Japon | O2: Luxembourg | P2: Roumanie | Q2: Pologne | R2: Chine | S2: République du Congo | T2: Irlande | U2: République Tchèque | V2: Maurice | W2: Maroc | X2: Vietnam | Y2: Monaco | Z2: Total
A3: 2016 | B3: 0XX | C3: 334 | D3: 8 | E3: 0 | F3: 0 | G3: 0 | H3: 0 | I3: 0 | J3: 0 | K3: 0 | L3: 0 | M3: 1 | N3: 1 | O3: 0 | P3: 0 | Q3: 0 | R3: 0 | S3: 0 | T3: 0 | U3: 0 | X3: 0 | Z3: 344
B4: 1XX | C4: 16 | D4: 0 | E4: 0 | F4: 1 | G4: 0 | H4: 0 | I4: 0 | J4: 0 | K4: 0 | L4: 0 | M4: 0 | N4: 0 | O4: 0 | P4: 0 | Q4: 0 | R4: 0 | S4: 0 | T4: 0 | U4: 0 | X4: 0 | Z4: 17
B5: 2XX | C5: 106 | D5: 1 | E5: 0 | F5: 0 | G5: 0 | H5: 1 | I5: 0 | J5: 0 | K5: 0 | L5: 0 | M5: 0 | N5: 0 | O5: 0 | P5: 0 | Q5: 0 | R5: 0 | S5: 0 | T5: 0 | U5: 0 | X5: 0 | Z5: 108
B6: 3XX | C6: 1125 | D6: 36 | E6: 0 | F6: 1 | G6: 2 | H6: 0 | I6: 0 | J6: 0 | K6: 0 | L6: 0 | M6: 0 | N6: 0 | O6: 0 | P6: 0 | Q6: 0 | R6: 0 | S6: 0 | T6: 0 | U6: 0 | X6: 0 | Z6: 1164
B7: 4XX | C7: 4 | D7: 0 | E7: 0 | F7: 3 | G7: 0 | H7: 0 | I7: 0 | J7: 0 | K7: 0 | L7: 0 | M7: 0 | N7: 0 | O7: 0 | P7: 0 | Q7: 0 | R7: 0 | S7: 0 | T7: 0 | U7: 0 | X7: 0 | Z7: 7
B8: 5XX | C8: 32 | D8: 0 | E8: 0 | F8: 0 | G8: 0 | H8: 0 | I8: 0 | J8: 1 | K8: 0 | L8: 0 | M8: 0 | N8: 0 | O8: 0 | P8: 0 | Q8: 0 | R8: 0 | S8: 0 | T8: 0 | U8: 0 | X8: 0 | Z8: 33
B9: 6XX | C9: 440 | D9: 4 | E9: 0 | F9: 1 | G9: 0 | H9: 0 | I9: 0 | J9: 0 | K9: 0 | L9: 0 | M9: 0 | N9: 0 | O9: 0 | P9: 0 | Q9: 0 | R9: 0 | S9: 0 | T9: 0 | U9: 0 | X9: 0 | Z9: 445
B10: 7XX | C10: 375 | D10: 4 | E10: 0 | F10: 2 | G10: 0 | H10: 1 | I10: 0 | J10: 5 | K10: 0 | L10: 0 | M10: 0 | N10: 0 | O10: 0 | P10: 0 | Q10: 0 | R10: 0 | S10: 0 | T10: 0 | U10: 0 | X10: 0 | Z10: 387
B11: 8XX | C11: 104 | D11: 1 | E11: 0 | F11: 1 | G11: 0 | H11: 1 | I11: 0 | J11: 0 | K11: 0 | L11: 0 | M11: 1 | N11: 0 | O11: 0 | P11: 0 | Q11: 0 | R11: 0 | S11: 0 | T11: 0 | U11: 0 | X11: 0 | Z11: 108
B12: 9XX | C12: 129 | D12: 4 | E12: 1 | F12: 0 | G12: 0 | H12: 3 | I12: 0 | J12: 2 | K12: 0 | L12: 0 | M12: 0 | N12: 0 | O12: 0 | P12: 0 | Q12: 0 | R12: 0 | S12: 0 | T12: 0 | U12: 0 | X12: 0 | Z12: 139
A13: Total 2016 | C13: 2665 | D13: 58 | E13: 1 | F13: 9 | G13: 2 | H13: 6 | I13: 0 | J13: 8 | K13: 0 | L13: 0 | M13: 2 | N13: 1 | O13: 0 | P13: 0 | Q13: 0 | R13: 0 | S13: 0 | T13: 0 | U13: 0 | X13: 0 | Z13: 2752
A14: 2017 | B14: 0XX | C14: 359 | D14: 11 | E14: 0 | F14: 0 | G14: 0 | H14: 0 | I14: 0 | J14: 3 | K14: 0 | L14: 0 | M14: 0 | N14: 0 | O14: 0 | P14: 0 | Q14: 0 | R14: 1 | S14: 0 | T14: 0 | U14: 0 | X14: 0 | Z14: 374
B15: 1XX | C15: 24 | D15: 0 | E15: 0 | F15: 0 | G15: 0 | H15: 0 | I15: 0 | J15: 0 | K15: 1 | L15: 0 | M15: 0 | N15: 0 | O15: 0 | P15: 0 | Q15: 0 | R15: 0 | S15: 0 | T15: 0 | U15: 0 | X15: 0 | Z15: 25
B16: 2XX | C16: 91 | D16: 2 | E16: 1 | F16: 0 | G16: 0 | H16: 0 | I16: 0 | J16: 0 | K16: 0 | L16: 0 | M16: 0 | N16: 0 | O16: 0 | P16: 0 | Q16: 0 | R16: 0 | S16: 0 | T16: 0 | U16: 1 | X16: 0 | Z16: 95
B17: 3XX | C17: 1339 | D17: 23 | E17: 0 | F17: 2 | G17: 6 | H17: 1 | I17: 0 | J17: 1 | K17: 4 | L17: 0 | M17: 0 | N17: 0 | O17: 0 | P17: 0 | Q17: 0 | R17: 0 | S17: 0 | T17: 1 | U17: 0 | X17: 0 | Z17: 1377
B18: 4XX | C18: 4 | D18: 0 | E18: 0 | F18: 0 | G18: 0 | H18: 0 | I18: 0 | J18: 0 | K18: 0 | L18: 0 | M18: 0 | N18: 0 | O18: 0 | P18: 0 | Q18: 0 | R18: 0 | S18: 0 | T18: 0 | U18: 0 | X18: 0 | Z18: 4
B19: 5XX | C19: 27 | D19: 0 | E19: 0 | F19: 0 | G19: 0 | H19: 0 | I19: 0 | J19: 0 | K19: 1 | L19: 0 | M19: 0 | N19: 0 | O19: 0 | P19: 0 | Q19: 0 | R19: 0 | S19: 1 | T19: 0 | U19: 0 | X19: 0 | Z19: 29
B20: 6XX | C20: 388 | D20: 5 | E20: 1 | F20: 1 | G20: 0 | H20: 6 | I20: 1 | J20: 0 | K20: 2 | L20: 0 | M20: 0 | N20: 0 | O20: 0 | P20: 0 | Q20: 0 | R20: 0 | S20: 0 | T20: 0 | U20: 0 | X20: 0 | Z20: 404
B21: 7XX | C21: 422 | D21: 9 | E21: 0 | F21: 1 | G21: 0 | H21: 2 | I21: 0 | J21: 6 | K21: 9 | L21: 0 | M21: 0 | N21: 0 | O21: 0 | P21: 0 | Q21: 0 | R21: 0 | S21: 0 | T21: 0 | U21: 0 | X21: 0 | Z21: 449
B22: 8XX | C22: 96 | D22: 0 | E22: 0 | F22: 0 | G22: 0 | H22: 0 | I22: 0 | J22: 1 | K22: 1 | L22: 0 | M22: 0 | N22: 0 | O22: 0 | P22: 0 | Q22: 0 | R22: 0 | S22: 0 | T22: 1 | U22: 0 | X22: 0 | Z22: 99
B23: 9XX | C23: 145 | D23: 2 | E23: 0 | F23: 0 | G23: 0 | H23: 1 | I23: 0 | J23: 0 | K23: 1 | L23: 0 | M23: 0 | N23: 0 | O23: 0 | P23: 0 | Q23: 1 | R23: 0 | S23: 0 | T23: 0 | U23: 0 | X23: 0 | Z23: 150
A24: Total 2017 | C24: 2895 | D24: 52 | E24: 2 | F24: 4 | G24: 6 | H24: 10 | I24: 1 | J24: 11 | K24: 19 | L24: =SUM(L14:L24) -> 0 | M24: =SUM(M14:M24) -> 0 | N24: 0 | O24: 0 | P24: 0 | Q24: 1 | R24: 1 | S24: 1 | T24: 2 | U24: 1 | X24: =SUM(X14:X23) -> 0 | Z24: =SUM(C24:X24) -> 3006
A25: 2018 | B25: 0XX | C25: 295 | D25: 19 | Z25: =SUM(C25:Y25) -> 314
B26: 1XX | C26: 30 | D26: 0 | J26: 1 | Y26: 1 | Z26: =SUM(C26:Y26) -> 32
B27: 2XX | C27: 86 | D27: 1 | Z27: 87
B28: 3XX | C28: 1268 | D28: 28 | E28: 1 | F28: 2 | G28: 1 | J28: 1 | K28: 7 | W28: 1 | Z28: 1309
B29: 4XX | C29: 6 | D29: 0 | Z29: 6
B30: 5XX | C30: 34 | D30: 0 | Z30: 34
B31: 6XX | C31: 363 | D31: 15 | E31: 2 | F31: 1 | H31: 2 | J31: 1 | K31: 1 | Z31: 385
B32: 7XX | C32: 403 | D32: 11 | E32: 1 | H32: 1 | I32: 1 | J32: 2 | K32: 12 | V32: 1 | Z32: 432
B33: 8XX | C33: 69 | D33: 1 | F33: 1 | Z33: 71
B34: 9XX | C34: 129 | D34: 2 | J34: 1 | X34: 1 | Z34: 133
A35: Total 2018 | C35: 2683 | D35: 77 | E35: 4 | F35: 4 | G35: 1 | H35: 3 | I35: 1 | J35: 6 | K35: 20 | V35: 1 | W35: 1 | X35: 1 | Y35: 1 | Z35: 2803
A36: Source : Bibliographie nationale - Publications en série
A37: Libellés cadre de classement : http://www.bnf.fr/documents/intermarc_ref_cdc-perios.pdf
A39: Nombre de nouveaux titres par département
A40: Départements | B40: 2016 | C40: 2017 | D40: 2018
A41: 01 - Ain | B41: 9 | C41: 14 | D41: 7
A42: 02 - Aisnes | B42: 6 | C42: 11 | D42: 13
A43: 03 - Allier | B43: 10 | C43: 12 | D43: 12
A44: 04 - Alpes-de-Haute-Provence | B44: 6 | C44: 6 | D44: 10
A45: 05 - Hautes-Alpes | B45: 4 | C45: 3 | D45: 8
A46: 06 - Alpes-Maritimes | B46: 52 | C46: 50 | D46: 38
A47: 07 - Ardèche | B47: 10 | C47: 10 | D47: 11
A48: 08 - Ardennes | B48: 3 | C48: 5 | D48: 7
A49: 09 - Ariège | B49: 5 | C49: 7 | D49: 4
A50: 10 - Aube | B50: 9 | C50: 8 | D50: 3
A51: 11 - Aude | B51: 7 | C51: 5 | D51: 9
A52: 12 - Aveyron | B52: 9 | C52: 9 | D52: 11
A53: 13 - Bouches-du-Rhône | B53: 47 | C53: 41 | D53: 48
A54: 14 - Calvados | B54: 17 | C54: 23 | D54: 23
A55: 15 - Cantal | B55: 9 | C55: 2 | D55: 5
A56: 16 - Charente | B56: 12 | C56: 5 | D56: 8
A57: 17 - Charente-Maritime | B57: 16 | C57: 27 | D57: 18
A58: 18 - Cher | B58: 7 | C58: 9 | D58: 10
A59: 19 - Corrèze | B59: 4 | C59: 13 | D59: 10
A60: 20 - Corse-du-Sud & Haute-Corse | B60: 7 | C60: 6 | D60: 5
A61: 21 - Côte-d'Or | B61: 23 | C61: 47 | D61: 38
A62: 22 - Côtes-d'Armor | B62: 10 | C62: 14 | D62: 9
A63: 23 - Creuse | B63: 7 | C63: 5 | D63: 13
A64: 24 - Dordogne | B64: 12 | C64: 9 | D64: 8
A65: 25 - Doubs | B65: 29 | C65: 24 | D65: 31
A66: 26 - Drôme | B66: 10 | C66: 13 | D66: 15
A67: 27 - Eure | B67: 7 | C67: 17 | D67: 13
A68: 28 - Eure-et-Loir | B68: 17 | C68: 8 | D68: 10
A69: 29 - Finistère | B69: 24 | C69: 14 | D69: 30
A70: 30 - Gard | B70: 15 | C70: 13 | D70: 14
A71: 31 - Haute-Garonne | B71: 66 | C71: 60 | D71: 49
A72: 32 - Gers | B72: 3 | C72: 3 | D72: 8
A73: 33 - Gironde | B73: 47 | C73: 50 | D73: 45
A74: 34 - Hérault | B74: 45 | C74: 31 | D74: 41
A75: 35 - Ile-et-Vilaine | B75: 33 | C75: 55 | D75: 43
A76: 36 - Indre | B76: 11 | C76: 11 | D76: 5
A77: 37 - Indre-et-Loire | B77: 16 | C77: 17 | D77: 12
A78: 38 - Isère | B78: 31 | C78: 29 | D78: 36
A79: 39 - Jura | B79: 12 | C79: 8 | D79: 13
A80: 40 - Landes | B80: 12 | C80: 8 | D80: 11
A81: 41 - Loir-et-Cher | B81: 14 | C81: 11 | D81: 19
A82: 42 - Loire | B82: 15 | C82: 24 | D82: 13
A83: 43 - Haute-Loire | B83: 15 | C83: 11 | D83: 10
A84: 44 - Loire-Atlantique | B84: 40 | C84: 41 | D84: 38
A85: 45 - Loiret | B85: 14 | C85: 32 | D85: 16
A86: 46 - Lot | B86: 6 | C86: 12 | D86: 8
A87: 47 - Lot-et-Garonne | B87: 7 | C87: 11 | D87: 7
A88: 48 - Lozère | B88: 1 | C88: 7 | D88: 2
A89: 49 - Maine-et-Loire | B89: 15 | C89: 28 | D89: 25
A90: 50 - Manche | B90: 6 | C90: 12 | D90: 14
A91: 51 - Marne | B91: 25 | C91: 21 | D91: 13
A92: 52 - Haute-Marne | B92: 7 | C92: 9 | D92: 4
A93: 53 - Mayenne | B93: 9 | C93: 3 | D93: 10
A94: 54 - Meurthe-et-Moselle | B94: 27 | C94: 30 | D94: 41
A95: 55 - Meuse | B95: 9 | C95: 7 | D95: 9
A96: 56 - Morbihan | B96: 9 | C96: 19 | D96: 16
A97: 57 - Moselle | B97: 23 | C97: 11 | D97: 36
A98: 58 - Nièvre | B98: 8 | C98: 9 | D98: 6
A99: 59 - Nord | B99: 79 | C99: 106 | D99: 65
A100: 60 - Oise | B100: 9 | C100: 11 | D100: 16
A101: 61 - Orne | B101: 5 | C101: 9 | D101: 11
A102: 62 - Pas-de-Calais | B102: 22 | C102: 21 | D102: 13
A103: 63 - Puy-de-Dôme | B103: 37 | C103: 31 | D103: 31
A104: 64 - Pyrénées-Atlantiques | B104: 14 | C104: 10 | D104: 10
A105: 65 - Hautes-Pyrénées | B105: 16 | C105: 17 | D105: 10
A106: 66 - Pyrénées-Orientales | B106: 17 | C106: 8 | D106: 16
A107: 67 - Bas-Rhin | B107: 41 | C107: 48 | D107: 46
A108: 68 - Haut-Rhin | B108: 21 | C108: 34 | D108: 28
A109: 69 - Rhône | B109: 69 | C109: 105 | D109: 78
A110: 70 - Haute-Saône | B110: 8 | C110: 10 | D110: 11
A111: 71 - Saône-et-Loire | B111: 35 | C111: 9 | D111: 9
A112: 72 - Sarthe | B112: 13 | C112: 9 | D112: 9
A113: 73 - Savoie | B113: 22 | C113: 16 | D113: 10
A114: 74 - Haute-Savoie | B114: 16 | C114: 18 | D114: 24
A115: 75 - Paris | B115: 569 | C115: 714 | D115: 638
A116: 76 - Seine-Maritime | B116: 35 | C116: 27 | D116: 39
A117: 77 - Seine-et-Marne | B117: 43 | C117: 41 | D117: 43
A118: 78 - Yvelines | B118: 32 | C118: 26 | D118: 40
A119: 79 - Deux-Sèvres | B119: 11 | C119: 18 | D119: 8
A120: 80 - Somme | B120: 20 | C120: 21 | D120: 18
A121: 81 - Tarn | B121: 8 | C121: 10 | D121: 6
A122: 82 - Tarn-et-Garonne | B122: 4 | C122: 8 | D122: 3
A123: 83 - Var | B123: 16 | C123: 15 | D123: 17
A124: 84 - Vaucluse | B124: 13 | C124: 16 | D124: 18
A125: 85 - Vendée | B125: 8 | C125: 13 | D125: 19
A126: 86 - Vienne | B126: 37 | C126: 41 | D126: 45
A127: 87 - Haute-Vienne | B127: 11 | C127: 15 | D127: 12
A128: 88 - Vosges | B128: 10 | C128: 12 | D128: 9
A129: 89 - Yonne | B129: 9 | C129: 11 | D129: 14
A130: 90 - Territoire-de-Belfort | B130: 3 | C130: 6 | D130: 9
A131: 91 - Essonne | B131: 23 | C131: 27 | D131: 17
A132: 92 - Hauts-de-Seine | B132: 241 | C132: 295 | D132: 225
A133: 93 - Seine-Saint-Denis | B133: 70 | C133: 66 | D133: 60
A134: 94 - Val-de-Marne | B134: 52 | C134: 47 | D134: 40
A135: 95 - Val-d'Oise | B135: 25 | C135: 17 | D135: 14
A136: 97 - Guadeloupe, Martinique, Guyane, Réunion, Saint-Pierre-et-Miquelon, Mayotte | B136: 43 | C136: 36 | D136: 50
A137: 98 - Polynésie, Nouvelle-Calédonie, Wallis et Futuna, Saint-Martin, Saint-Barthélémy | B137: 18 | C137: 14 | D137: 27
A138: code postal inconnu ou étranger | B138: 98 | C138: 48 | D138: 54
A139: Total | B139: =SUM(B41:B138) -> 2752 | C139: =SUM(C41:C138) -> 3006 | D139: 2803
A140: Source : Bibliographie nationale - Publications en série
A142: Nombre de nouveaux titres par langue et année
A143: Années | B143: Classes | C143: français | D143: multilingue | E143: anglais | F143: langues multiples | G143: espagnol | H143: allemand | I143: italien | J143: russe | K143: chinois | L143: portugais | M143: occitan | N143: néerlandais | O143: ukrainien | P143: hébreu | Q143: tchèque, slovène, slovaque, croate, estonien, serbe | R143: breton | S143: polonais | T143: ido | U143: malgache | V143: créole français | W143: langues baltes (lituanien, letton) | X143: tamoul | Y143: persan | Z143: japonais | AA143: Total
A144: 2016 | B144: 0XX | C144: 330 | D144: 3 | E144: 7 | F144: 2 | G144: 0 | H144: 0 | I144: 1 | J144: 1 | K144: 0 | L144: 0 | M144: 0 | N144: 0 | O144: 0 | P144: 0 | Q144: 0 | R144: 0 | S144: 0 | T144: 0 | U144: 0 | X144: 0 | Z144: 0 | AA144: 344
B145: 1XX | C145: 15 | D145: 1 | E145: 1 | F145: 0 | G145: 0 | H145: 0 | I145: 0 | J145: 0 | K145: 0 | L145: 0 | M145: 0 | N145: 0 | O145: 0 | P145: 0 | Q145: 0 | R145: 0 | S145: 0 | T145: 0 | U145: 0 | X145: 0 | Z145: 0 | AA145: 17
B146: 2XX | C146: 104 | D146: 0 | E146: 1 | F146: 1 | G146: 1 | H146: 0 | I146: 1 | J146: 0 | K146: 0 | L146: 0 | M146: 0 | N146: 0 | O146: 0 | P146: 0 | Q146: 0 | R146: 0 | S146: 0 | T146: 0 | U146: 0 | X146: 0 | Z146: 0 | AA146: 108
B147: 3XX | C147: 1115 | D147: 14 | E147: 19 | F147: 10 | G147: 1 | H147: 0 | I147: 1 | J147: 0 | K147: 0 | L147: 1 | M147: 1 | N147: 0 | O147: 1 | P147: 0 | Q147: 1 | R147: 0 | S147: 0 | T147: 0 | U147: 0 | X147: 0 | Z147: 0 | AA147: 1164
B148: 4XX | C148: 5 | D148: 0 | E148: 0 | F148: 2 | G148: 0 | H148: 0 | I148: 0 | J148: 0 | K148: 0 | L148: 0 | M148: 0 | N148: 0 | O148: 0 | P148: 0 | Q148: 0 | R148: 0 | S148: 0 | T148: 0 | U148: 0 | X148: 0 | Z148: 0 | AA148: 7
B149: 5XX | C149: 29 | D149: 1 | E149: 2 | F149: 1 | G149: 0 | H149: 0 | I149: 0 | J149: 0 | K149: 0 | L149: 0 | M149: 0 | N149: 0 | O149: 0 | P149: 0 | Q149: 0 | R149: 0 | S149: 0 | T149: 0 | U149: 0 | X149: 0 | Z149: 0 | AA149: 33
B150: 6XX | C150: 424 | D150: 6 | E150: 10 | F150: 3 | G150: 1 | H150: 0 | I150: 0 | J150: 0 | K150: 0 | L150: 0 | M150: 0 | N150: 1 | O150: 0 | P150: 0 | Q150: 0 | R150: 0 | S150: 0 | T150: 0 | U150: 0 | X150: 0 | Z150: 0 | AA150: 445
B151: 7XX | C151: 358 | D151: 17 | E151: 8 | F151: 1 | G151: 1 | H151: 1 | I151: 1 | J151: 0 | K151: 0 | L151: 0 | M151: 0 | N151: 0 | O151: 0 | P151: 0 | Q151: 0 | R151: 0 | S151: 0 | T151: 0 | U151: 0 | X151: 0 | Z151: 0 | AA151: 387
B152: 8XX | C152: 103 | D152: 0 | E152: 0 | F152: 3 | G152: 0 | H152: 0 | I152: 0 | J152: 1 | K152: 0 | L152: 0 | M152: 0 | N152: 0 | O152: 0 | P152: 1 | Q152: 0 | R152: 0 | S152: 0 | T152: 0 | U152: 0 | X152: 0 | Z152: 0 | AA152: 108
B153: 9XX | C153: 125 | D153: 4 | E153: 2 | F153: 4 | G153: 0 | H153: 3 | I153: 0 | J153: 1 | K153: 0 | L153: 0 | M153: 0 | N153: 0 | O153: 0 | P153: 0 | Q153: 0 | R153: 0 | S153: 0 | T153: 0 | U153: 0 | X153: 0 | Z153: 0 | AA153: 139
A154: Total 2016 | C154: 2608 | D154: 46 | E154: 50 | F154: 27 | G154: 4 | H154: 4 | I154: 4 | J154: 3 | K154: 0 | L154: 1 | M154: 1 | N154: 1 | O154: 1 | P154: 1 | Q154: 1 | R154: 0 | S154: 0 | T154: 0 | U154: 0 | X154: 0 | Z154: 0 | AA154: 2752
A155: 2017 | B155: 0XX | C155: 344 | D155: 9 | E155: 12 | F155: 3 | G155: 2 | H155: 0 | I155: 0 | J155: 0 | K155: 0 | L155: 0 | M155: 1 | N155: 0 | O155: 0 | P155: 0 | Q155: 1 | R155: 2 | S155: 0 | T155: 0 | U155: 0 | X155: 0 | Z155: 0 | AA155: =SUM(C155:AA155) -> 374
B156: 1XX | C156: 23 | D156: 1 | E156: 0 | F156: 1 | G156: 0 | H156: 0 | I156: 0 | J156: 0 | K156: 0 | L156: 0 | M156: 0 | N156: 0 | O156: 0 | P156: 0 | Q156: 0 | R156: 0 | S156: 0 | T156: 0 | U156: 0 | X156: 0 | Z156: 0 | AA156: 25
B157: 2XX | C157: 91 | D157: 2 | E157: 0 | F157: 1 | G157: 0 | H157: 0 | I157: 0 | J157: 0 | K157: 0 | L157: 1 | M157: 0 | N157: 0 | O157: 0 | P157: 0 | Q157: 0 | R157: 0 | S157: 0 | T157: 0 | U157: 0 | X157: 0 | Z157: 0 | AA157: 95
B158: 3XX | C158: 1332 | D158: 17 | E158: 14 | F158: 6 | G158: 0 | H158: 0 | I158: 0 | J158: 3 | K158: 1 | L158: 0 | M158: 0 | N158: 2 | O158: 1 | P158: 0 | Q158: 0 | R158: 1 | S158: 0 | T158: 0 | U158: 0 | X158: 0 | Z158: 0 | AA158: 1377
B159: 4XX | C159: 2 | D159: 1 | E159: 0 | F159: 1 | G159: 0 | H159: 0 | I159: 0 | J159: 0 | K159: 0 | L159: 0 | M159: 0 | N159: 0 | O159: 0 | P159: 0 | Q159: 0 | R159: 0 | S159: 0 | T159: 0 | U159: 0 | X159: 0 | Z159: 0 | AA159: 4
B160: 5XX | C160: 26 | D160: 0 | E160: 3 | F160: 0 | G160: 0 | H160: 0 | I160: 0 | J160: 0 | K160: 0 | L160: 0 | M160: 0 | N160: 0 | O160: 0 | P160: 0 | Q160: 0 | R160: 0 | S160: 0 | T160: 0 | U160: 0 | X160: 0 | Z160: 0 | AA160: 29
B161: 6XX | C161: 385 | D161: 7 | E161: 7 | F161: 1 | G161: 1 | H161: 2 | I161: 1 | J161: 0 | K161: 0 | L161: 0 | M161: 0 | N161: 0 | O161: 0 | P161: 0 | Q161: 0 | R161: 0 | S161: 0 | T161: 0 | U161: 0 | X161: 0 | Z161: 0 | AA161: 404
B162: 7XX | C162: 418 | D162: 22 | E162: 3 | F162: 3 | G162: 0 | H162: 0 | I162: 2 | J162: 0 | K162: 1 | L162: 0 | M162: 0 | N162: 0 | O162: 0 | P162: 0 | Q162: 0 | R162: 0 | S162: 0 | T162: 0 | U162: 0 | X162: 0 | Z162: 0 | AA162: 449
B163: 8XX | C163: 92 | D163: 3 | E163: 1 | F163: 3 | G163: 0 | H163: 0 | I163: 0 | J163: 0 | K163: 0 | L163: 0 | M163: 0 | N163: 0 | O163: 0 | P163: 0 | Q163: 0 | R163: 0 | S163: 0 | T163: 0 | U163: 0 | X163: 0 | Z163: 0 | AA163: 99
B164: 9XX | C164: 139 | D164: 8 | E164: 1 | F164: 1 | G164: 0 | H164: 0 | I164: 0 | J164: 0 | K164: 0 | L164: 0 | M164: 1 | N164: 0 | O164: 0 | P164: 0 | Q164: 0 | R164: 0 | S164: 0 | T164: 0 | U164: 0 | X164: 0 | Z164: 0 | AA164: 150
A165: Total 2017 | C165: 2852 | D165: 70 | E165: 41 | F165: 20 | G165: 3 | H165: 2 | I165: 3 | J165: 3 | K165: 2 | L165: 1 | M165: 2 | N165: 2 | O165: 1 | P165: =SUM(P155:P164) -> 0 | Q165: 1 | R165: 3 | S165: =SUM(S155:S164) -> 0 | T165: =SUM(T155:T164) -> 0 | U165: =SUM(U155:U164) -> 0 | X165: =SUM(X155:X164) -> 0 | Z165: =SUM(Z155:Z164) -> 0 | AA165: =SUM(C165:Z165) -> 3006
A166: 2018 | B166: 0XX | C166: 295 | D166: 8 | E166: 4 | F166: 4 | G166: 2 | H166: 1 | I166: 0 | J166: 0 | K166: 0 | L166: 0 | M166: 0 | N166: 0 | O166: 0 | V166: 0 | Z166: 0
B167: 1XX | C167: 29 | D167: 3 | E167: 0 | F167: 0 | H167: 0 | I167: 0 | J167: 0 | K167: 0 | L167: 0 | M167: 0 | N167: 0 | V167: 0 | Z167: 0
B168: 2XX | C168: 85 | D168: 0 | E168: 0 | F168: 0 | H168: 0 | I168: 0 | J168: 0 | K168: 0 | L168: 0 | M168: 0 | N168: 0 | V168: 1 | Y168: 1 | Z168: 0
B169: 3XX | C169: 1264 | D169: 10 | E169: 26 | F169: 5 | H169: 1 | I169: 1 | J169: 0 | K169: 0 | L169: 0 | M169: 0 | N169: 0 | V169: 0 | W169: 2 | Z169: 0
B170: 4XX | C170: 4 | D170: 1 | E170: 0 | F170: 1 | H170: 0 | I170: 0 | J170: 0 | K170: 0 | L170: 0 | M170: 0 | N170: 0 | V170: 0 | Z170: 0
B171: 5XX | C171: 32 | D171: 0 | E171: 1 | F171: 0 | G171: 1 | H171: 0 | I171: 0 | J171: 0 | K171: 0 | L171: 0 | M171: 0 | N171: 0 | V171: 0 | Z171: 0
B172: 6XX | C172: 362 | D172: 6 | E172: 11 | F172: 1 | H172: 2 | I172: 1 | J172: 0 | K172: 0 | L172: 0 | M172: 0 | N172: 1 | V172: 0 | Z172: 1
B173: 7XX | C173: 398 | D173: 22 | E173: 5 | F173: 5 | H173: 1 | I173: 0 | J173: 0 | K173: 0 | L173: 0 | M173: 0 | N173: 0 | V173: 1 | Z173: 0
B174: 8XX | C174: 67 | D174: 1 | E174: 0 | F174: 3 | H174: 0 | I174: 0 | J174: 0 | K174: 0 | L174: 0 | M174: 0 | N174: 0 | V174: 0 | Z174: 0
B175: 9XX | C175: 123 | D175: 3 | E175: 3 | F175: 1 | H175: 2 | I175: 0 | J175: 0 | K175: 0 | L175: 0 | M175: 0 | N175: 1 | V175: 0 | Z175: 0
A176: Total 2018 | C176: =SUM(C166:C175) -> 2659 | D176: =SUM(D166:D175) -> 54 | E176: 50 | F176: =SUM(F166:F175) -> 20 | G176: =SUM(G166:G175) -> 3 | H176: =SUM(H166:H175) -> 7 | I176: =SUM(I166:I175) -> 2 | J176: =SUM(J166:J175) -> 0 | K176: =SUM(K166:K175) -> 0 | L176: =SUM(L166:L175) -> 0 | M176: =SUM(M166:M175) -> 0 | N176: =SUM(N166:N175) -> 2 | O176: =SUM(O166:O175) -> 0 | P176: =SUM(P166:P175) -> 0 | Q176: =SUM(Q166:Q175) -> 0 | R176: =SUM(R166:R175) -> 0 | S176: =SUM(S166:S175) -> 0 | T176: =SUM(T166:T175) -> 0 | U176: =SUM(U166:U175) -> 0 | V176: =SUM(V166:V175) -> 2 | W176: =SUM(W166:W175) -> 2 | X176: =SUM(X166:X175) -> 0 | Y176: =SUM(Y166:Y175) -> 1 | Z176: =SUM(Z166:Z175) -> 1 | AA176: =SUM(C176:Z176) -> 2803
A177: Source : Bibliographie nationale - Publications en série
A178: Libellés cadre de classement : http://www.bnf.fr/documents/intermarc_ref_cdc-perios.pdf
A180: Nombre de nouveaux titres par périodicité et année
A181: Années | B181: Indices | C181: Trimestriel | D181: Annuel | E181: Périodicité inconnue | F181: Bimestriel | G181: Mensuel | H181: Semestriel | I181: 3 fois par an | J181: Irrégulier | K181: Autres périodicités | L181: Hebdomadaire | M181: Bimensuel | N181: Biennal | O181: Quotidien | P181: Toutes les 2 semaines | Q181: Triennal | R181: Semi hebdomad. | S181: 3 fois par mois | T181: Total
A182: 2016 | B182: 0XX | C182: 77 | D182: 21 | E182: 51 | F182: 38 | G182: 47 | H182: 12 | I182: 20 | J182: 7 | K182: 2 | L182: 49 | M182: 8 | N182: 1 | O182: 7 | P182: 1 | Q182: 1 | R182: 1 | S182: 1 | T182: 344
B183: 1XX | C183: 4 | D183: 5 | E183: 1 | F183: 2 | G183: 0 | H183: 4 | I183: 0 | J183: 0 | K183: 0 | L183: 0 | M183: 1 | N183: 0 | O183: 0 | P183: 0 | Q183: 0 | R183: 0 | S183: 0 | T183: 17
B184: 2XX | C184: 39 | D184: 4 | E184: 20 | F184: 10 | G184: 18 | H184: 3 | I184: 6 | J184: 0 | K184: 2 | L184: 5 | M184: 1 | N184: 0 | O184: 0 | P184: 0 | Q184: 0 | R184: 0 | S184: 0 | T184: 108
B185: 3XX | C185: 189 | D185: 350 | E185: 190 | F185: 77 | G185: 73 | H185: 128 | I185: 55 | J185: 44 | K185: 35 | L185: 2 | M185: 8 | N185: 9 | O185: 1 | P185: 1 | Q185: 1 | R185: 1 | S185: 0 | T185: 1164
B186: 4XX | C186: 0 | D186: 3 | E186: 1 | F186: 0 | G186: 1 | H186: 2 | I186: 0 | J186: 0 | K186: 0 | L186: 0 | M186: 0 | N186: 0 | O186: 0 | P186: 0 | Q186: 0 | R186: 0 | S186: 0 | T186: 7
B187: 5XX | C187: 4 | D187: 15 | E187: 5 | F187: 2 | G187: 1 | H187: 3 | I187: 1 | J187: 0 | K187: 0 | L187: 1 | M187: 0 | N187: 0 | O187: 0 | P187: 0 | Q187: 1 | R187: 0 | S187: 0 | T187: 33
B188: 6XX | C188: 90 | D188: 91 | E188: 82 | F188: 41 | G188: 39 | H188: 39 | I188: 23 | J188: 20 | K188: 12 | L188: 3 | M188: 3 | N188: 1 | O188: 0 | P188: 1 | Q188: 0 | R188: 0 | S188: 0 | T188: 445
B189: 7XX | C189: 85 | D189: 61 | E189: 55 | F189: 89 | G189: 23 | H189: 29 | I189: 8 | J189: 13 | K189: 3 | L189: 6 | M189: 4 | N189: 9 | O189: 0 | P189: 0 | Q189: 2 | R189: 0 | S189: 0 | T189: 387
B190: 8XX | C190: 9 | D190: 23 | E190: 16 | F190: 2 | G190: 28 | H190: 13 | I190: 0 | J190: 11 | K190: 0 | L190: 0 | M190: 4 | N190: 2 | O190: 0 | P190: 0 | Q190: 0 | R190: 0 | S190: 0 | T190: 108
B191: 9XX | C191: 28 | D191: 49 | E191: 18 | F191: 5 | G191: 1 | H191: 16 | I191: 3 | J191: 11 | K191: 1 | L191: 2 | M191: 0 | N191: 5 | O191: 0 | P191: 0 | Q191: 0 | R191: 0 | S191: 0 | T191: 139
A192: Total 2016 | C192: 525 | D192: 622 | E192: 439 | F192: 266 | G192: 231 | H192: 249 | I192: 116 | J192: 106 | K192: 55 | L192: 68 | M192: 29 | N192: 27 | O192: 8 | P192: 3 | Q192: 5 | R192: 2 | S192: 1 | T192: 2752
A193: 2017 | B193: 0XX | C193: 83 | D193: 34 | E193: 63 | F193: 55 | G193: 51 | H193: 22 | I193: 21 | J193: 6 | K193: 0 | L193: 17 | M193: 4 | N193: 1 | O193: 14 | P193: 2 | Q193: 0 | R193: 1 | S193: 0 | T193: =SUM(C193:S193) -> 374
B194: 1XX | C194: 11 | D194: 2 | E194: 4 | F194: 5 | G194: 0 | H194: 1 | I194: 1 | J194: 0 | K194: 0 | L194: 1 | M194: 0 | N194: 0 | O194: 0 | P194: 0 | Q194: 0 | R194: 0 | S194: 0 | T194: 25
B195: 2XX | C195: 31 | D195: 9 | E195: 16 | F195: 6 | G195: 12 | H195: 5 | I195: 11 | J195: 0 | K195: 1 | L195: 2 | M195: 1 | N195: 1 | O195: 0 | P195: 0 | Q195: 0 | R195: 0 | S195: 0 | T195: 95
B196: 3XX | C196: 274 | D196: 380 | E196: 303 | F196: 75 | G196: 69 | H196: 138 | I196: 67 | J196: 17 | K196: 17 | L196: 14 | M196: 9 | N196: 6 | O196: 1 | P196: 2 | Q196: 5 | R196: 0 | S196: 0 | T196: 1377
B197: 4XX | C197: 0 | D197: 1 | E197: 0 | F197: 0 | G197: 1 | H197: 1 | I197: 0 | J197: 1 | K197: 0 | L197: 0 | M197: 0 | N197: 0 | O197: 0 | P197: 0 | Q197: 0 | R197: 0 | S197: 0 | T197: 4
B198: 5XX | C198: 6 | D198: 8 | E198: 9 | F198: 2 | G198: 1 | H198: 1 | I198: 0 | J198: 0 | K198: 2 | L198: 0 | M198: 0 | N198: 0 | O198: 0 | P198: 0 | Q198: 0 | R198: 0 | S198: 0 | T198: 29
B199: 6XX | C199: 89 | D199: 96 | E199: 86 | F199: 43 | G199: 22 | H199: 31 | I199: 14 | J199: 9 | K199: 7 | L199: 3 | M199: 0 | N199: 2 | O199: 0 | P199: 2 | Q199: 0 | R199: 0 | S199: 0 | T199: 404
B200: 7XX | C200: 107 | D200: 76 | E200: 77 | F200: 80 | G200: 19 | H200: 37 | I200: 9 | J200: 4 | K200: 10 | L200: 10 | M200: 11 | N200: 7 | O200: 0 | P200: 1 | Q200: 1 | R200: 0 | S200: 0 | T200: 449
B201: 8XX | C201: 9 | D201: 33 | E201: 18 | F201: 5 | G201: 18 | H201: 7 | I201: 1 | J201: 4 | K201: 1 | L201: 1 | M201: 0 | N201: 2 | O201: 0 | P201: 0 | Q201: 0 | R201: 0 | S201: 0 | T201: 99
B202: 9XX | C202: 28 | D202: 43 | E202: 32 | F202: 2 | G202: 2 | H202: 22 | I202: 3 | J202: 10 | K202: 2 | L202: 0 | M202: 1 | N202: 5 | O202: 0 | P202: 0 | Q202: 0 | R202: 0 | S202: 0 | T202: 150
A203: Total 2017 | C203: 638 | D203: 682 | E203: 608 | F203: 273 | G203: 195 | H203: 265 | I203: 127 | J203: 51 | K203: 40 | L203: 48 | M203: 26 | N203: 24 | O203: 15 | P203: 7 | Q203: 6 | R203: 1 | S203: =SUM(S193:S202) -> 0 | T203: =SUM(C203:U203) -> 3006
... 30 more rows

Sheet N_typo
A1: Nombre de nouveaux titres par édition publique et année
A2: Classes | B2: 2016 | D2: 2017 | F2: 2018
B3: Hors PO | C3: PO | D3: Hors PO | E3: PO | F3: Hors PO | G3: PO
A4: 0XX | B4: 318 | C4: 26 | D4: 347 | E4: 27 | F4: 282 | G4: 32
A5: 1XX | B5: 17 | C5: 0 | D5: 25 | E5: 0 | F5: 32
A6: 2XX | B6: 108 | C6: 0 | D6: 95 | E6: 0 | F6: 86 | G6: 1
A7: 3XX | B7: 737 | C7: 427 | D7: 820 | E7: 557 | F7: 813 | G7: 496
A8: 4XX | B8: 5 | C8: 2 | D8: 3 | E8: 1 | F8: 6
A9: 5XX | B9: 24 | C9: 9 | D9: 24 | E9: 5 | F9: 25 | G9: 9
A10: 6XX | B10: 378 | C10: 67 | D10: 322 | E10: 82 | F10: 309 | G10: 76
A11: 7XX | B11: 370 | C11: 17 | D11: 430 | E11: 19 | F11: 402 | G11: 30
A12: 8XX | B12: 107 | C12: 1 | D12: 97 | E12: 2 | F12: 71
A13: 9XX | B13: 127 | C13: 12 | D13: 141 | E13: 9 | F13: 127 | G13: 6
A14: Total | B14: 2191 | C14: 561 | D14: 2304 | E14: 702 | F14: =SUM(F4:F13) -> 2153 | G14: =SUM(G4:G13) -> 650
A15: Source : Bibliographie nationale - Publications en série
A16: Libellés cadre de classement : http://www.bnf.fr/documents/intermarc_ref_cdc-perios.pdf
A18: Nombre de nouveaux titres par forme d'édition et année
A19: Années | B19: Classes | C19: bulletin | D19: magazine | E19: autre | F19: revue | G19: journal | H19: publication à reliure mobile (PFM) | I19: Total
A20: 2016 | B20: 0XX | C20: 89 | D20: 107 | E20: 72 | F20: 9 | G20: 66 | H20: 1 | I20: 344
B21: 1XX | C21: 4 | D21: 6 | E21: 0 | F21: 7 | G21: 0 | H21: 0 | I21: 17
B22: 2XX | C22: 3 | D22: 2 | E22: 100 | F22: 3 | G22: 0 | H22: 0 | I22: 108
B23: 3XX | C23: 444 | D23: 77 | E23: 577 | F23: 51 | G23: 7 | H23: 8 | I23: 1164
B24: 4XX | C24: 1 | D24: 0 | E24: 1 | F24: 5 | G24: 0 | H24: 0 | I24: 7
B25: 5XX | C25: 10 | D25: 3 | E25: 8 | F25: 12 | G25: 0 | H25: 0 | I25: 33
B26: 6XX | C26: 217 | D26: 116 | E26: 86 | F26: 23 | G26: 1 | H26: 2 | I26: 445
B27: 7XX | C27: 106 | D27: 227 | E27: 22 | F27: 26 | G27: 6 | H27: 0 | I27: 387
B28: 8XX | C28: 26 | D28: 44 | E28: 4 | F28: 34 | G28: 0 | H28: 0 | I28: 108
B29: 9XX | C29: 73 | D29: 41 | E29: 8 | F29: 15 | G29: 2 | H29: 0 | I29: 139
B30: Total 2016 | C30: 973 | D30: 623 | E30: 878 | F30: 185 | G30: 82 | H30: 11 | I30: 2752
A31: 2017 | B31: 0XX | C31: 165 | D31: 160 | E31: 9 | F31: 9 | G31: 30 | H31: 1 | I31: 374
B32: 1XX | C32: 1 | D32: 17 | E32: 0 | F32: 7 | G32: 0 | H32: 0 | I32: 25
B33: 2XX | C33: 83 | D33: 4 | E33: 4 | F33: 4 | G33: 0 | H33: 0 | I33: 95
B34: 3XX | C34: 868 | D34: 88 | E34: 366 | F34: 47 | G34: 4 | H34: 4 | I34: 1377
B35: 4XX | C35: 1 | D35: 0 | E35: 0 | F35: 3 | G35: 0 | H35: 0 | I35: 4
B36: 5XX | C36: 12 | D36: 11 | E36: 3 | F36: 3 | G36: 0 | H36: 0 | I36: 29
B37: 6XX | C37: 171 | D37: 121 | E37: 89 | F37: 18 | G37: 1 | H37: 4 | I37: 404
B38: 7XX | C38: 127 | D38: 267 | E38: 28 | F38: 27 | G38: 0 | H38: 0 | I38: 449
B39: 8XX | C39: 30 | D39: 37 | E39: 3 | F39: 29 | G39: 0 | H39: 0 | I39: 99
B40: 9XX | C40: 80 | D40: 51 | E40: 8 | F40: 11 | G40: 0 | H40: 0 | I40: 150
B41: Total 2017 | C41: 1538 | D41: 756 | E41: 510 | F41: 158 | G41: 35 | H41: 9 | I41: =SUM(I31:I40) -> 3006
A42: 2018 | B42: 0XX | C42: 144 | D42: 124 | E42: 16 | F42: 10 | G42: 20 | I42: =SUM(C42:H42) -> 314
B43: 1XX | C43: 8 | D43: 17 | F43: 7 | I43: 32
B44: 2XX | C44: 77 | D44: 3 | E44: 1 | F44: 6 | I44: 87
B45: 3XX | C45: 864 | D45: 80 | E45: 327 | F45: 32 | G45: 2 | H45: 4 | I45: 1309
B46: 4XX | C46: 4 | D46: 2 | I46: 6
B47: 5XX | C47: 19 | D47: 12 | E47: 1 | F47: 2 | I47: 34
B48: 6XX | C48: 201 | D48: 82 | E48: 88 | F48: 10 | G48: 1 | H48: 3 | I48: 385
B49: 7XX | C49: 140 | D49: 237 | E49: 29 | F49: 24 | G49: 2 | I49: 432
B50: 8XX | C50: 33 | D50: 23 | E50: 1 | F50: 14 | I50: 71
B51: 9XX | C51: 79 | D51: 46 | E51: 2 | F51: 5 | G51: 1 | I51: 133
B52: Total 2018 | C52: =SUM(C42:C51) -> 1569 | D52: =SUM(D42:D51) -> 626 | E52: 465 | F52: 110 | G52: 26 | H52: 7 | I52: =SUM(C52:H52) -> 2803
A53: Source : Bibliographie nationale - Publications en série
A54: Libellés cadre de classement : http://www.bnf.fr/documents/intermarc_ref_cdc-perios.pdf
A55: Bulletin : publication périodique fournissant des informations spécialisées à l'intention d'un public déterminé qui utilise un mode non commercial de diffusion
A56: Magazine : publication périodique généralement illustrée, traitant tous types de sujets, hors niveau érudition et recherche, et utilisant un mode commercial de diffusion
A57: Autre : annuaires-répertoires, rapports annuels, rapports d’activité, bilans sociaux, comptes administratifs, guides pratiques, recueils statistiques
A58: Revue : publication périodique composée d'articles de recherche ou d’étude, sélectionnés par un comité éditorial fondant ses choix sur des critères scientifiques, littéraires ou artistiques
A59: Journal : publication périodique quotidienne / hebdomadaire, traitant d'informations liées à l'actualité - le plus souvent générales - au niveau international, national ou local
A61: Nombre de nouveaux titres par type de périodique et année
A62: Années | B62: Classes | C62: presse et revues | D62: rapport d'activité, bilan | E62: répertoire ou annuaire | F62: statistiques | G62: bande dessinée | H62: lois et textes règlementaires | I62: rapport technique | J62: autre | K62: bibliographie | L62: catalogue commercial | M62: actes de congrès | N62: encyclopédie | O62: atlas | P62: norme | Q62: Total
A63: 2016 | B63: 0XX | C63: 332 | D63: 3 | E63: 1 | F63: 1 | G63: 6 | H63: 0 | I63: 0 | J63: 0 | K63: 0 | L63: 0 | M63: 0 | N63: 1 | O63: 0 | P63: 0 | Q63: 344
B64: 1XX | C64: 17 | D64: 0 | E64: 0 | F64: 0 | G64: 0 | H64: 0 | I64: 0 | J64: 0 | K64: 0 | L64: 0 | M64: 0 | N64: 0 | O64: 0 | P64: 0 | Q64: 17
B65: 2XX | C65: 106 | D65: 1 | E65: 1 | F65: 0 | G65: 0 | H65: 0 | I65: 0 | J65: 0 | K65: 0 | L65: 0 | M65: 0 | N65: 0 | O65: 0 | P65: 0 | Q65: 108
B66: 3XX | C66: 885 | D66: 149 | E66: 41 | F66: 58 | G66: 0 | H66: 25 | I66: 4 | J66: 2 | K66: 0 | L66: 0 | M66: 0 | N66: 0 | O66: 0 | P66: 0 | Q66: 1164
B67: 4XX | C67: 6 | D67: 0 | E67: 0 | F67: 1 | G67: 0 | H67: 0 | I67: 0 | J67: 0 | K67: 0 | L67: 0 | M67: 0 | N67: 0 | O67: 0 | P67: 0 | Q67: 7
B68: 5XX | C68: 28 | D68: 3 | E68: 1 | F68: 0 | G68: 0 | H68: 0 | I68: 0 | J68: 0 | K68: 0 | L68: 0 | M68: 1 | N68: 0 | O68: 0 | P68: 0 | Q68: 33
B69: 6XX | C69: 367 | D69: 28 | E69: 11 | F69: 26 | G69: 0 | H69: 2 | I69: 6 | J69: 0 | K69: 0 | L69: 0 | M69: 1 | N69: 0 | O69: 0 | P69: 4 | Q69: 445
B70: 7XX | C70: 371 | D70: 5 | E70: 3 | F70: 1 | G70: 1 | H70: 0 | I70: 0 | J70: 2 | K70: 0 | L70: 4 | M70: 0 | N70: 0 | O70: 0 | P70: 0 | Q70: 387
B71: 8XX | C71: 66 | D71: 0 | E71: 0 | F71: 0 | G71: 41 | H71: 0 | I71: 0 | J71: 1 | K71: 0 | L71: 0 | M71: 0 | N71: 0 | O71: 0 | P71: 0 | Q71: 108
B72: 9XX | C72: 131 | D72: 5 | E72: 0 | F72: 0 | G72: 0 | H72: 0 | I72: 0 | J72: 0 | K72: 1 | L72: 1 | M72: 1 | N72: 0 | O72: 0 | P72: 0 | Q72: 139
B73: Total 2016 | C73: 2309 | D73: 194 | E73: 58 | F73: 87 | G73: 48 | H73: 27 | I73: 10 | J73: 5 | K73: 1 | L73: 5 | M73: 3 | N73: 1 | O73: =SUM(O63:O72) -> 0 | P73: 4 | Q73: 2752
A74: 2017 | B74: 0XX | C74: 358 | D74: 3 | E74: 3 | F74: 1 | G74: 8 | H74: 0 | I74: 0 | J74: 1 | K74: 0 | L74: 0 | M74: 0 | N74: 0 | O74: 0 | P74: 0 | Q74: 374
B75: 1XX | C75: 25 | D75: 0 | E75: 0 | F75: 0 | G75: 0 | H75: 0 | I75: 0 | J75: 0 | K75: 0 | L75: 0 | M75: 0 | N75: 0 | O75: 0 | P75: 0 | Q75: 25
B76: 2XX | C76: 91 | D76: 0 | E76: 4 | F76: 0 | G76: 0 | H76: 0 | I76: 0 | J76: 0 | K76: 0 | L76: 0 | M76: 0 | N76: 0 | O76: 0 | P76: 0 | Q76: 95
B77: 3XX | C77: 1026 | D77: 179 | E77: 46 | F77: 77 | G77: 0 | H77: 42 | I77: 4 | J77: 1 | K77: 0 | L77: 0 | M77: 1 | N77: 0 | O77: 1 | P77: 0 | Q77: 1377
B78: 4XX | C78: 4 | D78: 0 | E78: 0 | F78: 0 | G78: 0 | H78: 0 | I78: 0 | J78: 0 | K78: 0 | L78: 0 | M78: 0 | N78: 0 | O78: 0 | P78: 0 | Q78: 4
B79: 5XX | C79: 26 | D79: 2 | E79: 0 | F79: 0 | G79: 0 | H79: 0 | I79: 1 | J79: 0 | K79: 0 | L79: 0 | M79: 0 | N79: 0 | O79: 0 | P79: 0 | Q79: 29
B80: 6XX | C80: 313 | D80: 24 | E80: 21 | F80: 36 | G80: 0 | H80: 0 | I80: 6 | J80: 1 | K80: 1 | L80: 0 | M80: 0 | N80: 0 | O80: 0 | P80: 2 | Q80: 404
B81: 7XX | C81: 422 | D81: 8 | E81: 11 | F81: 1 | G81: 6 | H81: 0 | I81: 0 | J81: 1 | K81: 0 | L81: 0 | M81: 0 | N81: 0 | O81: 0 | P81: 0 | Q81: 449
B82: 8XX | C82: 65 | D82: 1 | E82: 0 | F82: 0 | G82: 33 | H82: 0 | I82: 0 | J82: 0 | K82: 0 | L82: 0 | M82: 0 | N82: 0 | O82: 0 | P82: 0 | Q82: 99
B83: 9XX | C83: 142 | D83: 3 | E83: 1 | F83: 4 | G83: 0 | H83: 0 | I83: 0 | J83: 0 | K83: 0 | L83: 0 | M83: 0 | N83: 0 | O83: 0 | P83: 0 | Q83: 150
B84: Total 2017 | C84: 2472 | D84: 220 | E84: 86 | F84: 119 | G84: 47 | H84: 42 | I84: 11 | J84: 3 | K84: 1 | L84: 0 | M84: 1 | O84: 1 | P84: 2 | Q84: 3006
A85: 2018 | B85: 0XX | C85: 289 | D85: 15 | E85: 1 | F85: 2 | G85: 7
B86: 1XX | C86: 32
B87: 2XX | C87: 86 | E87: 1
B88: 3XX | C88: 975 | D88: 246 | E88: 51 | F88: 33 | I88: 4
B89: 4XX | C89: 6
B90: 5XX | C90: 33 | D90: 1
B91: 6XX | C91: 294 | D91: 48 | E91: 30 | F91: 11 | I91: 1 | P91: 1
B92: 7XX | C92: 402 | D92: 10 | E92: 6 | F92: 1 | G92: 9 | I92: 2 | L92: 2
B93: 8XX | C93: 56 | E93: 1 | G93: 14
B94: 9XX | C94: 132 | D94: 1
B95: Total 2018 | C95: =SUM(C85:C94) -> 2305 | D95: =SUM(D85:D94) -> 321 | E95: 90 | F95: 47 | G95: 30 | H95: 0 | I95: 7 | J95: 0 | K95: 0 | L95: 2 | M95: 0 | N95: 0 | O95: 0 | P95: 1 | Q95: =SUM(C95:P95) -> 2803
A96: Source : Bibliographie nationale - Publications en série
A97: Libellés cadre de classement : http://www.bnf.fr/documents/intermarc_ref_cdc-perios.pdf
A99: Nombre de nouveaux titres de magazines par thématique
A100: Classes | B100: Indices | C100: Intitulés | D100: 2016 | E100: 2017 | F100: 2018
A101: 0XX | B101: 001 | C101: Culture générale | D101: 3 | E101: 8 | F101: 5
B102: 004 | C102: Informatique | D102: 3 | E102: 6 | F102: 8
B103: 010 | C103: Bibliographie, catalogues | F103: 1
B104: 020 | C104: Sciences de l'information, lecture | D104: 0 | E104: 0
B105: 060 | C105: Instituts de recherche, archives, musées | D105: 0 | E105: 0
B106: 070 | C106: Édition, médias, librairie | D106: 0 | E106: 1 | F106: 1
B107: 071 | C107: Magazines généraux | D107: 57 | E107: 67 | F107: 40
B108: 072 | C108: Publications féminines, publications masculines | D108: 27 | E108: 22 | F108: 26
B109: 073 | C109: Presse et collections documentaires pour enfants et adolescents | D109: 48 | E109: 45 | F109: 33
B110: 074 | C110: Presse nationale et locale d’information | D110: 9 | E110: 6 | F110: 7
B111: 075 | C111: Presse parallèle, fanzines | D111: 7 | E111: 1 | F111: 3
B112: 076 | C112: Journaux internes d’entreprise | D112: 0 | E112: 0
B113: 077 | C113: Journaux d’annonces | D113: 0 | E113: 4
A114: 1XX | B114: 100 | C114: Philosophie | D114: 0 | E114: 2 | F114: 2
B115: 130 | C115: Ésotérisme et sciences occultes | D115: 2 | E115: 6 | F115: 7
B116: 150 | C116: Psychologie et psychanalyse | D116: 4 | E116: 9 | F116: 8
A117: 2XX | B117: 200 | C117: Religion | D117: 0 | E117: 1 | F117: 1
B118: 280 | C118: Églises chrétiennes | D118: 3 | E118: 1 | F118: 2
B119: 294 | C119: Hindouisme, bouddhisme | D119: 0 | E119: 1
B120: 296 | C120: Judaïsme | D120: 0 | E120: 1
B121: 297 | C121: Islam | D121: 1 | E121: 0
A122: 3XX | B122: 300 | C122: Sciences sociales, sociologie | D122: 3 | E122: 2 | F122: 4
B123: 320 | C123: Sciences politiques et gouvernement | D123: 2 | E123: 1 | F123: 2
B124: 323 | C124: Droits civils et politiques, citoyenneté, minorités | D124: 0 | E124: 1
B125: 324 | C125: Partis et mouvements politiques | D125: 0 | E125: 0
B126: 327 | C126: Politique internationale | D126: 1 | E126: 5
B127: 330 | C127: Économie (généralités) | D127: 8 | E127: 6 | F127: 4
B128: 331 | C128: Économie du travail, syndicats | D128: 0 | E128: 1
B129: 332 | C129: Économie financière | D129: 1 | E129: 2
B130: 333 | C130: Économie du foncier et de l'énergie | D130: 2 | E130: 9 | F130: 3
B131: 338 | C131: Économie de la production et de la consommation | D131: 12 | E131: 13 | F131: 19
B132: 340 | C132: Droit | D132: 0 | E132: 1 | F132: 2
B133: 350 | C133: Administration publique | D133: 1 | E133: 0
B134: 352 | C134: Administration territoriale | D134: 4 | E134: 7 | F134: 2
B135: 355 | C135: Armée, défense | D135: 6 | E135: 5 | F135: 1
B136: 362 | C136: Problèmes et services sociaux | D136: 2 | E136: 2 | F136: 1
B137: 363 | C137: Protection de l’environnement | D137: 1 | E137: 5 | F137: 4
B138: 366 | C138: Associations, cercles et clubs divers | D138: 1 | E138: 0
B139: 368 | C139: Assurances, sécurité sociale, retraites | D139: 1 | E139: 0
B140: 370 | C140: Education, enseignement | D140: 0 | E140: 1 | F140: 2
B141: 371 | C141: Organisation scolaire, pédagogie, parents d’élèves | D141: 0 | E141: 0
B142: 373 | C142: Enseignement primaire, enseignement secondaire général et technique, journaux scolaires | D142: 0 | E142: 3
B143: 374 | C143: Formation professionnelle et continue | D143: 0 | E143: 0 | F143: 1
B144: 378 | C144: Enseignement supérieur | D144: 3 | E144: 5
B145: 380 | C145: Commerce | D145: 6 | E145: 1 | F145: 7
B146: 383 | C146: Moyens de communication | D146: 3 | E146: 0 | F146: 1
B147: 385 | C147: Transports | D147: 23 | E147: 17 | F147: 25
B148: 390 | C148: Ethnologie, anthropologie, folklore | D148: 0 | E148: 1 | F148: 2
A149: 4XX | B149: 400 | C149: Linguistique | D149: 0 | E149: 0 | F149: 2
A150: 5XX | B150: 500 | C150: Sciences (généralités) | D150: 7 | E150: 7 | F150: 9
B151: 520 | C151: Astronomie | D151: 1 | E151: 1 | F151: 2
B152: 540 | C152: Chimie, minéralogie | D152: 0 | E152: 0
B153: 550 | C153: Sciences de la Terre | D153: 0 | E153: 0
B154: 560 | C154: Paléontologie | D154: 0 | E154: 1
B155: 570 | C155: Sciences de la Vie | D155: 0 | E155: 0 | F155: 1
B156: 580 | C156: Botanique | D156: 0 | E156: 1
B157: 590 | C157: Zoologie | D157: 1 | E157: 1
A158: 6XX | B158: 600 | C158: Sciences appliquées, technologie | D158: 4 | E158: 2
B159: 610 | C159: Médecine, santé | D159: 32 | E159: 27 | F159: 14
B160: 620 | C160: Sciences de l'ingénieur | D160: 5 | E160: 7 | F160: 9
B161: 630 | C161: Agriculture, élevage | D161: 15 | E161: 10 | F161: 10
B162: 640 | C162: Économie domestique/vie pratique, hôtellerie | D162: 49 | E162: 69 | F162: 42
B163: 650 | C163: Gestion et organisation des entreprises, publicité | D163: 8 | E163: 5 | F163: 4
B164: 660 | C164: Génie chimique et technologies connexes | D164: 2 | E164: 0 | F164: 2
B165: 670 | C165: Industries et métiers divers | D165: 1 | E165: 1 | F165: 1
B166: 690 | C166: Bâtiment | D166: 1 | E166: 0
A167: 7XX | B167: 700 | C167: Arts (généralités) | D167: 19 | E167: 18 | F167: 9
B168: 710 | C168: Urbanisme, aménagement du territoire | D168: 0 | E168: 1
B169: 720 | C169: Architecture | D169: 0 | E169: 1 | F169: 1
B170: 730 | C170: Arts plastiques, sculptures | D170: 0 | E170: 1 | F170: 2
B171: 740 | C171: Dessin, arts décoratifs, artisanat d’art, bandes dessinées (histoire et critique) | D171: 24 | E171: 27 | F171: 43
B172: 750 | C172: Peinture, arts graphiques | D172: 2 | E172: 2 | F172: 5
B173: 770 | C173: Photographie | D173: 3 | E173: 6 | F173: 5
B174: 778 | C174: Érotisme, pornographie | D174: 4 | E174: 7 | F174: 2
B175: 780 | C175: Musique | D175: 8 | E175: 5 | F175: 1
B176: 790 | C176: Spectacles (généralités), loisirs | D176: 11 | E176: 16 | F176: 22
B177: 791 | C177: Audiovisuel | D177: 13 | E177: 19 | F177: 7
B178: 792 | C178: Représentations scéniques | D178: 5 | E178: 1
B179: 793 | C179: Jeux et divertissements d'intérieur | D179: 71 | E179: 102 | F179: 101
B180: 796 | C180: Sports, activités de plein air | D180: 67 | E180: 61 | F180: 39
A181: 8XX | B181: 800 | C181: Littérature générale, histoire et critique littéraires, revues littéraires | D181: 6 | E181: 4 | F181: 8
B182: 801 | C182: Poésie | D182: 1 | E182: 0
B183: 805 | C183: Bandes dessinées | D183: 37 | E183: 29 | F183: 14
B184: 809 | C184: Littérature pour la jeunesse | D184: 0 | E184: 4 | F184: 1
A185: 9XX | B185: 900 | C185: Histoire et géographie (généralités) | D185: 10 | E185: 15 | F185: 9
B186: 910 | C186: Géographie, voyages, tourisme | D186: 20 | E186: 18 | F186: 23
B187: 929 | C187: Généalogies | D187: 0 | E187: 1
B188: 930 | C188: Histoire ancienne, archéologie, préhistoire | D188: 1 | E188: 1 | F188: 1
B189: 940 | C189: Histoire médiévale, moderne et contemporaine | D189: 4 | E189: 5 | F189: 7
B190: 944 | C190: Histoire de France, histoire locale | D190: 6 | E190: 11 | F190: 6
B191: Total | D191: =SUM(D101:D190) -> 682 | E191: =SUM(E101:E190) -> 751 | F191: =SUM(F101:F190) -> 626
A192: Source : Bibliographie nationale - Publications en série
A194: Nombre de nouveaux titres de presse professionnelle par thématique
A195: Classes | B195: Indices | C195: Intitulés | D195: 2016 | E195: 2017 | F195: 2018
A196: 0XX | B196: 020 | C196: Sciences de l'information, lecture | D196: 2 | E196: 1
B197: 060 | C197: Instituts de recherche, archives, musées | D197: 0 | E197: 9 | F197: 4
B198: 070 | C198: Édition, médias, librairie | D198: 1 | E198: 0 | F198: 3
A199: 3XX | B199: 332 | C199: Économie financière | D199: 13 | E199: 13 | F199: 5
B200: 333 | C200: Économie du foncier et de l'énergie | D200: 16 | E200: 16 | F200: 10
B201: 338 | C201: Économie de la production et de la consommation | D201: 29 | E201: 0 | F201: 15
B202: 380 | C202: Commerce | D202: 5 | E202: 6 | F202: 5
B203: 383 | C203: Moyens de communication | D203: 2 | E203: 9 | F203: 1
B204: 385 | C204: Transports | D204: 8 | E204: 10 | F204: 10
... 247 more rows
